{"text_format":"1","workbook":"xlsx","n_sheets":2,"sheets":["ALL","AUTOCOOL"],"not_rendered":{"charts":0,"images":0,"macros":0,"external_links":0,"defined_names":0,"comments":0,"pivot_tables":0},"unopened":[],"bounds":{"document_bytes":16777216,"sheet_cells":100000,"rows_first":2000,"rows_last":500,"rows_between":2000,"halvings":0,"cell_chars":16384,"cell_head_chars":4096},"cells_cut":0,"cells_raw":0,"read":"whole","date_system":"1900"}

{"sheet":"ALL","index":0,"n_rows":3,"n_cols":2,"rows_kept":3,"cut":false,"hidden":false,"merged":[]}
[]
[]
[null,{"$f":"TODAY()","v":"2022-05-18"}]

{"sheet":"AUTOCOOL","index":1,"n_rows":1002,"n_cols":13,"rows_kept":1002,"cut":false,"hidden":false,"merged":[[1001,1,1002,2]]}
["CLIENT","AUTOCOOL",null,null,"CONTACT 1 NAME",null,null,null,"CONTACT 2 NAME"]
["CODE",null,null,null,"MOB",null,null,null,"MOB"]
["VALIDATION",30,null,null,"LAND",null,null,null,"LAND"]
["SELLER",null,null,null,"EMAIL",null,null,null,"EMAIL"]
["UNDUE",30,null,null,"DUE",60,null,null,"OVER DUE","> 60"]
["DATE ECVD","INV. #","LNO","C2H2","AR","CO2","H2","O2","N2","OTHER","TOTAL VALUE","DURATION","DAYS"]
["2022-02-28",26402,null,null,5220.6000000000004,null,null,2621.6000000000004,4627.3500000000004,null,{"$f":"SUM(C7:J7)","v":12469.550000000001},{"$f":"IF(AND(M7>365),\"OVER A YEAR\",IF(AND(M7>0,M7<31),\"1 MONTH\",IF(AND(M7>30,M7<61),\"2 MONTHS\",IF(AND(M7>60,M7<91),\"3 MONTHS\",IF(AND(M7>90,M7<181),\"3 : 6 MONTHS\",IF(AND(M7>180,M7<271),\"6 : 9 MONTHS\",IF(AND(M7>270,M7<366),\"9 : 12 MONTHS\",IF(M7=0,0))))))))","v":"3 MONTHS"},{"$f":"IF((ALL!$B$3-AUTOCOOL!A7)>40000,0,(ALL!$B$3-AUTOCOOL!A7))","v":79}]
["2022-02-28",12445,104267.314125,null,null,null,null,null,null,null,104267.314125,{"$f":"IF(AND(M8>365),\"OVER A YEAR\",IF(AND(M8>0,M8<31),\"1 MONTH\",IF(AND(M8>30,M8<61),\"2 MONTHS\",IF(AND(M8>60,M8<91),\"3 MONTHS\",IF(AND(M8>90,M8<181),\"3 : 6 MONTHS\",IF(AND(M8>180,M8<271),\"6 : 9 MONTHS\",IF(AND(M8>270,M8<366),\"9 : 12 MONTHS\",IF(M8=0,0))))))))","v":"3 MONTHS"},{"$f":"IF((ALL!$B$3-AUTOCOOL!A8)>40000,0,(ALL!$B$3-AUTOCOOL!A8))","v":79}]
["2022-03-31",12542,129942.1305,null,null,null,null,null,null,null,129942.1305,{"$f":"IF(AND(M9>365),\"OVER A YEAR\",IF(AND(M9>0,M9<31),\"1 MONTH\",IF(AND(M9>30,M9<61),\"2 MONTHS\",IF(AND(M9>60,M9<91),\"3 MONTHS\",IF(AND(M9>90,M9<181),\"3 : 6 MONTHS\",IF(AND(M9>180,M9<271),\"6 : 9 MONTHS\",IF(AND(M9>270,M9<366),\"9 : 12 MONTHS\",IF(M9=0,0))))))))","v":"2 MONTHS"},{"$f":"IF((ALL!$B$3-AUTOCOOL!A9)>40000,0,(ALL!$B$3-AUTOCOOL!A9))","v":48}]
["2022-03-31",26910,null,null,8265.9500000000007,null,null,2712,6102,null,17079.95,"2 MONTHS",{"$f":"IF((ALL!$B$3-AUTOCOOL!A10)>40000,0,(ALL!$B$3-AUTOCOOL!A10))","v":48}]
["2022-04-30",12652,101217.509775,null,null,null,null,null,null,null,101217.509775,"1 MONTH",{"$f":"IF((ALL!$B$3-AUTOCOOL!A11)>40000,0,(ALL!$B$3-AUTOCOOL!A11))","v":18}]
["2022-05-09",27351,null,null,4785.5499999999993,null,null,2079.1999999999998,5491.7999999999993,null,12356.55,"1 MONTH",{"$f":"IF((ALL!$B$3-AUTOCOOL!A12)>40000,0,(ALL!$B$3-AUTOCOOL!A12))","v":9}]
["2022-05-17",null,null,null,null,null,null,null,null,null,0,"1 MONTH",{"$f":"IF((ALL!$B$3-AUTOCOOL!A13)>40000,0,(ALL!$B$3-AUTOCOOL!A13))","v":1}]
["2022-04-17",null,null,null,null,null,null,null,null,null,0,"2 MONTHS",{"$f":"IF((ALL!$B$3-AUTOCOOL!A14)>40000,0,(ALL!$B$3-AUTOCOOL!A14))","v":31}]
["2022-03-17",null,null,null,null,null,null,null,null,null,0,"3 MONTHS",{"$f":"IF((ALL!$B$3-AUTOCOOL!A15)>40000,0,(ALL!$B$3-AUTOCOOL!A15))","v":62}]
["2022-02-17",null,null,null,null,null,null,null,null,null,0,"3 MONTHS",{"$f":"IF((ALL!$B$3-AUTOCOOL!A16)>40000,0,(ALL!$B$3-AUTOCOOL!A16))","v":90}]
["2022-01-17",null,null,null,null,null,null,null,null,null,0,"3 : 6 MONTHS",{"$f":"IF((ALL!$B$3-AUTOCOOL!A17)>40000,0,(ALL!$B$3-AUTOCOOL!A17))","v":121}]
["2021-12-17",null,null,null,null,null,null,null,null,null,0,"3 : 6 MONTHS",{"$f":"IF((ALL!$B$3-AUTOCOOL!A18)>40000,0,(ALL!$B$3-AUTOCOOL!A18))","v":152}]
["2021-11-17",null,null,null,null,null,null,null,null,null,0,"6 : 9 MONTHS",{"$f":"IF((ALL!$B$3-AUTOCOOL!A19)>40000,0,(ALL!$B$3-AUTOCOOL!A19))","v":182}]
["2021-10-17",null,null,null,null,null,null,null,null,null,0,"6 : 9 MONTHS",{"$f":"IF((ALL!$B$3-AUTOCOOL!A20)>40000,0,(ALL!$B$3-AUTOCOOL!A20))","v":213}]
["2021-09-17",null,null,null,null,null,null,null,null,null,0,"6 : 9 MONTHS",{"$f":"IF((ALL!$B$3-AUTOCOOL!A21)>40000,0,(ALL!$B$3-AUTOCOOL!A21))","v":243}]
["2021-08-17",null,null,null,null,null,null,null,null,null,0,"9 : 12 MONTHS",{"$f":"IF((ALL!$B$3-AUTOCOOL!A22)>40000,0,(ALL!$B$3-AUTOCOOL!A22))","v":274}]
["2021-07-17",null,null,null,null,null,null,null,null,null,0,"9 : 12 MONTHS",{"$f":"IF((ALL!$B$3-AUTOCOOL!A23)>40000,0,(ALL!$B$3-AUTOCOOL!A23))","v":305}]
["2021-06-17",null,null,null,null,null,null,null,null,null,0,"9 : 12 MONTHS",{"$f":"IF((ALL!$B$3-AUTOCOOL!A24)>40000,0,(ALL!$B$3-AUTOCOOL!A24))","v":335}]
["2021-05-17",null,null,null,null,null,null,null,null,null,0,"OVER A YEAR",{"$f":"IF((ALL!$B$3-AUTOCOOL!A25)>40000,0,(ALL!$B$3-AUTOCOOL!A25))","v":366}]
["2021-04-17",null,null,null,null,null,null,null,null,null,0,"OVER A YEAR",{"$f":"IF((ALL!$B$3-AUTOCOOL!A26)>40000,0,(ALL!$B$3-AUTOCOOL!A26))","v":396}]
["2021-03-17",null,null,null,null,null,null,null,null,null,0,"OVER A YEAR",{"$f":"IF((ALL!$B$3-AUTOCOOL!A27)>40000,0,(ALL!$B$3-AUTOCOOL!A27))","v":427}]
["2021-02-17",null,null,null,null,null,null,null,null,null,0,"OVER A YEAR",{"$f":"IF((ALL!$B$3-AUTOCOOL!A28)>40000,0,(ALL!$B$3-AUTOCOOL!A28))","v":455}]
["2021-01-17",null,null,null,null,null,null,null,null,null,0,"OVER A YEAR",{"$f":"IF((ALL!$B$3-AUTOCOOL!A29)>40000,0,(ALL!$B$3-AUTOCOOL!A29))","v":486}]
["2020-12-17",null,null,null,null,null,null,null,null,null,0,"OVER A YEAR",{"$f":"IF((ALL!$B$3-AUTOCOOL!A30)>40000,0,(ALL!$B$3-AUTOCOOL!A30))","v":517}]
["2020-11-17",null,null,null,null,null,null,null,null,null,0,"OVER A YEAR",{"$f":"IF((ALL!$B$3-AUTOCOOL!A31)>40000,0,(ALL!$B$3-AUTOCOOL!A31))","v":547}]
["2020-10-17",null,null,null,null,null,null,null,null,null,0,"OVER A YEAR",{"$f":"IF((ALL!$B$3-AUTOCOOL!A32)>40000,0,(ALL!$B$3-AUTOCOOL!A32))","v":578}]
["2020-09-17",null,null,null,null,null,null,null,null,null,0,"OVER A YEAR",{"$f":"IF((ALL!$B$3-AUTOCOOL!A33)>40000,0,(ALL!$B$3-AUTOCOOL!A33))","v":608}]
["2020-08-17",null,null,null,null,null,null,null,null,null,0,"OVER A YEAR",{"$f":"IF((ALL!$B$3-AUTOCOOL!A34)>40000,0,(ALL!$B$3-AUTOCOOL!A34))","v":639}]
["2020-07-17",null,null,null,null,null,null,null,null,null,0,"OVER A YEAR",{"$f":"IF((ALL!$B$3-AUTOCOOL!A35)>40000,0,(ALL!$B$3-AUTOCOOL!A35))","v":670}]
["2020-06-17",null,null,null,null,null,null,null,null,null,0,"OVER A YEAR",{"$f":"IF((ALL!$B$3-AUTOCOOL!A36)>40000,0,(ALL!$B$3-AUTOCOOL!A36))","v":700}]
["2020-05-17",null,null,null,null,null,null,null,null,null,0,"OVER A YEAR",{"$f":"IF((ALL!$B$3-AUTOCOOL!A37)>40000,0,(ALL!$B$3-AUTOCOOL!A37))","v":731}]
["2020-04-17",null,null,null,null,null,null,null,null,null,0,"OVER A YEAR",{"$f":"IF((ALL!$B$3-AUTOCOOL!A38)>40000,0,(ALL!$B$3-AUTOCOOL!A38))","v":761}]
["2020-03-17",null,null,null,null,null,null,null,null,null,0,"OVER A YEAR",{"$f":"IF((ALL!$B$3-AUTOCOOL!A39)>40000,0,(ALL!$B$3-AUTOCOOL!A39))","v":792}]
["2020-02-17",null,null,null,null,null,null,null,null,null,0,"OVER A YEAR",{"$f":"IF((ALL!$B$3-AUTOCOOL!A40)>40000,0,(ALL!$B$3-AUTOCOOL!A40))","v":821}]
["2020-01-17",null,null,null,null,null,null,null,null,null,0,"OVER A YEAR",{"$f":"IF((ALL!$B$3-AUTOCOOL!A41)>40000,0,(ALL!$B$3-AUTOCOOL!A41))","v":852}]
["2019-12-17",null,null,null,null,null,null,null,null,null,0,"OVER A YEAR",{"$f":"IF((ALL!$B$3-AUTOCOOL!A42)>40000,0,(ALL!$B$3-AUTOCOOL!A42))","v":883}]
["2019-11-17",null,null,null,null,null,null,null,null,null,0,"OVER A YEAR",{"$f":"IF((ALL!$B$3-AUTOCOOL!A43)>40000,0,(ALL!$B$3-AUTOCOOL!A43))","v":913}]
["2019-10-17",null,null,null,null,null,null,null,null,null,0,"OVER A YEAR",{"$f":"IF((ALL!$B$3-AUTOCOOL!A44)>40000,0,(ALL!$B$3-AUTOCOOL!A44))","v":944}]
["2019-09-17",null,null,null,null,null,null,null,null,null,0,"OVER A YEAR",{"$f":"IF((ALL!$B$3-AUTOCOOL!A45)>40000,0,(ALL!$B$3-AUTOCOOL!A45))","v":974}]
["2019-08-17",null,null,null,null,null,null,null,null,null,0,"OVER A YEAR",{"$f":"IF((ALL!$B$3-AUTOCOOL!A46)>40000,0,(ALL!$B$3-AUTOCOOL!A46))","v":1005}]
["2019-07-17",null,null,null,null,null,null,null,null,null,0,"OVER A YEAR",{"$f":"IF((ALL!$B$3-AUTOCOOL!A47)>40000,0,(ALL!$B$3-AUTOCOOL!A47))","v":1036}]
["2019-06-17",null,null,null,null,null,null,null,null,null,0,"OVER A YEAR",{"$f":"IF((ALL!$B$3-AUTOCOOL!A48)>40000,0,(ALL!$B$3-AUTOCOOL!A48))","v":1066}]
["2019-05-17",null,null,null,null,null,null,null,null,null,0,"OVER A YEAR",{"$f":"IF((ALL!$B$3-AUTOCOOL!A49)>40000,0,(ALL!$B$3-AUTOCOOL!A49))","v":1097}]
["2019-04-17",null,null,null,null,null,null,null,null,null,0,"OVER A YEAR",{"$f":"IF((ALL!$B$3-AUTOCOOL!A50)>40000,0,(ALL!$B$3-AUTOCOOL!A50))","v":1127}]
["2019-03-17",null,null,null,null,null,null,null,null,null,0,"OVER A YEAR",{"$f":"IF((ALL!$B$3-AUTOCOOL!A51)>40000,0,(ALL!$B$3-AUTOCOOL!A51))","v":1158}]
["2019-02-17",null,null,null,null,null,null,null,null,null,0,"OVER A YEAR",{"$f":"IF((ALL!$B$3-AUTOCOOL!A52)>40000,0,(ALL!$B$3-AUTOCOOL!A52))","v":1186}]
["2019-01-17",null,null,null,null,null,null,null,null,null,0,"OVER A YEAR",{"$f":"IF((ALL!$B$3-AUTOCOOL!A53)>40000,0,(ALL!$B$3-AUTOCOOL!A53))","v":1217}]
["2018-12-17",null,null,null,null,null,null,null,null,null,0,"OVER A YEAR",{"$f":"IF((ALL!$B$3-AUTOCOOL!A54)>40000,0,(ALL!$B$3-AUTOCOOL!A54))","v":1248}]
["2018-11-17",null,null,null,null,null,null,null,null,null,0,"OVER A YEAR",{"$f":"IF((ALL!$B$3-AUTOCOOL!A55)>40000,0,(ALL!$B$3-AUTOCOOL!A55))","v":1278}]
["2018-10-17",null,null,null,null,null,null,null,null,null,0,"OVER A YEAR",{"$f":"IF((ALL!$B$3-AUTOCOOL!A56)>40000,0,(ALL!$B$3-AUTOCOOL!A56))","v":1309}]
["2018-09-17",null,null,null,null,null,null,null,null,null,0,"OVER A YEAR",{"$f":"IF((ALL!$B$3-AUTOCOOL!A57)>40000,0,(ALL!$B$3-AUTOCOOL!A57))","v":1339}]
["2018-08-17",null,null,null,null,null,null,null,null,null,0,"OVER A YEAR",{"$f":"IF((ALL!$B$3-AUTOCOOL!A58)>40000,0,(ALL!$B$3-AUTOCOOL!A58))","v":1370}]
["2018-07-17",null,null,null,null,null,null,null,null,null,0,"OVER A YEAR",{"$f":"IF((ALL!$B$3-AUTOCOOL!A59)>40000,0,(ALL!$B$3-AUTOCOOL!A59))","v":1401}]
["2018-06-17",null,null,null,null,null,null,null,null,null,0,"OVER A YEAR",{"$f":"IF((ALL!$B$3-AUTOCOOL!A60)>40000,0,(ALL!$B$3-AUTOCOOL!A60))","v":1431}]
["2018-05-17",null,null,null,null,null,null,null,null,null,0,"OVER A YEAR",{"$f":"IF((ALL!$B$3-AUTOCOOL!A61)>40000,0,(ALL!$B$3-AUTOCOOL!A61))","v":1462}]
["2018-04-17",null,null,null,null,null,null,null,null,null,0,"OVER A YEAR",{"$f":"IF((ALL!$B$3-AUTOCOOL!A62)>40000,0,(ALL!$B$3-AUTOCOOL!A62))","v":1492}]
["2018-03-17",null,null,null,null,null,null,null,null,null,0,"OVER A YEAR",{"$f":"IF((ALL!$B$3-AUTOCOOL!A63)>40000,0,(ALL!$B$3-AUTOCOOL!A63))","v":1523}]
["2018-02-17",null,null,null,null,null,null,null,null,null,0,"OVER A YEAR",{"$f":"IF((ALL!$B$3-AUTOCOOL!A64)>40000,0,(ALL!$B$3-AUTOCOOL!A64))","v":1551}]
["2018-01-17",null,null,null,null,null,null,null,null,null,0,"OVER A YEAR",{"$f":"IF((ALL!$B$3-AUTOCOOL!A65)>40000,0,(ALL!$B$3-AUTOCOOL!A65))","v":1582}]
["2017-12-17",null,null,null,null,null,null,null,null,null,0,"OVER A YEAR",{"$f":"IF((ALL!$B$3-AUTOCOOL!A66)>40000,0,(ALL!$B$3-AUTOCOOL!A66))","v":1613}]
["2017-11-17",null,null,null,null,null,null,null,null,null,0,"OVER A YEAR",{"$f":"IF((ALL!$B$3-AUTOCOOL!A67)>40000,0,(ALL!$B$3-AUTOCOOL!A67))","v":1643}]
["2017-10-17",null,null,null,null,null,null,null,null,null,0,"OVER A YEAR",{"$f":"IF((ALL!$B$3-AUTOCOOL!A68)>40000,0,(ALL!$B$3-AUTOCOOL!A68))","v":1674}]
["2017-09-17",null,null,null,null,null,null,null,null,null,0,"OVER A YEAR",{"$f":"IF((ALL!$B$3-AUTOCOOL!A69)>40000,0,(ALL!$B$3-AUTOCOOL!A69))","v":1704}]
["2017-08-17",null,null,null,null,null,null,null,null,null,0,"OVER A YEAR",{"$f":"IF((ALL!$B$3-AUTOCOOL!A70)>40000,0,(ALL!$B$3-AUTOCOOL!A70))","v":1735}]
["2017-07-17",null,null,null,null,null,null,null,null,null,{"$f":"SUM(C71:J71)","v":0},"OVER A YEAR",{"$f":"IF((ALL!$B$3-AUTOCOOL!A71)>40000,0,(ALL!$B$3-AUTOCOOL!A71))","v":1766}]
["2017-06-17",null,null,null,null,null,null,null,null,null,0,{"$f":"IF(AND(M72>365),\"OVER A YEAR\",IF(AND(M72>0,M72<31),\"1 MONTH\",IF(AND(M72>30,M72<61),\"2 MONTHS\",IF(AND(M72>60,M72<91),\"3 MONTHS\",IF(AND(M72>90,M72<181),\"3 : 6 MONTHS\",IF(AND(M72>180,M72<271),\"6 : 9 MONTHS\",IF(AND(M72>270,M72<366),\"9 : 12 MONTHS\",IF(M72=0,0))))))))","v":"OVER A YEAR"},{"$f":"IF((ALL!$B$3-AUTOCOOL!A72)>40000,0,(ALL!$B$3-AUTOCOOL!A72))","v":1796}]
["2017-05-17",null,null,null,null,null,null,null,null,null,0,"OVER A YEAR",{"$f":"IF((ALL!$B$3-AUTOCOOL!A73)>40000,0,(ALL!$B$3-AUTOCOOL!A73))","v":1827}]
["2017-04-17",null,null,null,null,null,null,null,null,null,0,"OVER A YEAR",{"$f":"IF((ALL!$B$3-AUTOCOOL!A74)>40000,0,(ALL!$B$3-AUTOCOOL!A74))","v":1857}]
["2017-03-17",null,null,null,null,null,null,null,null,null,0,"OVER A YEAR",{"$f":"IF((ALL!$B$3-AUTOCOOL!A75)>40000,0,(ALL!$B$3-AUTOCOOL!A75))","v":1888}]
["2017-02-17",null,null,null,null,null,null,null,null,null,0,"OVER A YEAR",{"$f":"IF((ALL!$B$3-AUTOCOOL!A76)>40000,0,(ALL!$B$3-AUTOCOOL!A76))","v":1916}]
["2017-01-17",null,null,null,null,null,null,null,null,null,0,"OVER A YEAR",{"$f":"IF((ALL!$B$3-AUTOCOOL!A77)>40000,0,(ALL!$B$3-AUTOCOOL!A77))","v":1947}]
["2016-12-17",null,null,null,null,null,null,null,null,null,0,"OVER A YEAR",{"$f":"IF((ALL!$B$3-AUTOCOOL!A78)>40000,0,(ALL!$B$3-AUTOCOOL!A78))","v":1978}]
["2016-11-17",null,null,null,null,null,null,null,null,null,0,"OVER A YEAR",{"$f":"IF((ALL!$B$3-AUTOCOOL!A79)>40000,0,(ALL!$B$3-AUTOCOOL!A79))","v":2008}]
["2016-10-17",null,null,null,null,null,null,null,null,null,0,"OVER A YEAR",{"$f":"IF((ALL!$B$3-AUTOCOOL!A80)>40000,0,(ALL!$B$3-AUTOCOOL!A80))","v":2039}]
["2016-09-17",null,null,null,null,null,null,null,null,null,0,"OVER A YEAR",{"$f":"IF((ALL!$B$3-AUTOCOOL!A81)>40000,0,(ALL!$B$3-AUTOCOOL!A81))","v":2069}]
["2016-08-17",null,null,null,null,null,null,null,null,null,0,"OVER A YEAR",{"$f":"IF((ALL!$B$3-AUTOCOOL!A82)>40000,0,(ALL!$B$3-AUTOCOOL!A82))","v":2100}]
["2016-07-17",null,null,null,null,null,null,null,null,null,0,"OVER A YEAR",{"$f":"IF((ALL!$B$3-AUTOCOOL!A83)>40000,0,(ALL!$B$3-AUTOCOOL!A83))","v":2131}]
["2016-06-17",null,null,null,null,null,null,null,null,null,0,"OVER A YEAR",{"$f":"IF((ALL!$B$3-AUTOCOOL!A84)>40000,0,(ALL!$B$3-AUTOCOOL!A84))","v":2161}]
["2016-05-17",null,null,null,null,null,null,null,null,null,0,"OVER A YEAR",{"$f":"IF((ALL!$B$3-AUTOCOOL!A85)>40000,0,(ALL!$B$3-AUTOCOOL!A85))","v":2192}]
["2016-04-17",null,null,null,null,null,null,null,null,null,0,"OVER A YEAR",{"$f":"IF((ALL!$B$3-AUTOCOOL!A86)>40000,0,(ALL!$B$3-AUTOCOOL!A86))","v":2222}]
["2016-03-17",null,null,null,null,null,null,null,null,null,0,"OVER A YEAR",{"$f":"IF((ALL!$B$3-AUTOCOOL!A87)>40000,0,(ALL!$B$3-AUTOCOOL!A87))","v":2253}]
["2016-02-17",null,null,null,null,null,null,null,null,null,0,"OVER A YEAR",{"$f":"IF((ALL!$B$3-AUTOCOOL!A88)>40000,0,(ALL!$B$3-AUTOCOOL!A88))","v":2282}]
["2016-01-17",null,null,null,null,null,null,null,null,null,0,"OVER A YEAR",{"$f":"IF((ALL!$B$3-AUTOCOOL!A89)>40000,0,(ALL!$B$3-AUTOCOOL!A89))","v":2313}]
["2015-12-17",null,null,null,null,null,null,null,null,null,0,"OVER A YEAR",{"$f":"IF((ALL!$B$3-AUTOCOOL!A90)>40000,0,(ALL!$B$3-AUTOCOOL!A90))","v":2344}]
["2015-11-17",null,null,null,null,null,null,null,null,null,0,"OVER A YEAR",{"$f":"IF((ALL!$B$3-AUTOCOOL!A91)>40000,0,(ALL!$B$3-AUTOCOOL!A91))","v":2374}]
["2015-10-17",null,null,null,null,null,null,null,null,null,0,"OVER A YEAR",{"$f":"IF((ALL!$B$3-AUTOCOOL!A92)>40000,0,(ALL!$B$3-AUTOCOOL!A92))","v":2405}]
["2015-09-17",null,null,null,null,null,null,null,null,null,0,"OVER A YEAR",{"$f":"IF((ALL!$B$3-AUTOCOOL!A93)>40000,0,(ALL!$B$3-AUTOCOOL!A93))","v":2435}]
["2015-08-17",null,null,null,null,null,null,null,null,null,0,"OVER A YEAR",{"$f":"IF((ALL!$B$3-AUTOCOOL!A94)>40000,0,(ALL!$B$3-AUTOCOOL!A94))","v":2466}]
["2015-07-17",null,null,null,null,null,null,null,null,null,0,"OVER A YEAR",{"$f":"IF((ALL!$B$3-AUTOCOOL!A95)>40000,0,(ALL!$B$3-AUTOCOOL!A95))","v":2497}]
["2015-06-17",null,null,null,null,null,null,null,null,null,0,"OVER A YEAR",{"$f":"IF((ALL!$B$3-AUTOCOOL!A96)>40000,0,(ALL!$B$3-AUTOCOOL!A96))","v":2527}]
["2015-05-17",null,null,null,null,null,null,null,null,null,0,"OVER A YEAR",{"$f":"IF((ALL!$B$3-AUTOCOOL!A97)>40000,0,(ALL!$B$3-AUTOCOOL!A97))","v":2558}]
["2015-04-17",null,null,null,null,null,null,null,null,null,0,"OVER A YEAR",{"$f":"IF((ALL!$B$3-AUTOCOOL!A98)>40000,0,(ALL!$B$3-AUTOCOOL!A98))","v":2588}]
["2015-03-17",null,null,null,null,null,null,null,null,null,0,"OVER A YEAR",{"$f":"IF((ALL!$B$3-AUTOCOOL!A99)>40000,0,(ALL!$B$3-AUTOCOOL!A99))","v":2619}]
["2015-02-17",null,null,null,null,null,null,null,null,null,0,"OVER A YEAR",{"$f":"IF((ALL!$B$3-AUTOCOOL!A100)>40000,0,(ALL!$B$3-AUTOCOOL!A100))","v":2647}]
[null,null,null,null,null,null,null,null,null,null,0,0,{"$f":"IF((ALL!$B$3-AUTOCOOL!A101)>40000,0,(ALL!$B$3-AUTOCOOL!A101))","v":0}]
[null,null,null,null,null,null,null,null,null,null,0,0,{"$f":"IF((ALL!$B$3-AUTOCOOL!A102)>40000,0,(ALL!$B$3-AUTOCOOL!A102))","v":0}]
[null,null,null,null,null,null,null,null,null,null,0,0,{"$f":"IF((ALL!$B$3-AUTOCOOL!A103)>40000,0,(ALL!$B$3-AUTOCOOL!A103))","v":0}]
[null,null,null,null,null,null,null,null,null,null,0,0,{"$f":"IF((ALL!$B$3-AUTOCOOL!A104)>40000,0,(ALL!$B$3-AUTOCOOL!A104))","v":0}]
[null,null,null,null,null,null,null,null,null,null,0,0,{"$f":"IF((ALL!$B$3-AUTOCOOL!A105)>40000,0,(ALL!$B$3-AUTOCOOL!A105))","v":0}]
[null,null,null,null,null,null,null,null,null,null,0,0,{"$f":"IF((ALL!$B$3-AUTOCOOL!A106)>40000,0,(ALL!$B$3-AUTOCOOL!A106))","v":0}]
[null,null,null,null,null,null,null,null,null,null,0,0,{"$f":"IF((ALL!$B$3-AUTOCOOL!A107)>40000,0,(ALL!$B$3-AUTOCOOL!A107))","v":0}]
[null,null,null,null,null,null,null,null,null,null,0,0,{"$f":"IF((ALL!$B$3-AUTOCOOL!A108)>40000,0,(ALL!$B$3-AUTOCOOL!A108))","v":0}]
[null,null,null,null,null,null,null,null,null,null,0,0,{"$f":"IF((ALL!$B$3-AUTOCOOL!A109)>40000,0,(ALL!$B$3-AUTOCOOL!A109))","v":0}]
[null,null,null,null,null,null,null,null,null,null,0,0,{"$f":"IF((ALL!$B$3-AUTOCOOL!A110)>40000,0,(ALL!$B$3-AUTOCOOL!A110))","v":0}]
[null,null,null,null,null,null,null,null,null,null,0,0,{"$f":"IF((ALL!$B$3-AUTOCOOL!A111)>40000,0,(ALL!$B$3-AUTOCOOL!A111))","v":0}]
[null,null,null,null,null,null,null,null,null,null,0,0,{"$f":"IF((ALL!$B$3-AUTOCOOL!A112)>40000,0,(ALL!$B$3-AUTOCOOL!A112))","v":0}]
[null,null,null,null,null,null,null,null,null,null,0,0,{"$f":"IF((ALL!$B$3-AUTOCOOL!A113)>40000,0,(ALL!$B$3-AUTOCOOL!A113))","v":0}]
[null,null,null,null,null,null,null,null,null,null,0,0,{"$f":"IF((ALL!$B$3-AUTOCOOL!A114)>40000,0,(ALL!$B$3-AUTOCOOL!A114))","v":0}]
[null,null,null,null,null,null,null,null,null,null,0,0,{"$f":"IF((ALL!$B$3-AUTOCOOL!A115)>40000,0,(ALL!$B$3-AUTOCOOL!A115))","v":0}]
[null,null,null,null,null,null,null,null,null,null,0,0,{"$f":"IF((ALL!$B$3-AUTOCOOL!A116)>40000,0,(ALL!$B$3-AUTOCOOL!A116))","v":0}]
[null,null,null,null,null,null,null,null,null,null,0,0,{"$f":"IF((ALL!$B$3-AUTOCOOL!A117)>40000,0,(ALL!$B$3-AUTOCOOL!A117))","v":0}]
[null,null,null,null,null,null,null,null,null,null,0,0,{"$f":"IF((ALL!$B$3-AUTOCOOL!A118)>40000,0,(ALL!$B$3-AUTOCOOL!A118))","v":0}]
[null,null,null,null,null,null,null,null,null,null,0,0,{"$f":"IF((ALL!$B$3-AUTOCOOL!A119)>40000,0,(ALL!$B$3-AUTOCOOL!A119))","v":0}]
[null,null,null,null,null,null,null,null,null,null,0,0,{"$f":"IF((ALL!$B$3-AUTOCOOL!A120)>40000,0,(ALL!$B$3-AUTOCOOL!A120))","v":0}]
[null,null,null,null,null,null,null,null,null,null,0,0,{"$f":"IF((ALL!$B$3-AUTOCOOL!A121)>40000,0,(ALL!$B$3-AUTOCOOL!A121))","v":0}]
[null,null,null,null,null,null,null,null,null,null,0,0,{"$f":"IF((ALL!$B$3-AUTOCOOL!A122)>40000,0,(ALL!$B$3-AUTOCOOL!A122))","v":0}]
[null,null,null,null,null,null,null,null,null,null,0,0,{"$f":"IF((ALL!$B$3-AUTOCOOL!A123)>40000,0,(ALL!$B$3-AUTOCOOL!A123))","v":0}]
[null,null,null,null,null,null,null,null,null,null,0,0,{"$f":"IF((ALL!$B$3-AUTOCOOL!A124)>40000,0,(ALL!$B$3-AUTOCOOL!A124))","v":0}]
[null,null,null,null,null,null,null,null,null,null,0,0,{"$f":"IF((ALL!$B$3-AUTOCOOL!A125)>40000,0,(ALL!$B$3-AUTOCOOL!A125))","v":0}]
[null,null,null,null,null,null,null,null,null,null,0,0,{"$f":"IF((ALL!$B$3-AUTOCOOL!A126)>40000,0,(ALL!$B$3-AUTOCOOL!A126))","v":0}]
[null,null,null,null,null,null,null,null,null,null,0,0,{"$f":"IF((ALL!$B$3-AUTOCOOL!A127)>40000,0,(ALL!$B$3-AUTOCOOL!A127))","v":0}]
[null,null,null,null,null,null,null,null,null,null,0,0,{"$f":"IF((ALL!$B$3-AUTOCOOL!A128)>40000,0,(ALL!$B$3-AUTOCOOL!A128))","v":0}]
[null,null,null,null,null,null,null,null,null,null,0,0,{"$f":"IF((ALL!$B$3-AUTOCOOL!A129)>40000,0,(ALL!$B$3-AUTOCOOL!A129))","v":0}]
[null,null,null,null,null,null,null,null,null,null,0,0,{"$f":"IF((ALL!$B$3-AUTOCOOL!A130)>40000,0,(ALL!$B$3-AUTOCOOL!A130))","v":0}]
[null,null,null,null,null,null,null,null,null,null,0,0,{"$f":"IF((ALL!$B$3-AUTOCOOL!A131)>40000,0,(ALL!$B$3-AUTOCOOL!A131))","v":0}]
[null,null,null,null,null,null,null,null,null,null,0,0,{"$f":"IF((ALL!$B$3-AUTOCOOL!A132)>40000,0,(ALL!$B$3-AUTOCOOL!A132))","v":0}]
[null,null,null,null,null,null,null,null,null,null,0,0,{"$f":"IF((ALL!$B$3-AUTOCOOL!A133)>40000,0,(ALL!$B$3-AUTOCOOL!A133))","v":0}]
[null,null,null,null,null,null,null,null,null,null,0,0,{"$f":"IF((ALL!$B$3-AUTOCOOL!A134)>40000,0,(ALL!$B$3-AUTOCOOL!A134))","v":0}]
[null,null,null,null,null,null,null,null,null,null,{"$f":"SUM(C135:J135)","v":0},0,{"$f":"IF((ALL!$B$3-AUTOCOOL!A135)>40000,0,(ALL!$B$3-AUTOCOOL!A135))","v":0}]
[null,null,null,null,null,null,null,null,null,null,0,{"$f":"IF(AND(M136>365),\"OVER A YEAR\",IF(AND(M136>0,M136<31),\"1 MONTH\",IF(AND(M136>30,M136<61),\"2 MONTHS\",IF(AND(M136>60,M136<91),\"3 MONTHS\",IF(AND(M136>90,M136<181),\"3 : 6 MONTHS\",IF(AND(M136>180,M136<271),\"6 : 9 MONTHS\",IF(AND(M136>270,M136<366),\"9 : 12 MONTHS\",IF(M136=0,0))))))))","v":0},{"$f":"IF((ALL!$B$3-AUTOCOOL!A136)>40000,0,(ALL!$B$3-AUTOCOOL!A136))","v":0}]
[null,null,null,null,null,null,null,null,null,null,0,0,{"$f":"IF((ALL!$B$3-AUTOCOOL!A137)>40000,0,(ALL!$B$3-AUTOCOOL!A137))","v":0}]
[null,null,null,null,null,null,null,null,null,null,0,0,{"$f":"IF((ALL!$B$3-AUTOCOOL!A138)>40000,0,(ALL!$B$3-AUTOCOOL!A138))","v":0}]
[null,null,null,null,null,null,null,null,null,null,0,0,{"$f":"IF((ALL!$B$3-AUTOCOOL!A139)>40000,0,(ALL!$B$3-AUTOCOOL!A139))","v":0}]
[null,null,null,null,null,null,null,null,null,null,0,0,{"$f":"IF((ALL!$B$3-AUTOCOOL!A140)>40000,0,(ALL!$B$3-AUTOCOOL!A140))","v":0}]
[null,null,null,null,null,null,null,null,null,null,0,0,{"$f":"IF((ALL!$B$3-AUTOCOOL!A141)>40000,0,(ALL!$B$3-AUTOCOOL!A141))","v":0}]
[null,null,null,null,null,null,null,null,null,null,0,0,{"$f":"IF((ALL!$B$3-AUTOCOOL!A142)>40000,0,(ALL!$B$3-AUTOCOOL!A142))","v":0}]
[null,null,null,null,null,null,null,null,null,null,0,0,{"$f":"IF((ALL!$B$3-AUTOCOOL!A143)>40000,0,(ALL!$B$3-AUTOCOOL!A143))","v":0}]
[null,null,null,null,null,null,null,null,null,null,0,0,{"$f":"IF((ALL!$B$3-AUTOCOOL!A144)>40000,0,(ALL!$B$3-AUTOCOOL!A144))","v":0}]
[null,null,null,null,null,null,null,null,null,null,0,0,{"$f":"IF((ALL!$B$3-AUTOCOOL!A145)>40000,0,(ALL!$B$3-AUTOCOOL!A145))","v":0}]
[null,null,null,null,null,null,null,null,null,null,0,0,{"$f":"IF((ALL!$B$3-AUTOCOOL!A146)>40000,0,(ALL!$B$3-AUTOCOOL!A146))","v":0}]
[null,null,null,null,null,null,null,null,null,null,0,0,{"$f":"IF((ALL!$B$3-AUTOCOOL!A147)>40000,0,(ALL!$B$3-AUTOCOOL!A147))","v":0}]
[null,null,null,null,null,null,null,null,null,null,0,0,{"$f":"IF((ALL!$B$3-AUTOCOOL!A148)>40000,0,(ALL!$B$3-AUTOCOOL!A148))","v":0}]
[null,null,null,null,null,null,null,null,null,null,0,0,{"$f":"IF((ALL!$B$3-AUTOCOOL!A149)>40000,0,(ALL!$B$3-AUTOCOOL!A149))","v":0}]
[null,null,null,null,null,null,null,null,null,null,0,0,{"$f":"IF((ALL!$B$3-AUTOCOOL!A150)>40000,0,(ALL!$B$3-AUTOCOOL!A150))","v":0}]
[null,null,null,null,null,null,null,null,null,null,0,0,{"$f":"IF((ALL!$B$3-AUTOCOOL!A151)>40000,0,(ALL!$B$3-AUTOCOOL!A151))","v":0}]
[null,null,null,null,null,null,null,null,null,null,0,0,{"$f":"IF((ALL!$B$3-AUTOCOOL!A152)>40000,0,(ALL!$B$3-AUTOCOOL!A152))","v":0}]
[null,null,null,null,null,null,null,null,null,null,0,0,{"$f":"IF((ALL!$B$3-AUTOCOOL!A153)>40000,0,(ALL!$B$3-AUTOCOOL!A153))","v":0}]
[null,null,null,null,null,null,null,null,null,null,0,0,{"$f":"IF((ALL!$B$3-AUTOCOOL!A154)>40000,0,(ALL!$B$3-AUTOCOOL!A154))","v":0}]
[null,null,null,null,null,null,null,null,null,null,0,0,{"$f":"IF((ALL!$B$3-AUTOCOOL!A155)>40000,0,(ALL!$B$3-AUTOCOOL!A155))","v":0}]
[null,null,null,null,null,null,null,null,null,null,0,0,{"$f":"IF((ALL!$B$3-AUTOCOOL!A156)>40000,0,(ALL!$B$3-AUTOCOOL!A156))","v":0}]
[null,null,null,null,null,null,null,null,null,null,0,0,{"$f":"IF((ALL!$B$3-AUTOCOOL!A157)>40000,0,(ALL!$B$3-AUTOCOOL!A157))","v":0}]
[null,null,null,null,null,null,null,null,null,null,0,0,{"$f":"IF((ALL!$B$3-AUTOCOOL!A158)>40000,0,(ALL!$B$3-AUTOCOOL!A158))","v":0}]
[null,null,null,null,null,null,null,null,null,null,0,0,{"$f":"IF((ALL!$B$3-AUTOCOOL!A159)>40000,0,(ALL!$B$3-AUTOCOOL!A159))","v":0}]
[null,null,null,null,null,null,null,null,null,null,0,0,{"$f":"IF((ALL!$B$3-AUTOCOOL!A160)>40000,0,(ALL!$B$3-AUTOCOOL!A160))","v":0}]
[null,null,null,null,null,null,null,null,null,null,0,0,{"$f":"IF((ALL!$B$3-AUTOCOOL!A161)>40000,0,(ALL!$B$3-AUTOCOOL!A161))","v":0}]
[null,null,null,null,null,null,null,null,null,null,0,0,{"$f":"IF((ALL!$B$3-AUTOCOOL!A162)>40000,0,(ALL!$B$3-AUTOCOOL!A162))","v":0}]
[null,null,null,null,null,null,null,null,null,null,0,0,{"$f":"IF((ALL!$B$3-AUTOCOOL!A163)>40000,0,(ALL!$B$3-AUTOCOOL!A163))","v":0}]
[null,null,null,null,null,null,null,null,null,null,0,0,{"$f":"IF((ALL!$B$3-AUTOCOOL!A164)>40000,0,(ALL!$B$3-AUTOCOOL!A164))","v":0}]
[null,null,null,null,null,null,null,null,null,null,0,0,{"$f":"IF((ALL!$B$3-AUTOCOOL!A165)>40000,0,(ALL!$B$3-AUTOCOOL!A165))","v":0}]
[null,null,null,null,null,null,null,null,null,null,0,0,{"$f":"IF((ALL!$B$3-AUTOCOOL!A166)>40000,0,(ALL!$B$3-AUTOCOOL!A166))","v":0}]
[null,null,null,null,null,null,null,null,null,null,0,0,{"$f":"IF((ALL!$B$3-AUTOCOOL!A167)>40000,0,(ALL!$B$3-AUTOCOOL!A167))","v":0}]
[null,null,null,null,null,null,null,null,null,null,0,0,{"$f":"IF((ALL!$B$3-AUTOCOOL!A168)>40000,0,(ALL!$B$3-AUTOCOOL!A168))","v":0}]
[null,null,null,null,null,null,null,null,null,null,0,0,{"$f":"IF((ALL!$B$3-AUTOCOOL!A169)>40000,0,(ALL!$B$3-AUTOCOOL!A169))","v":0}]
[null,null,null,null,null,null,null,null,null,null,0,0,{"$f":"IF((ALL!$B$3-AUTOCOOL!A170)>40000,0,(ALL!$B$3-AUTOCOOL!A170))","v":0}]
[null,null,null,null,null,null,null,null,null,null,0,0,{"$f":"IF((ALL!$B$3-AUTOCOOL!A171)>40000,0,(ALL!$B$3-AUTOCOOL!A171))","v":0}]
[null,null,null,null,null,null,null,null,null,null,0,0,{"$f":"IF((ALL!$B$3-AUTOCOOL!A172)>40000,0,(ALL!$B$3-AUTOCOOL!A172))","v":0}]
[null,null,null,null,null,null,null,null,null,null,0,0,{"$f":"IF((ALL!$B$3-AUTOCOOL!A173)>40000,0,(ALL!$B$3-AUTOCOOL!A173))","v":0}]
[null,null,null,null,null,null,null,null,null,null,0,0,{"$f":"IF((ALL!$B$3-AUTOCOOL!A174)>40000,0,(ALL!$B$3-AUTOCOOL!A174))","v":0}]
[null,null,null,null,null,null,null,null,null,null,0,0,{"$f":"IF((ALL!$B$3-AUTOCOOL!A175)>40000,0,(ALL!$B$3-AUTOCOOL!A175))","v":0}]
[null,null,null,null,null,null,null,null,null,null,0,0,{"$f":"IF((ALL!$B$3-AUTOCOOL!A176)>40000,0,(ALL!$B$3-AUTOCOOL!A176))","v":0}]
[null,null,null,null,null,null,null,null,null,null,0,0,{"$f":"IF((ALL!$B$3-AUTOCOOL!A177)>40000,0,(ALL!$B$3-AUTOCOOL!A177))","v":0}]
[null,null,null,null,null,null,null,null,null,null,0,0,{"$f":"IF((ALL!$B$3-AUTOCOOL!A178)>40000,0,(ALL!$B$3-AUTOCOOL!A178))","v":0}]
[null,null,null,null,null,null,null,null,null,null,0,0,{"$f":"IF((ALL!$B$3-AUTOCOOL!A179)>40000,0,(ALL!$B$3-AUTOCOOL!A179))","v":0}]
[null,null,null,null,null,null,null,null,null,null,0,0,{"$f":"IF((ALL!$B$3-AUTOCOOL!A180)>40000,0,(ALL!$B$3-AUTOCOOL!A180))","v":0}]
[null,null,null,null,null,null,null,null,null,null,0,0,{"$f":"IF((ALL!$B$3-AUTOCOOL!A181)>40000,0,(ALL!$B$3-AUTOCOOL!A181))","v":0}]
[null,null,null,null,null,null,null,null,null,null,0,0,{"$f":"IF((ALL!$B$3-AUTOCOOL!A182)>40000,0,(ALL!$B$3-AUTOCOOL!A182))","v":0}]
[null,null,null,null,null,null,null,null,null,null,0,0,{"$f":"IF((ALL!$B$3-AUTOCOOL!A183)>40000,0,(ALL!$B$3-AUTOCOOL!A183))","v":0}]
[null,null,null,null,null,null,null,null,null,null,0,0,{"$f":"IF((ALL!$B$3-AUTOCOOL!A184)>40000,0,(ALL!$B$3-AUTOCOOL!A184))","v":0}]
[null,null,null,null,null,null,null,null,null,null,0,0,{"$f":"IF((ALL!$B$3-AUTOCOOL!A185)>40000,0,(ALL!$B$3-AUTOCOOL!A185))","v":0}]
[null,null,null,null,null,null,null,null,null,null,0,0,{"$f":"IF((ALL!$B$3-AUTOCOOL!A186)>40000,0,(ALL!$B$3-AUTOCOOL!A186))","v":0}]
[null,null,null,null,null,null,null,null,null,null,0,0,{"$f":"IF((ALL!$B$3-AUTOCOOL!A187)>40000,0,(ALL!$B$3-AUTOCOOL!A187))","v":0}]
[null,null,null,null,null,null,null,null,null,null,0,0,{"$f":"IF((ALL!$B$3-AUTOCOOL!A188)>40000,0,(ALL!$B$3-AUTOCOOL!A188))","v":0}]
[null,null,null,null,null,null,null,null,null,null,0,0,{"$f":"IF((ALL!$B$3-AUTOCOOL!A189)>40000,0,(ALL!$B$3-AUTOCOOL!A189))","v":0}]
[null,null,null,null,null,null,null,null,null,null,0,0,{"$f":"IF((ALL!$B$3-AUTOCOOL!A190)>40000,0,(ALL!$B$3-AUTOCOOL!A190))","v":0}]
[null,null,null,null,null,null,null,null,null,null,0,0,{"$f":"IF((ALL!$B$3-AUTOCOOL!A191)>40000,0,(ALL!$B$3-AUTOCOOL!A191))","v":0}]
[null,null,null,null,null,null,null,null,null,null,0,0,{"$f":"IF((ALL!$B$3-AUTOCOOL!A192)>40000,0,(ALL!$B$3-AUTOCOOL!A192))","v":0}]
[null,null,null,null,null,null,null,null,null,null,0,0,{"$f":"IF((ALL!$B$3-AUTOCOOL!A193)>40000,0,(ALL!$B$3-AUTOCOOL!A193))","v":0}]
[null,null,null,null,null,null,null,null,null,null,0,0,{"$f":"IF((ALL!$B$3-AUTOCOOL!A194)>40000,0,(ALL!$B$3-AUTOCOOL!A194))","v":0}]
[null,null,null,null,null,null,null,null,null,null,0,0,{"$f":"IF((ALL!$B$3-AUTOCOOL!A195)>40000,0,(ALL!$B$3-AUTOCOOL!A195))","v":0}]
[null,null,null,null,null,null,null,null,null,null,0,0,{"$f":"IF((ALL!$B$3-AUTOCOOL!A196)>40000,0,(ALL!$B$3-AUTOCOOL!A196))","v":0}]
[null,null,null,null,null,null,null,null,null,null,0,0,{"$f":"IF((ALL!$B$3-AUTOCOOL!A197)>40000,0,(ALL!$B$3-AUTOCOOL!A197))","v":0}]
[null,null,null,null,null,null,null,null,null,null,0,0,{"$f":"IF((ALL!$B$3-AUTOCOOL!A198)>40000,0,(ALL!$B$3-AUTOCOOL!A198))","v":0}]
[null,null,null,null,null,null,null,null,null,null,{"$f":"SUM(C199:J199)","v":0},0,{"$f":"IF((ALL!$B$3-AUTOCOOL!A199)>40000,0,(ALL!$B$3-AUTOCOOL!A199))","v":0}]
[null,null,null,null,null,null,null,null,null,null,0,{"$f":"IF(AND(M200>365),\"OVER A YEAR\",IF(AND(M200>0,M200<31),\"1 MONTH\",IF(AND(M200>30,M200<61),\"2 MONTHS\",IF(AND(M200>60,M200<91),\"3 MONTHS\",IF(AND(M200>90,M200<181),\"3 : 6 MONTHS\",IF(AND(M200>180,M200<271),\"6 : 9 MONTHS\",IF(AND(M200>270,M200<366),\"9 : 12 MONTHS\",IF(M200=0,0))))))))","v":0},{"$f":"IF((ALL!$B$3-AUTOCOOL!A200)>40000,0,(ALL!$B$3-AUTOCOOL!A200))","v":0}]
[null,null,null,null,null,null,null,null,null,null,0,0,{"$f":"IF((ALL!$B$3-AUTOCOOL!A201)>40000,0,(ALL!$B$3-AUTOCOOL!A201))","v":0}]
[null,null,null,null,null,null,null,null,null,null,0,0,{"$f":"IF((ALL!$B$3-AUTOCOOL!A202)>40000,0,(ALL!$B$3-AUTOCOOL!A202))","v":0}]
[null,null,null,null,null,null,null,null,null,null,0,0,{"$f":"IF((ALL!$B$3-AUTOCOOL!A203)>40000,0,(ALL!$B$3-AUTOCOOL!A203))","v":0}]
[null,null,null,null,null,null,null,null,null,null,0,0,{"$f":"IF((ALL!$B$3-AUTOCOOL!A204)>40000,0,(ALL!$B$3-AUTOCOOL!A204))","v":0}]
[null,null,null,null,null,null,null,null,null,null,0,0,{"$f":"IF((ALL!$B$3-AUTOCOOL!A205)>40000,0,(ALL!$B$3-AUTOCOOL!A205))","v":0}]
[null,null,null,null,null,null,null,null,null,null,0,0,{"$f":"IF((ALL!$B$3-AUTOCOOL!A206)>40000,0,(ALL!$B$3-AUTOCOOL!A206))","v":0}]
[null,null,null,null,null,null,null,null,null,null,0,0,{"$f":"IF((ALL!$B$3-AUTOCOOL!A207)>40000,0,(ALL!$B$3-AUTOCOOL!A207))","v":0}]
[null,null,null,null,null,null,null,null,null,null,0,0,{"$f":"IF((ALL!$B$3-AUTOCOOL!A208)>40000,0,(ALL!$B$3-AUTOCOOL!A208))","v":0}]
[null,null,null,null,null,null,null,null,null,null,0,0,{"$f":"IF((ALL!$B$3-AUTOCOOL!A209)>40000,0,(ALL!$B$3-AUTOCOOL!A209))","v":0}]
[null,null,null,null,null,null,null,null,null,null,0,0,{"$f":"IF((ALL!$B$3-AUTOCOOL!A210)>40000,0,(ALL!$B$3-AUTOCOOL!A210))","v":0}]
[null,null,null,null,null,null,null,null,null,null,0,0,{"$f":"IF((ALL!$B$3-AUTOCOOL!A211)>40000,0,(ALL!$B$3-AUTOCOOL!A211))","v":0}]
[null,null,null,null,null,null,null,null,null,null,0,0,{"$f":"IF((ALL!$B$3-AUTOCOOL!A212)>40000,0,(ALL!$B$3-AUTOCOOL!A212))","v":0}]
[null,null,null,null,null,null,null,null,null,null,0,0,{"$f":"IF((ALL!$B$3-AUTOCOOL!A213)>40000,0,(ALL!$B$3-AUTOCOOL!A213))","v":0}]
[null,null,null,null,null,null,null,null,null,null,0,0,{"$f":"IF((ALL!$B$3-AUTOCOOL!A214)>40000,0,(ALL!$B$3-AUTOCOOL!A214))","v":0}]
[null,null,null,null,null,null,null,null,null,null,0,0,{"$f":"IF((ALL!$B$3-AUTOCOOL!A215)>40000,0,(ALL!$B$3-AUTOCOOL!A215))","v":0}]
[null,null,null,null,null,null,null,null,null,null,0,0,{"$f":"IF((ALL!$B$3-AUTOCOOL!A216)>40000,0,(ALL!$B$3-AUTOCOOL!A216))","v":0}]
[null,null,null,null,null,null,null,null,null,null,0,0,{"$f":"IF((ALL!$B$3-AUTOCOOL!A217)>40000,0,(ALL!$B$3-AUTOCOOL!A217))","v":0}]
[null,null,null,null,null,null,null,null,null,null,0,0,{"$f":"IF((ALL!$B$3-AUTOCOOL!A218)>40000,0,(ALL!$B$3-AUTOCOOL!A218))","v":0}]
[null,null,null,null,null,null,null,null,null,null,0,0,{"$f":"IF((ALL!$B$3-AUTOCOOL!A219)>40000,0,(ALL!$B$3-AUTOCOOL!A219))","v":0}]
[null,null,null,null,null,null,null,null,null,null,0,0,{"$f":"IF((ALL!$B$3-AUTOCOOL!A220)>40000,0,(ALL!$B$3-AUTOCOOL!A220))","v":0}]
[null,null,null,null,null,null,null,null,null,null,0,0,{"$f":"IF((ALL!$B$3-AUTOCOOL!A221)>40000,0,(ALL!$B$3-AUTOCOOL!A221))","v":0}]
[null,null,null,null,null,null,null,null,null,null,0,0,{"$f":"IF((ALL!$B$3-AUTOCOOL!A222)>40000,0,(ALL!$B$3-AUTOCOOL!A222))","v":0}]
[null,null,null,null,null,null,null,null,null,null,0,0,{"$f":"IF((ALL!$B$3-AUTOCOOL!A223)>40000,0,(ALL!$B$3-AUTOCOOL!A223))","v":0}]
[null,null,null,null,null,null,null,null,null,null,0,0,{"$f":"IF((ALL!$B$3-AUTOCOOL!A224)>40000,0,(ALL!$B$3-AUTOCOOL!A224))","v":0}]
[null,null,null,null,null,null,null,null,null,null,0,0,{"$f":"IF((ALL!$B$3-AUTOCOOL!A225)>40000,0,(ALL!$B$3-AUTOCOOL!A225))","v":0}]
[null,null,null,null,null,null,null,null,null,null,0,0,{"$f":"IF((ALL!$B$3-AUTOCOOL!A226)>40000,0,(ALL!$B$3-AUTOCOOL!A226))","v":0}]
[null,null,null,null,null,null,null,null,null,null,0,0,{"$f":"IF((ALL!$B$3-AUTOCOOL!A227)>40000,0,(ALL!$B$3-AUTOCOOL!A227))","v":0}]
[null,null,null,null,null,null,null,null,null,null,0,0,{"$f":"IF((ALL!$B$3-AUTOCOOL!A228)>40000,0,(ALL!$B$3-AUTOCOOL!A228))","v":0}]
[null,null,null,null,null,null,null,null,null,null,0,0,{"$f":"IF((ALL!$B$3-AUTOCOOL!A229)>40000,0,(ALL!$B$3-AUTOCOOL!A229))","v":0}]
[null,null,null,null,null,null,null,null,null,null,0,0,{"$f":"IF((ALL!$B$3-AUTOCOOL!A230)>40000,0,(ALL!$B$3-AUTOCOOL!A230))","v":0}]
[null,null,null,null,null,null,null,null,null,null,0,0,{"$f":"IF((ALL!$B$3-AUTOCOOL!A231)>40000,0,(ALL!$B$3-AUTOCOOL!A231))","v":0}]
[null,null,null,null,null,null,null,null,null,null,0,0,{"$f":"IF((ALL!$B$3-AUTOCOOL!A232)>40000,0,(ALL!$B$3-AUTOCOOL!A232))","v":0}]
[null,null,null,null,null,null,null,null,null,null,0,0,{"$f":"IF((ALL!$B$3-AUTOCOOL!A233)>40000,0,(ALL!$B$3-AUTOCOOL!A233))","v":0}]
[null,null,null,null,null,null,null,null,null,null,0,0,{"$f":"IF((ALL!$B$3-AUTOCOOL!A234)>40000,0,(ALL!$B$3-AUTOCOOL!A234))","v":0}]
[null,null,null,null,null,null,null,null,null,null,0,0,{"$f":"IF((ALL!$B$3-AUTOCOOL!A235)>40000,0,(ALL!$B$3-AUTOCOOL!A235))","v":0}]
[null,null,null,null,null,null,null,null,null,null,0,0,{"$f":"IF((ALL!$B$3-AUTOCOOL!A236)>40000,0,(ALL!$B$3-AUTOCOOL!A236))","v":0}]
[null,null,null,null,null,null,null,null,null,null,0,0,{"$f":"IF((ALL!$B$3-AUTOCOOL!A237)>40000,0,(ALL!$B$3-AUTOCOOL!A237))","v":0}]
[null,null,null,null,null,null,null,null,null,null,0,0,{"$f":"IF((ALL!$B$3-AUTOCOOL!A238)>40000,0,(ALL!$B$3-AUTOCOOL!A238))","v":0}]
[null,null,null,null,null,null,null,null,null,null,0,0,{"$f":"IF((ALL!$B$3-AUTOCOOL!A239)>40000,0,(ALL!$B$3-AUTOCOOL!A239))","v":0}]
[null,null,null,null,null,null,null,null,null,null,0,0,{"$f":"IF((ALL!$B$3-AUTOCOOL!A240)>40000,0,(ALL!$B$3-AUTOCOOL!A240))","v":0}]
[null,null,null,null,null,null,null,null,null,null,0,0,{"$f":"IF((ALL!$B$3-AUTOCOOL!A241)>40000,0,(ALL!$B$3-AUTOCOOL!A241))","v":0}]
[null,null,null,null,null,null,null,null,null,null,0,0,{"$f":"IF((ALL!$B$3-AUTOCOOL!A242)>40000,0,(ALL!$B$3-AUTOCOOL!A242))","v":0}]
[null,null,null,null,null,null,null,null,null,null,0,0,{"$f":"IF((ALL!$B$3-AUTOCOOL!A243)>40000,0,(ALL!$B$3-AUTOCOOL!A243))","v":0}]
[null,null,null,null,null,null,null,null,null,null,0,0,{"$f":"IF((ALL!$B$3-AUTOCOOL!A244)>40000,0,(ALL!$B$3-AUTOCOOL!A244))","v":0}]
[null,null,null,null,null,null,null,null,null,null,0,0,{"$f":"IF((ALL!$B$3-AUTOCOOL!A245)>40000,0,(ALL!$B$3-AUTOCOOL!A245))","v":0}]
[null,null,null,null,null,null,null,null,null,null,0,0,{"$f":"IF((ALL!$B$3-AUTOCOOL!A246)>40000,0,(ALL!$B$3-AUTOCOOL!A246))","v":0}]
[null,null,null,null,null,null,null,null,null,null,0,0,{"$f":"IF((ALL!$B$3-AUTOCOOL!A247)>40000,0,(ALL!$B$3-AUTOCOOL!A247))","v":0}]
[null,null,null,null,null,null,null,null,null,null,0,0,{"$f":"IF((ALL!$B$3-AUTOCOOL!A248)>40000,0,(ALL!$B$3-AUTOCOOL!A248))","v":0}]
[null,null,null,null,null,null,null,null,null,null,0,0,{"$f":"IF((ALL!$B$3-AUTOCOOL!A249)>40000,0,(ALL!$B$3-AUTOCOOL!A249))","v":0}]
[null,null,null,null,null,null,null,null,null,null,0,0,{"$f":"IF((ALL!$B$3-AUTOCOOL!A250)>40000,0,(ALL!$B$3-AUTOCOOL!A250))","v":0}]
[null,null,null,null,null,null,null,null,null,null,0,0,{"$f":"IF((ALL!$B$3-AUTOCOOL!A251)>40000,0,(ALL!$B$3-AUTOCOOL!A251))","v":0}]
[null,null,null,null,null,null,null,null,null,null,0,0,{"$f":"IF((ALL!$B$3-AUTOCOOL!A252)>40000,0,(ALL!$B$3-AUTOCOOL!A252))","v":0}]
[null,null,null,null,null,null,null,null,null,null,0,0,{"$f":"IF((ALL!$B$3-AUTOCOOL!A253)>40000,0,(ALL!$B$3-AUTOCOOL!A253))","v":0}]
[null,null,null,null,null,null,null,null,null,null,0,0,{"$f":"IF((ALL!$B$3-AUTOCOOL!A254)>40000,0,(ALL!$B$3-AUTOCOOL!A254))","v":0}]
[null,null,null,null,null,null,null,null,null,null,0,0,{"$f":"IF((ALL!$B$3-AUTOCOOL!A255)>40000,0,(ALL!$B$3-AUTOCOOL!A255))","v":0}]
[null,null,null,null,null,null,null,null,null,null,0,0,{"$f":"IF((ALL!$B$3-AUTOCOOL!A256)>40000,0,(ALL!$B$3-AUTOCOOL!A256))","v":0}]
[null,null,null,null,null,null,null,null,null,null,0,0,{"$f":"IF((ALL!$B$3-AUTOCOOL!A257)>40000,0,(ALL!$B$3-AUTOCOOL!A257))","v":0}]
[null,null,null,null,null,null,null,null,null,null,0,0,{"$f":"IF((ALL!$B$3-AUTOCOOL!A258)>40000,0,(ALL!$B$3-AUTOCOOL!A258))","v":0}]
[null,null,null,null,null,null,null,null,null,null,0,0,{"$f":"IF((ALL!$B$3-AUTOCOOL!A259)>40000,0,(ALL!$B$3-AUTOCOOL!A259))","v":0}]
[null,null,null,null,null,null,null,null,null,null,0,0,{"$f":"IF((ALL!$B$3-AUTOCOOL!A260)>40000,0,(ALL!$B$3-AUTOCOOL!A260))","v":0}]
[null,null,null,null,null,null,null,null,null,null,0,0,{"$f":"IF((ALL!$B$3-AUTOCOOL!A261)>40000,0,(ALL!$B$3-AUTOCOOL!A261))","v":0}]
[null,null,null,null,null,null,null,null,null,null,0,0,{"$f":"IF((ALL!$B$3-AUTOCOOL!A262)>40000,0,(ALL!$B$3-AUTOCOOL!A262))","v":0}]
[null,null,null,null,null,null,null,null,null,null,{"$f":"SUM(C263:J263)","v":0},0,{"$f":"IF((ALL!$B$3-AUTOCOOL!A263)>40000,0,(ALL!$B$3-AUTOCOOL!A263))","v":0}]
[null,null,null,null,null,null,null,null,null,null,0,{"$f":"IF(AND(M264>365),\"OVER A YEAR\",IF(AND(M264>0,M264<31),\"1 MONTH\",IF(AND(M264>30,M264<61),\"2 MONTHS\",IF(AND(M264>60,M264<91),\"3 MONTHS\",IF(AND(M264>90,M264<181),\"3 : 6 MONTHS\",IF(AND(M264>180,M264<271),\"6 : 9 MONTHS\",IF(AND(M264>270,M264<366),\"9 : 12 MONTHS\",IF(M264=0,0))))))))","v":0},{"$f":"IF((ALL!$B$3-AUTOCOOL!A264)>40000,0,(ALL!$B$3-AUTOCOOL!A264))","v":0}]
[null,null,null,null,null,null,null,null,null,null,0,0,{"$f":"IF((ALL!$B$3-AUTOCOOL!A265)>40000,0,(ALL!$B$3-AUTOCOOL!A265))","v":0}]
[null,null,null,null,null,null,null,null,null,null,0,0,{"$f":"IF((ALL!$B$3-AUTOCOOL!A266)>40000,0,(ALL!$B$3-AUTOCOOL!A266))","v":0}]
[null,null,null,null,null,null,null,null,null,null,0,0,{"$f":"IF((ALL!$B$3-AUTOCOOL!A267)>40000,0,(ALL!$B$3-AUTOCOOL!A267))","v":0}]
[null,null,null,null,null,null,null,null,null,null,0,0,{"$f":"IF((ALL!$B$3-AUTOCOOL!A268)>40000,0,(ALL!$B$3-AUTOCOOL!A268))","v":0}]
[null,null,null,null,null,null,null,null,null,null,0,0,{"$f":"IF((ALL!$B$3-AUTOCOOL!A269)>40000,0,(ALL!$B$3-AUTOCOOL!A269))","v":0}]
[null,null,null,null,null,null,null,null,null,null,0,0,{"$f":"IF((ALL!$B$3-AUTOCOOL!A270)>40000,0,(ALL!$B$3-AUTOCOOL!A270))","v":0}]
[null,null,null,null,null,null,null,null,null,null,0,0,{"$f":"IF((ALL!$B$3-AUTOCOOL!A271)>40000,0,(ALL!$B$3-AUTOCOOL!A271))","v":0}]
[null,null,null,null,null,null,null,null,null,null,0,0,{"$f":"IF((ALL!$B$3-AUTOCOOL!A272)>40000,0,(ALL!$B$3-AUTOCOOL!A272))","v":0}]
[null,null,null,null,null,null,null,null,null,null,0,0,{"$f":"IF((ALL!$B$3-AUTOCOOL!A273)>40000,0,(ALL!$B$3-AUTOCOOL!A273))","v":0}]
[null,null,null,null,null,null,null,null,null,null,0,0,{"$f":"IF((ALL!$B$3-AUTOCOOL!A274)>40000,0,(ALL!$B$3-AUTOCOOL!A274))","v":0}]
[null,null,null,null,null,null,null,null,null,null,0,0,{"$f":"IF((ALL!$B$3-AUTOCOOL!A275)>40000,0,(ALL!$B$3-AUTOCOOL!A275))","v":0}]
[null,null,null,null,null,null,null,null,null,null,0,0,{"$f":"IF((ALL!$B$3-AUTOCOOL!A276)>40000,0,(ALL!$B$3-AUTOCOOL!A276))","v":0}]
[null,null,null,null,null,null,null,null,null,null,0,0,{"$f":"IF((ALL!$B$3-AUTOCOOL!A277)>40000,0,(ALL!$B$3-AUTOCOOL!A277))","v":0}]
[null,null,null,null,null,null,null,null,null,null,0,0,{"$f":"IF((ALL!$B$3-AUTOCOOL!A278)>40000,0,(ALL!$B$3-AUTOCOOL!A278))","v":0}]
[null,null,null,null,null,null,null,null,null,null,0,0,{"$f":"IF((ALL!$B$3-AUTOCOOL!A279)>40000,0,(ALL!$B$3-AUTOCOOL!A279))","v":0}]
[null,null,null,null,null,null,null,null,null,null,0,0,{"$f":"IF((ALL!$B$3-AUTOCOOL!A280)>40000,0,(ALL!$B$3-AUTOCOOL!A280))","v":0}]
[null,null,null,null,null,null,null,null,null,null,0,0,{"$f":"IF((ALL!$B$3-AUTOCOOL!A281)>40000,0,(ALL!$B$3-AUTOCOOL!A281))","v":0}]
[null,null,null,null,null,null,null,null,null,null,0,0,{"$f":"IF((ALL!$B$3-AUTOCOOL!A282)>40000,0,(ALL!$B$3-AUTOCOOL!A282))","v":0}]
[null,null,null,null,null,null,null,null,null,null,0,0,{"$f":"IF((ALL!$B$3-AUTOCOOL!A283)>40000,0,(ALL!$B$3-AUTOCOOL!A283))","v":0}]
[null,null,null,null,null,null,null,null,null,null,0,0,{"$f":"IF((ALL!$B$3-AUTOCOOL!A284)>40000,0,(ALL!$B$3-AUTOCOOL!A284))","v":0}]
[null,null,null,null,null,null,null,null,null,null,0,0,{"$f":"IF((ALL!$B$3-AUTOCOOL!A285)>40000,0,(ALL!$B$3-AUTOCOOL!A285))","v":0}]
[null,null,null,null,null,null,null,null,null,null,0,0,{"$f":"IF((ALL!$B$3-AUTOCOOL!A286)>40000,0,(ALL!$B$3-AUTOCOOL!A286))","v":0}]
[null,null,null,null,null,null,null,null,null,null,0,0,{"$f":"IF((ALL!$B$3-AUTOCOOL!A287)>40000,0,(ALL!$B$3-AUTOCOOL!A287))","v":0}]
[null,null,null,null,null,null,null,null,null,null,0,0,{"$f":"IF((ALL!$B$3-AUTOCOOL!A288)>40000,0,(ALL!$B$3-AUTOCOOL!A288))","v":0}]
[null,null,null,null,null,null,null,null,null,null,0,0,{"$f":"IF((ALL!$B$3-AUTOCOOL!A289)>40000,0,(ALL!$B$3-AUTOCOOL!A289))","v":0}]
[null,null,null,null,null,null,null,null,null,null,0,0,{"$f":"IF((ALL!$B$3-AUTOCOOL!A290)>40000,0,(ALL!$B$3-AUTOCOOL!A290))","v":0}]
[null,null,null,null,null,null,null,null,null,null,0,0,{"$f":"IF((ALL!$B$3-AUTOCOOL!A291)>40000,0,(ALL!$B$3-AUTOCOOL!A291))","v":0}]
[null,null,null,null,null,null,null,null,null,null,0,0,{"$f":"IF((ALL!$B$3-AUTOCOOL!A292)>40000,0,(ALL!$B$3-AUTOCOOL!A292))","v":0}]
[null,null,null,null,null,null,null,null,null,null,0,0,{"$f":"IF((ALL!$B$3-AUTOCOOL!A293)>40000,0,(ALL!$B$3-AUTOCOOL!A293))","v":0}]
[null,null,null,null,null,null,null,null,null,null,0,0,{"$f":"IF((ALL!$B$3-AUTOCOOL!A294)>40000,0,(ALL!$B$3-AUTOCOOL!A294))","v":0}]
[null,null,null,null,null,null,null,null,null,null,0,0,{"$f":"IF((ALL!$B$3-AUTOCOOL!A295)>40000,0,(ALL!$B$3-AUTOCOOL!A295))","v":0}]
[null,null,null,null,null,null,null,null,null,null,0,0,{"$f":"IF((ALL!$B$3-AUTOCOOL!A296)>40000,0,(ALL!$B$3-AUTOCOOL!A296))","v":0}]
[null,null,null,null,null,null,null,null,null,null,0,0,{"$f":"IF((ALL!$B$3-AUTOCOOL!A297)>40000,0,(ALL!$B$3-AUTOCOOL!A297))","v":0}]
[null,null,null,null,null,null,null,null,null,null,0,0,{"$f":"IF((ALL!$B$3-AUTOCOOL!A298)>40000,0,(ALL!$B$3-AUTOCOOL!A298))","v":0}]
[null,null,null,null,null,null,null,null,null,null,0,0,{"$f":"IF((ALL!$B$3-AUTOCOOL!A299)>40000,0,(ALL!$B$3-AUTOCOOL!A299))","v":0}]
[null,null,null,null,null,null,null,null,null,null,0,0,{"$f":"IF((ALL!$B$3-AUTOCOOL!A300)>40000,0,(ALL!$B$3-AUTOCOOL!A300))","v":0}]
[null,null,null,null,null,null,null,null,null,null,0,0,{"$f":"IF((ALL!$B$3-AUTOCOOL!A301)>40000,0,(ALL!$B$3-AUTOCOOL!A301))","v":0}]
[null,null,null,null,null,null,null,null,null,null,0,0,{"$f":"IF((ALL!$B$3-AUTOCOOL!A302)>40000,0,(ALL!$B$3-AUTOCOOL!A302))","v":0}]
[null,null,null,null,null,null,null,null,null,null,0,0,{"$f":"IF((ALL!$B$3-AUTOCOOL!A303)>40000,0,(ALL!$B$3-AUTOCOOL!A303))","v":0}]
[null,null,null,null,null,null,null,null,null,null,0,0,{"$f":"IF((ALL!$B$3-AUTOCOOL!A304)>40000,0,(ALL!$B$3-AUTOCOOL!A304))","v":0}]
[null,null,null,null,null,null,null,null,null,null,0,0,{"$f":"IF((ALL!$B$3-AUTOCOOL!A305)>40000,0,(ALL!$B$3-AUTOCOOL!A305))","v":0}]
[null,null,null,null,null,null,null,null,null,null,0,0,{"$f":"IF((ALL!$B$3-AUTOCOOL!A306)>40000,0,(ALL!$B$3-AUTOCOOL!A306))","v":0}]
[null,null,null,null,null,null,null,null,null,null,0,0,{"$f":"IF((ALL!$B$3-AUTOCOOL!A307)>40000,0,(ALL!$B$3-AUTOCOOL!A307))","v":0}]
[null,null,null,null,null,null,null,null,null,null,0,0,{"$f":"IF((ALL!$B$3-AUTOCOOL!A308)>40000,0,(ALL!$B$3-AUTOCOOL!A308))","v":0}]
[null,null,null,null,null,null,null,null,null,null,0,0,{"$f":"IF((ALL!$B$3-AUTOCOOL!A309)>40000,0,(ALL!$B$3-AUTOCOOL!A309))","v":0}]
[null,null,null,null,null,null,null,null,null,null,0,0,{"$f":"IF((ALL!$B$3-AUTOCOOL!A310)>40000,0,(ALL!$B$3-AUTOCOOL!A310))","v":0}]
[null,null,null,null,null,null,null,null,null,null,0,0,{"$f":"IF((ALL!$B$3-AUTOCOOL!A311)>40000,0,(ALL!$B$3-AUTOCOOL!A311))","v":0}]
[null,null,null,null,null,null,null,null,null,null,0,0,{"$f":"IF((ALL!$B$3-AUTOCOOL!A312)>40000,0,(ALL!$B$3-AUTOCOOL!A312))","v":0}]
[null,null,null,null,null,null,null,null,null,null,0,0,{"$f":"IF((ALL!$B$3-AUTOCOOL!A313)>40000,0,(ALL!$B$3-AUTOCOOL!A313))","v":0}]
[null,null,null,null,null,null,null,null,null,null,0,0,{"$f":"IF((ALL!$B$3-AUTOCOOL!A314)>40000,0,(ALL!$B$3-AUTOCOOL!A314))","v":0}]
[null,null,null,null,null,null,null,null,null,null,0,0,{"$f":"IF((ALL!$B$3-AUTOCOOL!A315)>40000,0,(ALL!$B$3-AUTOCOOL!A315))","v":0}]
[null,null,null,null,null,null,null,null,null,null,0,0,{"$f":"IF((ALL!$B$3-AUTOCOOL!A316)>40000,0,(ALL!$B$3-AUTOCOOL!A316))","v":0}]
[null,null,null,null,null,null,null,null,null,null,0,0,{"$f":"IF((ALL!$B$3-AUTOCOOL!A317)>40000,0,(ALL!$B$3-AUTOCOOL!A317))","v":0}]
[null,null,null,null,null,null,null,null,null,null,0,0,{"$f":"IF((ALL!$B$3-AUTOCOOL!A318)>40000,0,(ALL!$B$3-AUTOCOOL!A318))","v":0}]
[null,null,null,null,null,null,null,null,null,null,0,0,{"$f":"IF((ALL!$B$3-AUTOCOOL!A319)>40000,0,(ALL!$B$3-AUTOCOOL!A319))","v":0}]
[null,null,null,null,null,null,null,null,null,null,0,0,{"$f":"IF((ALL!$B$3-AUTOCOOL!A320)>40000,0,(ALL!$B$3-AUTOCOOL!A320))","v":0}]
[null,null,null,null,null,null,null,null,null,null,0,0,{"$f":"IF((ALL!$B$3-AUTOCOOL!A321)>40000,0,(ALL!$B$3-AUTOCOOL!A321))","v":0}]
[null,null,null,null,null,null,null,null,null,null,0,0,{"$f":"IF((ALL!$B$3-AUTOCOOL!A322)>40000,0,(ALL!$B$3-AUTOCOOL!A322))","v":0}]
[null,null,null,null,null,null,null,null,null,null,0,0,{"$f":"IF((ALL!$B$3-AUTOCOOL!A323)>40000,0,(ALL!$B$3-AUTOCOOL!A323))","v":0}]
[null,null,null,null,null,null,null,null,null,null,0,0,{"$f":"IF((ALL!$B$3-AUTOCOOL!A324)>40000,0,(ALL!$B$3-AUTOCOOL!A324))","v":0}]
[null,null,null,null,null,null,null,null,null,null,0,0,{"$f":"IF((ALL!$B$3-AUTOCOOL!A325)>40000,0,(ALL!$B$3-AUTOCOOL!A325))","v":0}]
[null,null,null,null,null,null,null,null,null,null,0,0,{"$f":"IF((ALL!$B$3-AUTOCOOL!A326)>40000,0,(ALL!$B$3-AUTOCOOL!A326))","v":0}]
[null,null,null,null,null,null,null,null,null,null,{"$f":"SUM(C327:J327)","v":0},0,{"$f":"IF((ALL!$B$3-AUTOCOOL!A327)>40000,0,(ALL!$B$3-AUTOCOOL!A327))","v":0}]
[null,null,null,null,null,null,null,null,null,null,0,{"$f":"IF(AND(M328>365),\"OVER A YEAR\",IF(AND(M328>0,M328<31),\"1 MONTH\",IF(AND(M328>30,M328<61),\"2 MONTHS\",IF(AND(M328>60,M328<91),\"3 MONTHS\",IF(AND(M328>90,M328<181),\"3 : 6 MONTHS\",IF(AND(M328>180,M328<271),\"6 : 9 MONTHS\",IF(AND(M328>270,M328<366),\"9 : 12 MONTHS\",IF(M328=0,0))))))))","v":0},{"$f":"IF((ALL!$B$3-AUTOCOOL!A328)>40000,0,(ALL!$B$3-AUTOCOOL!A328))","v":0}]
[null,null,null,null,null,null,null,null,null,null,0,0,{"$f":"IF((ALL!$B$3-AUTOCOOL!A329)>40000,0,(ALL!$B$3-AUTOCOOL!A329))","v":0}]
[null,null,null,null,null,null,null,null,null,null,0,0,{"$f":"IF((ALL!$B$3-AUTOCOOL!A330)>40000,0,(ALL!$B$3-AUTOCOOL!A330))","v":0}]
[null,null,null,null,null,null,null,null,null,null,0,0,{"$f":"IF((ALL!$B$3-AUTOCOOL!A331)>40000,0,(ALL!$B$3-AUTOCOOL!A331))","v":0}]
[null,null,null,null,null,null,null,null,null,null,0,0,{"$f":"IF((ALL!$B$3-AUTOCOOL!A332)>40000,0,(ALL!$B$3-AUTOCOOL!A332))","v":0}]
[null,null,null,null,null,null,null,null,null,null,0,0,{"$f":"IF((ALL!$B$3-AUTOCOOL!A333)>40000,0,(ALL!$B$3-AUTOCOOL!A333))","v":0}]
[null,null,null,null,null,null,null,null,null,null,0,0,{"$f":"IF((ALL!$B$3-AUTOCOOL!A334)>40000,0,(ALL!$B$3-AUTOCOOL!A334))","v":0}]
[null,null,null,null,null,null,null,null,null,null,0,0,{"$f":"IF((ALL!$B$3-AUTOCOOL!A335)>40000,0,(ALL!$B$3-AUTOCOOL!A335))","v":0}]
[null,null,null,null,null,null,null,null,null,null,0,0,{"$f":"IF((ALL!$B$3-AUTOCOOL!A336)>40000,0,(ALL!$B$3-AUTOCOOL!A336))","v":0}]
[null,null,null,null,null,null,null,null,null,null,0,0,{"$f":"IF((ALL!$B$3-AUTOCOOL!A337)>40000,0,(ALL!$B$3-AUTOCOOL!A337))","v":0}]
[null,null,null,null,null,null,null,null,null,null,0,0,{"$f":"IF((ALL!$B$3-AUTOCOOL!A338)>40000,0,(ALL!$B$3-AUTOCOOL!A338))","v":0}]
[null,null,null,null,null,null,null,null,null,null,0,0,{"$f":"IF((ALL!$B$3-AUTOCOOL!A339)>40000,0,(ALL!$B$3-AUTOCOOL!A339))","v":0}]
[null,null,null,null,null,null,null,null,null,null,0,0,{"$f":"IF((ALL!$B$3-AUTOCOOL!A340)>40000,0,(ALL!$B$3-AUTOCOOL!A340))","v":0}]
[null,null,null,null,null,null,null,null,null,null,0,0,{"$f":"IF((ALL!$B$3-AUTOCOOL!A341)>40000,0,(ALL!$B$3-AUTOCOOL!A341))","v":0}]
[null,null,null,null,null,null,null,null,null,null,0,0,{"$f":"IF((ALL!$B$3-AUTOCOOL!A342)>40000,0,(ALL!$B$3-AUTOCOOL!A342))","v":0}]
[null,null,null,null,null,null,null,null,null,null,0,0,{"$f":"IF((ALL!$B$3-AUTOCOOL!A343)>40000,0,(ALL!$B$3-AUTOCOOL!A343))","v":0}]
[null,null,null,null,null,null,null,null,null,null,0,0,{"$f":"IF((ALL!$B$3-AUTOCOOL!A344)>40000,0,(ALL!$B$3-AUTOCOOL!A344))","v":0}]
[null,null,null,null,null,null,null,null,null,null,0,0,{"$f":"IF((ALL!$B$3-AUTOCOOL!A345)>40000,0,(ALL!$B$3-AUTOCOOL!A345))","v":0}]
[null,null,null,null,null,null,null,null,null,null,0,0,{"$f":"IF((ALL!$B$3-AUTOCOOL!A346)>40000,0,(ALL!$B$3-AUTOCOOL!A346))","v":0}]
[null,null,null,null,null,null,null,null,null,null,0,0,{"$f":"IF((ALL!$B$3-AUTOCOOL!A347)>40000,0,(ALL!$B$3-AUTOCOOL!A347))","v":0}]
[null,null,null,null,null,null,null,null,null,null,0,0,{"$f":"IF((ALL!$B$3-AUTOCOOL!A348)>40000,0,(ALL!$B$3-AUTOCOOL!A348))","v":0}]
[null,null,null,null,null,null,null,null,null,null,0,0,{"$f":"IF((ALL!$B$3-AUTOCOOL!A349)>40000,0,(ALL!$B$3-AUTOCOOL!A349))","v":0}]
[null,null,null,null,null,null,null,null,null,null,0,0,{"$f":"IF((ALL!$B$3-AUTOCOOL!A350)>40000,0,(ALL!$B$3-AUTOCOOL!A350))","v":0}]
[null,null,null,null,null,null,null,null,null,null,0,0,{"$f":"IF((ALL!$B$3-AUTOCOOL!A351)>40000,0,(ALL!$B$3-AUTOCOOL!A351))","v":0}]
[null,null,null,null,null,null,null,null,null,null,0,0,{"$f":"IF((ALL!$B$3-AUTOCOOL!A352)>40000,0,(ALL!$B$3-AUTOCOOL!A352))","v":0}]
[null,null,null,null,null,null,null,null,null,null,0,0,{"$f":"IF((ALL!$B$3-AUTOCOOL!A353)>40000,0,(ALL!$B$3-AUTOCOOL!A353))","v":0}]
[null,null,null,null,null,null,null,null,null,null,0,0,{"$f":"IF((ALL!$B$3-AUTOCOOL!A354)>40000,0,(ALL!$B$3-AUTOCOOL!A354))","v":0}]
[null,null,null,null,null,null,null,null,null,null,0,0,{"$f":"IF((ALL!$B$3-AUTOCOOL!A355)>40000,0,(ALL!$B$3-AUTOCOOL!A355))","v":0}]
[null,null,null,null,null,null,null,null,null,null,0,0,{"$f":"IF((ALL!$B$3-AUTOCOOL!A356)>40000,0,(ALL!$B$3-AUTOCOOL!A356))","v":0}]
[null,null,null,null,null,null,null,null,null,null,0,0,{"$f":"IF((ALL!$B$3-AUTOCOOL!A357)>40000,0,(ALL!$B$3-AUTOCOOL!A357))","v":0}]
[null,null,null,null,null,null,null,null,null,null,0,0,{"$f":"IF((ALL!$B$3-AUTOCOOL!A358)>40000,0,(ALL!$B$3-AUTOCOOL!A358))","v":0}]
[null,null,null,null,null,null,null,null,null,null,0,0,{"$f":"IF((ALL!$B$3-AUTOCOOL!A359)>40000,0,(ALL!$B$3-AUTOCOOL!A359))","v":0}]
[null,null,null,null,null,null,null,null,null,null,0,0,{"$f":"IF((ALL!$B$3-AUTOCOOL!A360)>40000,0,(ALL!$B$3-AUTOCOOL!A360))","v":0}]
[null,null,null,null,null,null,null,null,null,null,0,0,{"$f":"IF((ALL!$B$3-AUTOCOOL!A361)>40000,0,(ALL!$B$3-AUTOCOOL!A361))","v":0}]
[null,null,null,null,null,null,null,null,null,null,0,0,{"$f":"IF((ALL!$B$3-AUTOCOOL!A362)>40000,0,(ALL!$B$3-AUTOCOOL!A362))","v":0}]
[null,null,null,null,null,null,null,null,null,null,0,0,{"$f":"IF((ALL!$B$3-AUTOCOOL!A363)>40000,0,(ALL!$B$3-AUTOCOOL!A363))","v":0}]
[null,null,null,null,null,null,null,null,null,null,0,0,{"$f":"IF((ALL!$B$3-AUTOCOOL!A364)>40000,0,(ALL!$B$3-AUTOCOOL!A364))","v":0}]
[null,null,null,null,null,null,null,null,null,null,0,0,{"$f":"IF((ALL!$B$3-AUTOCOOL!A365)>40000,0,(ALL!$B$3-AUTOCOOL!A365))","v":0}]
[null,null,null,null,null,null,null,null,null,null,0,0,{"$f":"IF((ALL!$B$3-AUTOCOOL!A366)>40000,0,(ALL!$B$3-AUTOCOOL!A366))","v":0}]
[null,null,null,null,null,null,null,null,null,null,0,0,{"$f":"IF((ALL!$B$3-AUTOCOOL!A367)>40000,0,(ALL!$B$3-AUTOCOOL!A367))","v":0}]
[null,null,null,null,null,null,null,null,null,null,0,0,{"$f":"IF((ALL!$B$3-AUTOCOOL!A368)>40000,0,(ALL!$B$3-AUTOCOOL!A368))","v":0}]
[null,null,null,null,null,null,null,null,null,null,0,0,{"$f":"IF((ALL!$B$3-AUTOCOOL!A369)>40000,0,(ALL!$B$3-AUTOCOOL!A369))","v":0}]
[null,null,null,null,null,null,null,null,null,null,0,0,{"$f":"IF((ALL!$B$3-AUTOCOOL!A370)>40000,0,(ALL!$B$3-AUTOCOOL!A370))","v":0}]
[null,null,null,null,null,null,null,null,null,null,0,0,{"$f":"IF((ALL!$B$3-AUTOCOOL!A371)>40000,0,(ALL!$B$3-AUTOCOOL!A371))","v":0}]
[null,null,null,null,null,null,null,null,null,null,0,0,{"$f":"IF((ALL!$B$3-AUTOCOOL!A372)>40000,0,(ALL!$B$3-AUTOCOOL!A372))","v":0}]
[null,null,null,null,null,null,null,null,null,null,0,0,{"$f":"IF((ALL!$B$3-AUTOCOOL!A373)>40000,0,(ALL!$B$3-AUTOCOOL!A373))","v":0}]
[null,null,null,null,null,null,null,null,null,null,0,0,{"$f":"IF((ALL!$B$3-AUTOCOOL!A374)>40000,0,(ALL!$B$3-AUTOCOOL!A374))","v":0}]
[null,null,null,null,null,null,null,null,null,null,0,0,{"$f":"IF((ALL!$B$3-AUTOCOOL!A375)>40000,0,(ALL!$B$3-AUTOCOOL!A375))","v":0}]
[null,null,null,null,null,null,null,null,null,null,0,0,{"$f":"IF((ALL!$B$3-AUTOCOOL!A376)>40000,0,(ALL!$B$3-AUTOCOOL!A376))","v":0}]
[null,null,null,null,null,null,null,null,null,null,0,0,{"$f":"IF((ALL!$B$3-AUTOCOOL!A377)>40000,0,(ALL!$B$3-AUTOCOOL!A377))","v":0}]
[null,null,null,null,null,null,null,null,null,null,0,0,{"$f":"IF((ALL!$B$3-AUTOCOOL!A378)>40000,0,(ALL!$B$3-AUTOCOOL!A378))","v":0}]
[null,null,null,null,null,null,null,null,null,null,0,0,{"$f":"IF((ALL!$B$3-AUTOCOOL!A379)>40000,0,(ALL!$B$3-AUTOCOOL!A379))","v":0}]
[null,null,null,null,null,null,null,null,null,null,0,0,{"$f":"IF((ALL!$B$3-AUTOCOOL!A380)>40000,0,(ALL!$B$3-AUTOCOOL!A380))","v":0}]
[null,null,null,null,null,null,null,null,null,null,0,0,{"$f":"IF((ALL!$B$3-AUTOCOOL!A381)>40000,0,(ALL!$B$3-AUTOCOOL!A381))","v":0}]
[null,null,null,null,null,null,null,null,null,null,0,0,{"$f":"IF((ALL!$B$3-AUTOCOOL!A382)>40000,0,(ALL!$B$3-AUTOCOOL!A382))","v":0}]
[null,null,null,null,null,null,null,null,null,null,0,0,{"$f":"IF((ALL!$B$3-AUTOCOOL!A383)>40000,0,(ALL!$B$3-AUTOCOOL!A383))","v":0}]
[null,null,null,null,null,null,null,null,null,null,0,0,{"$f":"IF((ALL!$B$3-AUTOCOOL!A384)>40000,0,(ALL!$B$3-AUTOCOOL!A384))","v":0}]
[null,null,null,null,null,null,null,null,null,null,0,0,{"$f":"IF((ALL!$B$3-AUTOCOOL!A385)>40000,0,(ALL!$B$3-AUTOCOOL!A385))","v":0}]
[null,null,null,null,null,null,null,null,null,null,0,0,{"$f":"IF((ALL!$B$3-AUTOCOOL!A386)>40000,0,(ALL!$B$3-AUTOCOOL!A386))","v":0}]
[null,null,null,null,null,null,null,null,null,null,0,0,{"$f":"IF((ALL!$B$3-AUTOCOOL!A387)>40000,0,(ALL!$B$3-AUTOCOOL!A387))","v":0}]
[null,null,null,null,null,null,null,null,null,null,0,0,{"$f":"IF((ALL!$B$3-AUTOCOOL!A388)>40000,0,(ALL!$B$3-AUTOCOOL!A388))","v":0}]
[null,null,null,null,null,null,null,null,null,null,0,0,{"$f":"IF((ALL!$B$3-AUTOCOOL!A389)>40000,0,(ALL!$B$3-AUTOCOOL!A389))","v":0}]
[null,null,null,null,null,null,null,null,null,null,0,0,{"$f":"IF((ALL!$B$3-AUTOCOOL!A390)>40000,0,(ALL!$B$3-AUTOCOOL!A390))","v":0}]
[null,null,null,null,null,null,null,null,null,null,{"$f":"SUM(C391:J391)","v":0},0,{"$f":"IF((ALL!$B$3-AUTOCOOL!A391)>40000,0,(ALL!$B$3-AUTOCOOL!A391))","v":0}]
[null,null,null,null,null,null,null,null,null,null,0,{"$f":"IF(AND(M392>365),\"OVER A YEAR\",IF(AND(M392>0,M392<31),\"1 MONTH\",IF(AND(M392>30,M392<61),\"2 MONTHS\",IF(AND(M392>60,M392<91),\"3 MONTHS\",IF(AND(M392>90,M392<181),\"3 : 6 MONTHS\",IF(AND(M392>180,M392<271),\"6 : 9 MONTHS\",IF(AND(M392>270,M392<366),\"9 : 12 MONTHS\",IF(M392=0,0))))))))","v":0},{"$f":"IF((ALL!$B$3-AUTOCOOL!A392)>40000,0,(ALL!$B$3-AUTOCOOL!A392))","v":0}]
[null,null,null,null,null,null,null,null,null,null,0,0,{"$f":"IF((ALL!$B$3-AUTOCOOL!A393)>40000,0,(ALL!$B$3-AUTOCOOL!A393))","v":0}]
[null,null,null,null,null,null,null,null,null,null,0,0,{"$f":"IF((ALL!$B$3-AUTOCOOL!A394)>40000,0,(ALL!$B$3-AUTOCOOL!A394))","v":0}]
[null,null,null,null,null,null,null,null,null,null,0,0,{"$f":"IF((ALL!$B$3-AUTOCOOL!A395)>40000,0,(ALL!$B$3-AUTOCOOL!A395))","v":0}]
[null,null,null,null,null,null,null,null,null,null,0,0,{"$f":"IF((ALL!$B$3-AUTOCOOL!A396)>40000,0,(ALL!$B$3-AUTOCOOL!A396))","v":0}]
[null,null,null,null,null,null,null,null,null,null,0,0,{"$f":"IF((ALL!$B$3-AUTOCOOL!A397)>40000,0,(ALL!$B$3-AUTOCOOL!A397))","v":0}]
[null,null,null,null,null,null,null,null,null,null,0,0,{"$f":"IF((ALL!$B$3-AUTOCOOL!A398)>40000,0,(ALL!$B$3-AUTOCOOL!A398))","v":0}]
[null,null,null,null,null,null,null,null,null,null,0,0,{"$f":"IF((ALL!$B$3-AUTOCOOL!A399)>40000,0,(ALL!$B$3-AUTOCOOL!A399))","v":0}]
[null,null,null,null,null,null,null,null,null,null,0,0,{"$f":"IF((ALL!$B$3-AUTOCOOL!A400)>40000,0,(ALL!$B$3-AUTOCOOL!A400))","v":0}]
[null,null,null,null,null,null,null,null,null,null,0,0,{"$f":"IF((ALL!$B$3-AUTOCOOL!A401)>40000,0,(ALL!$B$3-AUTOCOOL!A401))","v":0}]
[null,null,null,null,null,null,null,null,null,null,0,0,{"$f":"IF((ALL!$B$3-AUTOCOOL!A402)>40000,0,(ALL!$B$3-AUTOCOOL!A402))","v":0}]
[null,null,null,null,null,null,null,null,null,null,0,0,{"$f":"IF((ALL!$B$3-AUTOCOOL!A403)>40000,0,(ALL!$B$3-AUTOCOOL!A403))","v":0}]
[null,null,null,null,null,null,null,null,null,null,0,0,{"$f":"IF((ALL!$B$3-AUTOCOOL!A404)>40000,0,(ALL!$B$3-AUTOCOOL!A404))","v":0}]
[null,null,null,null,null,null,null,null,null,null,0,0,{"$f":"IF((ALL!$B$3-AUTOCOOL!A405)>40000,0,(ALL!$B$3-AUTOCOOL!A405))","v":0}]
[null,null,null,null,null,null,null,null,null,null,0,0,{"$f":"IF((ALL!$B$3-AUTOCOOL!A406)>40000,0,(ALL!$B$3-AUTOCOOL!A406))","v":0}]
[null,null,null,null,null,null,null,null,null,null,0,0,{"$f":"IF((ALL!$B$3-AUTOCOOL!A407)>40000,0,(ALL!$B$3-AUTOCOOL!A407))","v":0}]
[null,null,null,null,null,null,null,null,null,null,0,0,{"$f":"IF((ALL!$B$3-AUTOCOOL!A408)>40000,0,(ALL!$B$3-AUTOCOOL!A408))","v":0}]
[null,null,null,null,null,null,null,null,null,null,0,0,{"$f":"IF((ALL!$B$3-AUTOCOOL!A409)>40000,0,(ALL!$B$3-AUTOCOOL!A409))","v":0}]
[null,null,null,null,null,null,null,null,null,null,0,0,{"$f":"IF((ALL!$B$3-AUTOCOOL!A410)>40000,0,(ALL!$B$3-AUTOCOOL!A410))","v":0}]
[null,null,null,null,null,null,null,null,null,null,0,0,{"$f":"IF((ALL!$B$3-AUTOCOOL!A411)>40000,0,(ALL!$B$3-AUTOCOOL!A411))","v":0}]
[null,null,null,null,null,null,null,null,null,null,0,0,{"$f":"IF((ALL!$B$3-AUTOCOOL!A412)>40000,0,(ALL!$B$3-AUTOCOOL!A412))","v":0}]
[null,null,null,null,null,null,null,null,null,null,0,0,{"$f":"IF((ALL!$B$3-AUTOCOOL!A413)>40000,0,(ALL!$B$3-AUTOCOOL!A413))","v":0}]
[null,null,null,null,null,null,null,null,null,null,0,0,{"$f":"IF((ALL!$B$3-AUTOCOOL!A414)>40000,0,(ALL!$B$3-AUTOCOOL!A414))","v":0}]
[null,null,null,null,null,null,null,null,null,null,0,0,{"$f":"IF((ALL!$B$3-AUTOCOOL!A415)>40000,0,(ALL!$B$3-AUTOCOOL!A415))","v":0}]
[null,null,null,null,null,null,null,null,null,null,0,0,{"$f":"IF((ALL!$B$3-AUTOCOOL!A416)>40000,0,(ALL!$B$3-AUTOCOOL!A416))","v":0}]
[null,null,null,null,null,null,null,null,null,null,0,0,{"$f":"IF((ALL!$B$3-AUTOCOOL!A417)>40000,0,(ALL!$B$3-AUTOCOOL!A417))","v":0}]
[null,null,null,null,null,null,null,null,null,null,0,0,{"$f":"IF((ALL!$B$3-AUTOCOOL!A418)>40000,0,(ALL!$B$3-AUTOCOOL!A418))","v":0}]
[null,null,null,null,null,null,null,null,null,null,0,0,{"$f":"IF((ALL!$B$3-AUTOCOOL!A419)>40000,0,(ALL!$B$3-AUTOCOOL!A419))","v":0}]
[null,null,null,null,null,null,null,null,null,null,0,0,{"$f":"IF((ALL!$B$3-AUTOCOOL!A420)>40000,0,(ALL!$B$3-AUTOCOOL!A420))","v":0}]
[null,null,null,null,null,null,null,null,null,null,0,0,{"$f":"IF((ALL!$B$3-AUTOCOOL!A421)>40000,0,(ALL!$B$3-AUTOCOOL!A421))","v":0}]
[null,null,null,null,null,null,null,null,null,null,0,0,{"$f":"IF((ALL!$B$3-AUTOCOOL!A422)>40000,0,(ALL!$B$3-AUTOCOOL!A422))","v":0}]
[null,null,null,null,null,null,null,null,null,null,0,0,{"$f":"IF((ALL!$B$3-AUTOCOOL!A423)>40000,0,(ALL!$B$3-AUTOCOOL!A423))","v":0}]
[null,null,null,null,null,null,null,null,null,null,0,0,{"$f":"IF((ALL!$B$3-AUTOCOOL!A424)>40000,0,(ALL!$B$3-AUTOCOOL!A424))","v":0}]
[null,null,null,null,null,null,null,null,null,null,0,0,{"$f":"IF((ALL!$B$3-AUTOCOOL!A425)>40000,0,(ALL!$B$3-AUTOCOOL!A425))","v":0}]
[null,null,null,null,null,null,null,null,null,null,0,0,{"$f":"IF((ALL!$B$3-AUTOCOOL!A426)>40000,0,(ALL!$B$3-AUTOCOOL!A426))","v":0}]
[null,null,null,null,null,null,null,null,null,null,0,0,{"$f":"IF((ALL!$B$3-AUTOCOOL!A427)>40000,0,(ALL!$B$3-AUTOCOOL!A427))","v":0}]
[null,null,null,null,null,null,null,null,null,null,0,0,{"$f":"IF((ALL!$B$3-AUTOCOOL!A428)>40000,0,(ALL!$B$3-AUTOCOOL!A428))","v":0}]
[null,null,null,null,null,null,null,null,null,null,0,0,{"$f":"IF((ALL!$B$3-AUTOCOOL!A429)>40000,0,(ALL!$B$3-AUTOCOOL!A429))","v":0}]
[null,null,null,null,null,null,null,null,null,null,0,0,{"$f":"IF((ALL!$B$3-AUTOCOOL!A430)>40000,0,(ALL!$B$3-AUTOCOOL!A430))","v":0}]
[null,null,null,null,null,null,null,null,null,null,0,0,{"$f":"IF((ALL!$B$3-AUTOCOOL!A431)>40000,0,(ALL!$B$3-AUTOCOOL!A431))","v":0}]
[null,null,null,null,null,null,null,null,null,null,0,0,{"$f":"IF((ALL!$B$3-AUTOCOOL!A432)>40000,0,(ALL!$B$3-AUTOCOOL!A432))","v":0}]
[null,null,null,null,null,null,null,null,null,null,0,0,{"$f":"IF((ALL!$B$3-AUTOCOOL!A433)>40000,0,(ALL!$B$3-AUTOCOOL!A433))","v":0}]
[null,null,null,null,null,null,null,null,null,null,0,0,{"$f":"IF((ALL!$B$3-AUTOCOOL!A434)>40000,0,(ALL!$B$3-AUTOCOOL!A434))","v":0}]
[null,null,null,null,null,null,null,null,null,null,0,0,{"$f":"IF((ALL!$B$3-AUTOCOOL!A435)>40000,0,(ALL!$B$3-AUTOCOOL!A435))","v":0}]
[null,null,null,null,null,null,null,null,null,null,0,0,{"$f":"IF((ALL!$B$3-AUTOCOOL!A436)>40000,0,(ALL!$B$3-AUTOCOOL!A436))","v":0}]
[null,null,null,null,null,null,null,null,null,null,0,0,{"$f":"IF((ALL!$B$3-AUTOCOOL!A437)>40000,0,(ALL!$B$3-AUTOCOOL!A437))","v":0}]
[null,null,null,null,null,null,null,null,null,null,0,0,{"$f":"IF((ALL!$B$3-AUTOCOOL!A438)>40000,0,(ALL!$B$3-AUTOCOOL!A438))","v":0}]
[null,null,null,null,null,null,null,null,null,null,0,0,{"$f":"IF((ALL!$B$3-AUTOCOOL!A439)>40000,0,(ALL!$B$3-AUTOCOOL!A439))","v":0}]
[null,null,null,null,null,null,null,null,null,null,0,0,{"$f":"IF((ALL!$B$3-AUTOCOOL!A440)>40000,0,(ALL!$B$3-AUTOCOOL!A440))","v":0}]
[null,null,null,null,null,null,null,null,null,null,0,0,{"$f":"IF((ALL!$B$3-AUTOCOOL!A441)>40000,0,(ALL!$B$3-AUTOCOOL!A441))","v":0}]
[null,null,null,null,null,null,null,null,null,null,0,0,{"$f":"IF((ALL!$B$3-AUTOCOOL!A442)>40000,0,(ALL!$B$3-AUTOCOOL!A442))","v":0}]
[null,null,null,null,null,null,null,null,null,null,0,0,{"$f":"IF((ALL!$B$3-AUTOCOOL!A443)>40000,0,(ALL!$B$3-AUTOCOOL!A443))","v":0}]
[null,null,null,null,null,null,null,null,null,null,0,0,{"$f":"IF((ALL!$B$3-AUTOCOOL!A444)>40000,0,(ALL!$B$3-AUTOCOOL!A444))","v":0}]
[null,null,null,null,null,null,null,null,null,null,0,0,{"$f":"IF((ALL!$B$3-AUTOCOOL!A445)>40000,0,(ALL!$B$3-AUTOCOOL!A445))","v":0}]
[null,null,null,null,null,null,null,null,null,null,0,0,{"$f":"IF((ALL!$B$3-AUTOCOOL!A446)>40000,0,(ALL!$B$3-AUTOCOOL!A446))","v":0}]
[null,null,null,null,null,null,null,null,null,null,0,0,{"$f":"IF((ALL!$B$3-AUTOCOOL!A447)>40000,0,(ALL!$B$3-AUTOCOOL!A447))","v":0}]
[null,null,null,null,null,null,null,null,null,null,0,0,{"$f":"IF((ALL!$B$3-AUTOCOOL!A448)>40000,0,(ALL!$B$3-AUTOCOOL!A448))","v":0}]
[null,null,null,null,null,null,null,null,null,null,0,0,{"$f":"IF((ALL!$B$3-AUTOCOOL!A449)>40000,0,(ALL!$B$3-AUTOCOOL!A449))","v":0}]
[null,null,null,null,null,null,null,null,null,null,0,0,{"$f":"IF((ALL!$B$3-AUTOCOOL!A450)>40000,0,(ALL!$B$3-AUTOCOOL!A450))","v":0}]
[null,null,null,null,null,null,null,null,null,null,0,0,{"$f":"IF((ALL!$B$3-AUTOCOOL!A451)>40000,0,(ALL!$B$3-AUTOCOOL!A451))","v":0}]
[null,null,null,null,null,null,null,null,null,null,0,0,{"$f":"IF((ALL!$B$3-AUTOCOOL!A452)>40000,0,(ALL!$B$3-AUTOCOOL!A452))","v":0}]
[null,null,null,null,null,null,null,null,null,null,0,0,{"$f":"IF((ALL!$B$3-AUTOCOOL!A453)>40000,0,(ALL!$B$3-AUTOCOOL!A453))","v":0}]
[null,null,null,null,null,null,null,null,null,null,0,0,{"$f":"IF((ALL!$B$3-AUTOCOOL!A454)>40000,0,(ALL!$B$3-AUTOCOOL!A454))","v":0}]
[null,null,null,null,null,null,null,null,null,null,{"$f":"SUM(C455:J455)","v":0},0,{"$f":"IF((ALL!$B$3-AUTOCOOL!A455)>40000,0,(ALL!$B$3-AUTOCOOL!A455))","v":0}]
[null,null,null,null,null,null,null,null,null,null,0,{"$f":"IF(AND(M456>365),\"OVER A YEAR\",IF(AND(M456>0,M456<31),\"1 MONTH\",IF(AND(M456>30,M456<61),\"2 MONTHS\",IF(AND(M456>60,M456<91),\"3 MONTHS\",IF(AND(M456>90,M456<181),\"3 : 6 MONTHS\",IF(AND(M456>180,M456<271),\"6 : 9 MONTHS\",IF(AND(M456>270,M456<366),\"9 : 12 MONTHS\",IF(M456=0,0))))))))","v":0},{"$f":"IF((ALL!$B$3-AUTOCOOL!A456)>40000,0,(ALL!$B$3-AUTOCOOL!A456))","v":0}]
[null,null,null,null,null,null,null,null,null,null,0,0,{"$f":"IF((ALL!$B$3-AUTOCOOL!A457)>40000,0,(ALL!$B$3-AUTOCOOL!A457))","v":0}]
[null,null,null,null,null,null,null,null,null,null,0,0,{"$f":"IF((ALL!$B$3-AUTOCOOL!A458)>40000,0,(ALL!$B$3-AUTOCOOL!A458))","v":0}]
[null,null,null,null,null,null,null,null,null,null,0,0,{"$f":"IF((ALL!$B$3-AUTOCOOL!A459)>40000,0,(ALL!$B$3-AUTOCOOL!A459))","v":0}]
[null,null,null,null,null,null,null,null,null,null,0,0,{"$f":"IF((ALL!$B$3-AUTOCOOL!A460)>40000,0,(ALL!$B$3-AUTOCOOL!A460))","v":0}]
[null,null,null,null,null,null,null,null,null,null,0,0,{"$f":"IF((ALL!$B$3-AUTOCOOL!A461)>40000,0,(ALL!$B$3-AUTOCOOL!A461))","v":0}]
[null,null,null,null,null,null,null,null,null,null,0,0,{"$f":"IF((ALL!$B$3-AUTOCOOL!A462)>40000,0,(ALL!$B$3-AUTOCOOL!A462))","v":0}]
[null,null,null,null,null,null,null,null,null,null,0,0,{"$f":"IF((ALL!$B$3-AUTOCOOL!A463)>40000,0,(ALL!$B$3-AUTOCOOL!A463))","v":0}]
[null,null,null,null,null,null,null,null,null,null,0,0,{"$f":"IF((ALL!$B$3-AUTOCOOL!A464)>40000,0,(ALL!$B$3-AUTOCOOL!A464))","v":0}]
[null,null,null,null,null,null,null,null,null,null,0,0,{"$f":"IF((ALL!$B$3-AUTOCOOL!A465)>40000,0,(ALL!$B$3-AUTOCOOL!A465))","v":0}]
[null,null,null,null,null,null,null,null,null,null,0,0,{"$f":"IF((ALL!$B$3-AUTOCOOL!A466)>40000,0,(ALL!$B$3-AUTOCOOL!A466))","v":0}]
[null,null,null,null,null,null,null,null,null,null,0,0,{"$f":"IF((ALL!$B$3-AUTOCOOL!A467)>40000,0,(ALL!$B$3-AUTOCOOL!A467))","v":0}]
[null,null,null,null,null,null,null,null,null,null,0,0,{"$f":"IF((ALL!$B$3-AUTOCOOL!A468)>40000,0,(ALL!$B$3-AUTOCOOL!A468))","v":0}]
[null,null,null,null,null,null,null,null,null,null,0,0,{"$f":"IF((ALL!$B$3-AUTOCOOL!A469)>40000,0,(ALL!$B$3-AUTOCOOL!A469))","v":0}]
[null,null,null,null,null,null,null,null,null,null,0,0,{"$f":"IF((ALL!$B$3-AUTOCOOL!A470)>40000,0,(ALL!$B$3-AUTOCOOL!A470))","v":0}]
[null,null,null,null,null,null,null,null,null,null,0,0,{"$f":"IF((ALL!$B$3-AUTOCOOL!A471)>40000,0,(ALL!$B$3-AUTOCOOL!A471))","v":0}]
[null,null,null,null,null,null,null,null,null,null,0,0,{"$f":"IF((ALL!$B$3-AUTOCOOL!A472)>40000,0,(ALL!$B$3-AUTOCOOL!A472))","v":0}]
[null,null,null,null,null,null,null,null,null,null,0,0,{"$f":"IF((ALL!$B$3-AUTOCOOL!A473)>40000,0,(ALL!$B$3-AUTOCOOL!A473))","v":0}]
[null,null,null,null,null,null,null,null,null,null,0,0,{"$f":"IF((ALL!$B$3-AUTOCOOL!A474)>40000,0,(ALL!$B$3-AUTOCOOL!A474))","v":0}]
[null,null,null,null,null,null,null,null,null,null,0,0,{"$f":"IF((ALL!$B$3-AUTOCOOL!A475)>40000,0,(ALL!$B$3-AUTOCOOL!A475))","v":0}]
[null,null,null,null,null,null,null,null,null,null,0,0,{"$f":"IF((ALL!$B$3-AUTOCOOL!A476)>40000,0,(ALL!$B$3-AUTOCOOL!A476))","v":0}]
[null,null,null,null,null,null,null,null,null,null,0,0,{"$f":"IF((ALL!$B$3-AUTOCOOL!A477)>40000,0,(ALL!$B$3-AUTOCOOL!A477))","v":0}]
[null,null,null,null,null,null,null,null,null,null,0,0,{"$f":"IF((ALL!$B$3-AUTOCOOL!A478)>40000,0,(ALL!$B$3-AUTOCOOL!A478))","v":0}]
[null,null,null,null,null,null,null,null,null,null,0,0,{"$f":"IF((ALL!$B$3-AUTOCOOL!A479)>40000,0,(ALL!$B$3-AUTOCOOL!A479))","v":0}]
[null,null,null,null,null,null,null,null,null,null,0,0,{"$f":"IF((ALL!$B$3-AUTOCOOL!A480)>40000,0,(ALL!$B$3-AUTOCOOL!A480))","v":0}]
[null,null,null,null,null,null,null,null,null,null,0,0,{"$f":"IF((ALL!$B$3-AUTOCOOL!A481)>40000,0,(ALL!$B$3-AUTOCOOL!A481))","v":0}]
[null,null,null,null,null,null,null,null,null,null,0,0,{"$f":"IF((ALL!$B$3-AUTOCOOL!A482)>40000,0,(ALL!$B$3-AUTOCOOL!A482))","v":0}]
[null,null,null,null,null,null,null,null,null,null,0,0,{"$f":"IF((ALL!$B$3-AUTOCOOL!A483)>40000,0,(ALL!$B$3-AUTOCOOL!A483))","v":0}]
[null,null,null,null,null,null,null,null,null,null,0,0,{"$f":"IF((ALL!$B$3-AUTOCOOL!A484)>40000,0,(ALL!$B$3-AUTOCOOL!A484))","v":0}]
[null,null,null,null,null,null,null,null,null,null,0,0,{"$f":"IF((ALL!$B$3-AUTOCOOL!A485)>40000,0,(ALL!$B$3-AUTOCOOL!A485))","v":0}]
[null,null,null,null,null,null,null,null,null,null,0,0,{"$f":"IF((ALL!$B$3-AUTOCOOL!A486)>40000,0,(ALL!$B$3-AUTOCOOL!A486))","v":0}]
[null,null,null,null,null,null,null,null,null,null,0,0,{"$f":"IF((ALL!$B$3-AUTOCOOL!A487)>40000,0,(ALL!$B$3-AUTOCOOL!A487))","v":0}]
[null,null,null,null,null,null,null,null,null,null,0,0,{"$f":"IF((ALL!$B$3-AUTOCOOL!A488)>40000,0,(ALL!$B$3-AUTOCOOL!A488))","v":0}]
[null,null,null,null,null,null,null,null,null,null,0,0,{"$f":"IF((ALL!$B$3-AUTOCOOL!A489)>40000,0,(ALL!$B$3-AUTOCOOL!A489))","v":0}]
[null,null,null,null,null,null,null,null,null,null,0,0,{"$f":"IF((ALL!$B$3-AUTOCOOL!A490)>40000,0,(ALL!$B$3-AUTOCOOL!A490))","v":0}]
[null,null,null,null,null,null,null,null,null,null,0,0,{"$f":"IF((ALL!$B$3-AUTOCOOL!A491)>40000,0,(ALL!$B$3-AUTOCOOL!A491))","v":0}]
[null,null,null,null,null,null,null,null,null,null,0,0,{"$f":"IF((ALL!$B$3-AUTOCOOL!A492)>40000,0,(ALL!$B$3-AUTOCOOL!A492))","v":0}]
[null,null,null,null,null,null,null,null,null,null,0,0,{"$f":"IF((ALL!$B$3-AUTOCOOL!A493)>40000,0,(ALL!$B$3-AUTOCOOL!A493))","v":0}]
[null,null,null,null,null,null,null,null,null,null,0,0,{"$f":"IF((ALL!$B$3-AUTOCOOL!A494)>40000,0,(ALL!$B$3-AUTOCOOL!A494))","v":0}]
[null,null,null,null,null,null,null,null,null,null,0,0,{"$f":"IF((ALL!$B$3-AUTOCOOL!A495)>40000,0,(ALL!$B$3-AUTOCOOL!A495))","v":0}]
[null,null,null,null,null,null,null,null,null,null,0,0,{"$f":"IF((ALL!$B$3-AUTOCOOL!A496)>40000,0,(ALL!$B$3-AUTOCOOL!A496))","v":0}]
[null,null,null,null,null,null,null,null,null,null,0,0,{"$f":"IF((ALL!$B$3-AUTOCOOL!A497)>40000,0,(ALL!$B$3-AUTOCOOL!A497))","v":0}]
[null,null,null,null,null,null,null,null,null,null,0,0,{"$f":"IF((ALL!$B$3-AUTOCOOL!A498)>40000,0,(ALL!$B$3-AUTOCOOL!A498))","v":0}]
[null,null,null,null,null,null,null,null,null,null,0,0,{"$f":"IF((ALL!$B$3-AUTOCOOL!A499)>40000,0,(ALL!$B$3-AUTOCOOL!A499))","v":0}]
[null,null,null,null,null,null,null,null,null,null,0,0,{"$f":"IF((ALL!$B$3-AUTOCOOL!A500)>40000,0,(ALL!$B$3-AUTOCOOL!A500))","v":0}]
[null,null,null,null,null,null,null,null,null,null,0,0,{"$f":"IF((ALL!$B$3-AUTOCOOL!A501)>40000,0,(ALL!$B$3-AUTOCOOL!A501))","v":0}]
[null,null,null,null,null,null,null,null,null,null,0,0,{"$f":"IF((ALL!$B$3-AUTOCOOL!A502)>40000,0,(ALL!$B$3-AUTOCOOL!A502))","v":0}]
[null,null,null,null,null,null,null,null,null,null,0,0,{"$f":"IF((ALL!$B$3-AUTOCOOL!A503)>40000,0,(ALL!$B$3-AUTOCOOL!A503))","v":0}]
[null,null,null,null,null,null,null,null,null,null,0,0,{"$f":"IF((ALL!$B$3-AUTOCOOL!A504)>40000,0,(ALL!$B$3-AUTOCOOL!A504))","v":0}]
[null,null,null,null,null,null,null,null,null,null,0,0,{"$f":"IF((ALL!$B$3-AUTOCOOL!A505)>40000,0,(ALL!$B$3-AUTOCOOL!A505))","v":0}]
[null,null,null,null,null,null,null,null,null,null,0,0,{"$f":"IF((ALL!$B$3-AUTOCOOL!A506)>40000,0,(ALL!$B$3-AUTOCOOL!A506))","v":0}]
[null,null,null,null,null,null,null,null,null,null,0,0,{"$f":"IF((ALL!$B$3-AUTOCOOL!A507)>40000,0,(ALL!$B$3-AUTOCOOL!A507))","v":0}]
[null,null,null,null,null,null,null,null,null,null,0,0,{"$f":"IF((ALL!$B$3-AUTOCOOL!A508)>40000,0,(ALL!$B$3-AUTOCOOL!A508))","v":0}]
[null,null,null,null,null,null,null,null,null,null,0,0,{"$f":"IF((ALL!$B$3-AUTOCOOL!A509)>40000,0,(ALL!$B$3-AUTOCOOL!A509))","v":0}]
[null,null,null,null,null,null,null,null,null,null,0,0,{"$f":"IF((ALL!$B$3-AUTOCOOL!A510)>40000,0,(ALL!$B$3-AUTOCOOL!A510))","v":0}]
[null,null,null,null,null,null,null,null,null,null,0,0,{"$f":"IF((ALL!$B$3-AUTOCOOL!A511)>40000,0,(ALL!$B$3-AUTOCOOL!A511))","v":0}]
[null,null,null,null,null,null,null,null,null,null,0,0,{"$f":"IF((ALL!$B$3-AUTOCOOL!A512)>40000,0,(ALL!$B$3-AUTOCOOL!A512))","v":0}]
[null,null,null,null,null,null,null,null,null,null,0,0,{"$f":"IF((ALL!$B$3-AUTOCOOL!A513)>40000,0,(ALL!$B$3-AUTOCOOL!A513))","v":0}]
[null,null,null,null,null,null,null,null,null,null,0,0,{"$f":"IF((ALL!$B$3-AUTOCOOL!A514)>40000,0,(ALL!$B$3-AUTOCOOL!A514))","v":0}]
[null,null,null,null,null,null,null,null,null,null,0,0,{"$f":"IF((ALL!$B$3-AUTOCOOL!A515)>40000,0,(ALL!$B$3-AUTOCOOL!A515))","v":0}]
[null,null,null,null,null,null,null,null,null,null,0,0,{"$f":"IF((ALL!$B$3-AUTOCOOL!A516)>40000,0,(ALL!$B$3-AUTOCOOL!A516))","v":0}]
[null,null,null,null,null,null,null,null,null,null,0,0,{"$f":"IF((ALL!$B$3-AUTOCOOL!A517)>40000,0,(ALL!$B$3-AUTOCOOL!A517))","v":0}]
[null,null,null,null,null,null,null,null,null,null,0,0,{"$f":"IF((ALL!$B$3-AUTOCOOL!A518)>40000,0,(ALL!$B$3-AUTOCOOL!A518))","v":0}]
[null,null,null,null,null,null,null,null,null,null,{"$f":"SUM(C519:J519)","v":0},0,{"$f":"IF((ALL!$B$3-AUTOCOOL!A519)>40000,0,(ALL!$B$3-AUTOCOOL!A519))","v":0}]
[null,null,null,null,null,null,null,null,null,null,0,{"$f":"IF(AND(M520>365),\"OVER A YEAR\",IF(AND(M520>0,M520<31),\"1 MONTH\",IF(AND(M520>30,M520<61),\"2 MONTHS\",IF(AND(M520>60,M520<91),\"3 MONTHS\",IF(AND(M520>90,M520<181),\"3 : 6 MONTHS\",IF(AND(M520>180,M520<271),\"6 : 9 MONTHS\",IF(AND(M520>270,M520<366),\"9 : 12 MONTHS\",IF(M520=0,0))))))))","v":0},{"$f":"IF((ALL!$B$3-AUTOCOOL!A520)>40000,0,(ALL!$B$3-AUTOCOOL!A520))","v":0}]
[null,null,null,null,null,null,null,null,null,null,0,0,{"$f":"IF((ALL!$B$3-AUTOCOOL!A521)>40000,0,(ALL!$B$3-AUTOCOOL!A521))","v":0}]
[null,null,null,null,null,null,null,null,null,null,0,0,{"$f":"IF((ALL!$B$3-AUTOCOOL!A522)>40000,0,(ALL!$B$3-AUTOCOOL!A522))","v":0}]
[null,null,null,null,null,null,null,null,null,null,0,0,{"$f":"IF((ALL!$B$3-AUTOCOOL!A523)>40000,0,(ALL!$B$3-AUTOCOOL!A523))","v":0}]
[null,null,null,null,null,null,null,null,null,null,0,0,{"$f":"IF((ALL!$B$3-AUTOCOOL!A524)>40000,0,(ALL!$B$3-AUTOCOOL!A524))","v":0}]
[null,null,null,null,null,null,null,null,null,null,0,0,{"$f":"IF((ALL!$B$3-AUTOCOOL!A525)>40000,0,(ALL!$B$3-AUTOCOOL!A525))","v":0}]
[null,null,null,null,null,null,null,null,null,null,0,0,{"$f":"IF((ALL!$B$3-AUTOCOOL!A526)>40000,0,(ALL!$B$3-AUTOCOOL!A526))","v":0}]
[null,null,null,null,null,null,null,null,null,null,0,0,{"$f":"IF((ALL!$B$3-AUTOCOOL!A527)>40000,0,(ALL!$B$3-AUTOCOOL!A527))","v":0}]
[null,null,null,null,null,null,null,null,null,null,0,0,{"$f":"IF((ALL!$B$3-AUTOCOOL!A528)>40000,0,(ALL!$B$3-AUTOCOOL!A528))","v":0}]
[null,null,null,null,null,null,null,null,null,null,0,0,{"$f":"IF((ALL!$B$3-AUTOCOOL!A529)>40000,0,(ALL!$B$3-AUTOCOOL!A529))","v":0}]
[null,null,null,null,null,null,null,null,null,null,0,0,{"$f":"IF((ALL!$B$3-AUTOCOOL!A530)>40000,0,(ALL!$B$3-AUTOCOOL!A530))","v":0}]
[null,null,null,null,null,null,null,null,null,null,0,0,{"$f":"IF((ALL!$B$3-AUTOCOOL!A531)>40000,0,(ALL!$B$3-AUTOCOOL!A531))","v":0}]
[null,null,null,null,null,null,null,null,null,null,0,0,{"$f":"IF((ALL!$B$3-AUTOCOOL!A532)>40000,0,(ALL!$B$3-AUTOCOOL!A532))","v":0}]
[null,null,null,null,null,null,null,null,null,null,0,0,{"$f":"IF((ALL!$B$3-AUTOCOOL!A533)>40000,0,(ALL!$B$3-AUTOCOOL!A533))","v":0}]
[null,null,null,null,null,null,null,null,null,null,0,0,{"$f":"IF((ALL!$B$3-AUTOCOOL!A534)>40000,0,(ALL!$B$3-AUTOCOOL!A534))","v":0}]
[null,null,null,null,null,null,null,null,null,null,0,0,{"$f":"IF((ALL!$B$3-AUTOCOOL!A535)>40000,0,(ALL!$B$3-AUTOCOOL!A535))","v":0}]
[null,null,null,null,null,null,null,null,null,null,0,0,{"$f":"IF((ALL!$B$3-AUTOCOOL!A536)>40000,0,(ALL!$B$3-AUTOCOOL!A536))","v":0}]
[null,null,null,null,null,null,null,null,null,null,0,0,{"$f":"IF((ALL!$B$3-AUTOCOOL!A537)>40000,0,(ALL!$B$3-AUTOCOOL!A537))","v":0}]
[null,null,null,null,null,null,null,null,null,null,0,0,{"$f":"IF((ALL!$B$3-AUTOCOOL!A538)>40000,0,(ALL!$B$3-AUTOCOOL!A538))","v":0}]
[null,null,null,null,null,null,null,null,null,null,0,0,{"$f":"IF((ALL!$B$3-AUTOCOOL!A539)>40000,0,(ALL!$B$3-AUTOCOOL!A539))","v":0}]
[null,null,null,null,null,null,null,null,null,null,0,0,{"$f":"IF((ALL!$B$3-AUTOCOOL!A540)>40000,0,(ALL!$B$3-AUTOCOOL!A540))","v":0}]
[null,null,null,null,null,null,null,null,null,null,0,0,{"$f":"IF((ALL!$B$3-AUTOCOOL!A541)>40000,0,(ALL!$B$3-AUTOCOOL!A541))","v":0}]
[null,null,null,null,null,null,null,null,null,null,0,0,{"$f":"IF((ALL!$B$3-AUTOCOOL!A542)>40000,0,(ALL!$B$3-AUTOCOOL!A542))","v":0}]
[null,null,null,null,null,null,null,null,null,null,0,0,{"$f":"IF((ALL!$B$3-AUTOCOOL!A543)>40000,0,(ALL!$B$3-AUTOCOOL!A543))","v":0}]
[null,null,null,null,null,null,null,null,null,null,0,0,{"$f":"IF((ALL!$B$3-AUTOCOOL!A544)>40000,0,(ALL!$B$3-AUTOCOOL!A544))","v":0}]
[null,null,null,null,null,null,null,null,null,null,0,0,{"$f":"IF((ALL!$B$3-AUTOCOOL!A545)>40000,0,(ALL!$B$3-AUTOCOOL!A545))","v":0}]
[null,null,null,null,null,null,null,null,null,null,0,0,{"$f":"IF((ALL!$B$3-AUTOCOOL!A546)>40000,0,(ALL!$B$3-AUTOCOOL!A546))","v":0}]
[null,null,null,null,null,null,null,null,null,null,0,0,{"$f":"IF((ALL!$B$3-AUTOCOOL!A547)>40000,0,(ALL!$B$3-AUTOCOOL!A547))","v":0}]
[null,null,null,null,null,null,null,null,null,null,0,0,{"$f":"IF((ALL!$B$3-AUTOCOOL!A548)>40000,0,(ALL!$B$3-AUTOCOOL!A548))","v":0}]
[null,null,null,null,null,null,null,null,null,null,0,0,{"$f":"IF((ALL!$B$3-AUTOCOOL!A549)>40000,0,(ALL!$B$3-AUTOCOOL!A549))","v":0}]
[null,null,null,null,null,null,null,null,null,null,0,0,{"$f":"IF((ALL!$B$3-AUTOCOOL!A550)>40000,0,(ALL!$B$3-AUTOCOOL!A550))","v":0}]
[null,null,null,null,null,null,null,null,null,null,0,0,{"$f":"IF((ALL!$B$3-AUTOCOOL!A551)>40000,0,(ALL!$B$3-AUTOCOOL!A551))","v":0}]
[null,null,null,null,null,null,null,null,null,null,0,0,{"$f":"IF((ALL!$B$3-AUTOCOOL!A552)>40000,0,(ALL!$B$3-AUTOCOOL!A552))","v":0}]
[null,null,null,null,null,null,null,null,null,null,0,0,{"$f":"IF((ALL!$B$3-AUTOCOOL!A553)>40000,0,(ALL!$B$3-AUTOCOOL!A553))","v":0}]
[null,null,null,null,null,null,null,null,null,null,0,0,{"$f":"IF((ALL!$B$3-AUTOCOOL!A554)>40000,0,(ALL!$B$3-AUTOCOOL!A554))","v":0}]
[null,null,null,null,null,null,null,null,null,null,0,0,{"$f":"IF((ALL!$B$3-AUTOCOOL!A555)>40000,0,(ALL!$B$3-AUTOCOOL!A555))","v":0}]
[null,null,null,null,null,null,null,null,null,null,0,0,{"$f":"IF((ALL!$B$3-AUTOCOOL!A556)>40000,0,(ALL!$B$3-AUTOCOOL!A556))","v":0}]
[null,null,null,null,null,null,null,null,null,null,0,0,{"$f":"IF((ALL!$B$3-AUTOCOOL!A557)>40000,0,(ALL!$B$3-AUTOCOOL!A557))","v":0}]
[null,null,null,null,null,null,null,null,null,null,0,0,{"$f":"IF((ALL!$B$3-AUTOCOOL!A558)>40000,0,(ALL!$B$3-AUTOCOOL!A558))","v":0}]
[null,null,null,null,null,null,null,null,null,null,0,0,{"$f":"IF((ALL!$B$3-AUTOCOOL!A559)>40000,0,(ALL!$B$3-AUTOCOOL!A559))","v":0}]
[null,null,null,null,null,null,null,null,null,null,0,0,{"$f":"IF((ALL!$B$3-AUTOCOOL!A560)>40000,0,(ALL!$B$3-AUTOCOOL!A560))","v":0}]
[null,null,null,null,null,null,null,null,null,null,0,0,{"$f":"IF((ALL!$B$3-AUTOCOOL!A561)>40000,0,(ALL!$B$3-AUTOCOOL!A561))","v":0}]
[null,null,null,null,null,null,null,null,null,null,0,0,{"$f":"IF((ALL!$B$3-AUTOCOOL!A562)>40000,0,(ALL!$B$3-AUTOCOOL!A562))","v":0}]
[null,null,null,null,null,null,null,null,null,null,0,0,{"$f":"IF((ALL!$B$3-AUTOCOOL!A563)>40000,0,(ALL!$B$3-AUTOCOOL!A563))","v":0}]
[null,null,null,null,null,null,null,null,null,null,0,0,{"$f":"IF((ALL!$B$3-AUTOCOOL!A564)>40000,0,(ALL!$B$3-AUTOCOOL!A564))","v":0}]
[null,null,null,null,null,null,null,null,null,null,0,0,{"$f":"IF((ALL!$B$3-AUTOCOOL!A565)>40000,0,(ALL!$B$3-AUTOCOOL!A565))","v":0}]
[null,null,null,null,null,null,null,null,null,null,0,0,{"$f":"IF((ALL!$B$3-AUTOCOOL!A566)>40000,0,(ALL!$B$3-AUTOCOOL!A566))","v":0}]
[null,null,null,null,null,null,null,null,null,null,0,0,{"$f":"IF((ALL!$B$3-AUTOCOOL!A567)>40000,0,(ALL!$B$3-AUTOCOOL!A567))","v":0}]
[null,null,null,null,null,null,null,null,null,null,0,0,{"$f":"IF((ALL!$B$3-AUTOCOOL!A568)>40000,0,(ALL!$B$3-AUTOCOOL!A568))","v":0}]
[null,null,null,null,null,null,null,null,null,null,0,0,{"$f":"IF((ALL!$B$3-AUTOCOOL!A569)>40000,0,(ALL!$B$3-AUTOCOOL!A569))","v":0}]
[null,null,null,null,null,null,null,null,null,null,0,0,{"$f":"IF((ALL!$B$3-AUTOCOOL!A570)>40000,0,(ALL!$B$3-AUTOCOOL!A570))","v":0}]
[null,null,null,null,null,null,null,null,null,null,0,0,{"$f":"IF((ALL!$B$3-AUTOCOOL!A571)>40000,0,(ALL!$B$3-AUTOCOOL!A571))","v":0}]
[null,null,null,null,null,null,null,null,null,null,0,0,{"$f":"IF((ALL!$B$3-AUTOCOOL!A572)>40000,0,(ALL!$B$3-AUTOCOOL!A572))","v":0}]
[null,null,null,null,null,null,null,null,null,null,0,0,{"$f":"IF((ALL!$B$3-AUTOCOOL!A573)>40000,0,(ALL!$B$3-AUTOCOOL!A573))","v":0}]
[null,null,null,null,null,null,null,null,null,null,0,0,{"$f":"IF((ALL!$B$3-AUTOCOOL!A574)>40000,0,(ALL!$B$3-AUTOCOOL!A574))","v":0}]
[null,null,null,null,null,null,null,null,null,null,0,0,{"$f":"IF((ALL!$B$3-AUTOCOOL!A575)>40000,0,(ALL!$B$3-AUTOCOOL!A575))","v":0}]
[null,null,null,null,null,null,null,null,null,null,0,0,{"$f":"IF((ALL!$B$3-AUTOCOOL!A576)>40000,0,(ALL!$B$3-AUTOCOOL!A576))","v":0}]
[null,null,null,null,null,null,null,null,null,null,0,0,{"$f":"IF((ALL!$B$3-AUTOCOOL!A577)>40000,0,(ALL!$B$3-AUTOCOOL!A577))","v":0}]
[null,null,null,null,null,null,null,null,null,null,0,0,{"$f":"IF((ALL!$B$3-AUTOCOOL!A578)>40000,0,(ALL!$B$3-AUTOCOOL!A578))","v":0}]
[null,null,null,null,null,null,null,null,null,null,0,0,{"$f":"IF((ALL!$B$3-AUTOCOOL!A579)>40000,0,(ALL!$B$3-AUTOCOOL!A579))","v":0}]
[null,null,null,null,null,null,null,null,null,null,0,0,{"$f":"IF((ALL!$B$3-AUTOCOOL!A580)>40000,0,(ALL!$B$3-AUTOCOOL!A580))","v":0}]
[null,null,null,null,null,null,null,null,null,null,0,0,{"$f":"IF((ALL!$B$3-AUTOCOOL!A581)>40000,0,(ALL!$B$3-AUTOCOOL!A581))","v":0}]
[null,null,null,null,null,null,null,null,null,null,0,0,{"$f":"IF((ALL!$B$3-AUTOCOOL!A582)>40000,0,(ALL!$B$3-AUTOCOOL!A582))","v":0}]
[null,null,null,null,null,null,null,null,null,null,{"$f":"SUM(C583:J583)","v":0},0,{"$f":"IF((ALL!$B$3-AUTOCOOL!A583)>40000,0,(ALL!$B$3-AUTOCOOL!A583))","v":0}]
[null,null,null,null,null,null,null,null,null,null,0,{"$f":"IF(AND(M584>365),\"OVER A YEAR\",IF(AND(M584>0,M584<31),\"1 MONTH\",IF(AND(M584>30,M584<61),\"2 MONTHS\",IF(AND(M584>60,M584<91),\"3 MONTHS\",IF(AND(M584>90,M584<181),\"3 : 6 MONTHS\",IF(AND(M584>180,M584<271),\"6 : 9 MONTHS\",IF(AND(M584>270,M584<366),\"9 : 12 MONTHS\",IF(M584=0,0))))))))","v":0},{"$f":"IF((ALL!$B$3-AUTOCOOL!A584)>40000,0,(ALL!$B$3-AUTOCOOL!A584))","v":0}]
[null,null,null,null,null,null,null,null,null,null,0,0,{"$f":"IF((ALL!$B$3-AUTOCOOL!A585)>40000,0,(ALL!$B$3-AUTOCOOL!A585))","v":0}]
[null,null,null,null,null,null,null,null,null,null,0,0,{"$f":"IF((ALL!$B$3-AUTOCOOL!A586)>40000,0,(ALL!$B$3-AUTOCOOL!A586))","v":0}]
[null,null,null,null,null,null,null,null,null,null,0,0,{"$f":"IF((ALL!$B$3-AUTOCOOL!A587)>40000,0,(ALL!$B$3-AUTOCOOL!A587))","v":0}]
[null,null,null,null,null,null,null,null,null,null,0,0,{"$f":"IF((ALL!$B$3-AUTOCOOL!A588)>40000,0,(ALL!$B$3-AUTOCOOL!A588))","v":0}]
[null,null,null,null,null,null,null,null,null,null,0,0,{"$f":"IF((ALL!$B$3-AUTOCOOL!A589)>40000,0,(ALL!$B$3-AUTOCOOL!A589))","v":0}]
[null,null,null,null,null,null,null,null,null,null,0,0,{"$f":"IF((ALL!$B$3-AUTOCOOL!A590)>40000,0,(ALL!$B$3-AUTOCOOL!A590))","v":0}]
[null,null,null,null,null,null,null,null,null,null,0,0,{"$f":"IF((ALL!$B$3-AUTOCOOL!A591)>40000,0,(ALL!$B$3-AUTOCOOL!A591))","v":0}]
[null,null,null,null,null,null,null,null,null,null,0,0,{"$f":"IF((ALL!$B$3-AUTOCOOL!A592)>40000,0,(ALL!$B$3-AUTOCOOL!A592))","v":0}]
[null,null,null,null,null,null,null,null,null,null,0,0,{"$f":"IF((ALL!$B$3-AUTOCOOL!A593)>40000,0,(ALL!$B$3-AUTOCOOL!A593))","v":0}]
[null,null,null,null,null,null,null,null,null,null,0,0,{"$f":"IF((ALL!$B$3-AUTOCOOL!A594)>40000,0,(ALL!$B$3-AUTOCOOL!A594))","v":0}]
[null,null,null,null,null,null,null,null,null,null,0,0,{"$f":"IF((ALL!$B$3-AUTOCOOL!A595)>40000,0,(ALL!$B$3-AUTOCOOL!A595))","v":0}]
[null,null,null,null,null,null,null,null,null,null,0,0,{"$f":"IF((ALL!$B$3-AUTOCOOL!A596)>40000,0,(ALL!$B$3-AUTOCOOL!A596))","v":0}]
[null,null,null,null,null,null,null,null,null,null,0,0,{"$f":"IF((ALL!$B$3-AUTOCOOL!A597)>40000,0,(ALL!$B$3-AUTOCOOL!A597))","v":0}]
[null,null,null,null,null,null,null,null,null,null,0,0,{"$f":"IF((ALL!$B$3-AUTOCOOL!A598)>40000,0,(ALL!$B$3-AUTOCOOL!A598))","v":0}]
[null,null,null,null,null,null,null,null,null,null,0,0,{"$f":"IF((ALL!$B$3-AUTOCOOL!A599)>40000,0,(ALL!$B$3-AUTOCOOL!A599))","v":0}]
[null,null,null,null,null,null,null,null,null,null,0,0,{"$f":"IF((ALL!$B$3-AUTOCOOL!A600)>40000,0,(ALL!$B$3-AUTOCOOL!A600))","v":0}]
[null,null,null,null,null,null,null,null,null,null,0,0,{"$f":"IF((ALL!$B$3-AUTOCOOL!A601)>40000,0,(ALL!$B$3-AUTOCOOL!A601))","v":0}]
[null,null,null,null,null,null,null,null,null,null,0,0,{"$f":"IF((ALL!$B$3-AUTOCOOL!A602)>40000,0,(ALL!$B$3-AUTOCOOL!A602))","v":0}]
[null,null,null,null,null,null,null,null,null,null,0,0,{"$f":"IF((ALL!$B$3-AUTOCOOL!A603)>40000,0,(ALL!$B$3-AUTOCOOL!A603))","v":0}]
[null,null,null,null,null,null,null,null,null,null,0,0,{"$f":"IF((ALL!$B$3-AUTOCOOL!A604)>40000,0,(ALL!$B$3-AUTOCOOL!A604))","v":0}]
[null,null,null,null,null,null,null,null,null,null,0,0,{"$f":"IF((ALL!$B$3-AUTOCOOL!A605)>40000,0,(ALL!$B$3-AUTOCOOL!A605))","v":0}]
[null,null,null,null,null,null,null,null,null,null,0,0,{"$f":"IF((ALL!$B$3-AUTOCOOL!A606)>40000,0,(ALL!$B$3-AUTOCOOL!A606))","v":0}]
[null,null,null,null,null,null,null,null,null,null,0,0,{"$f":"IF((ALL!$B$3-AUTOCOOL!A607)>40000,0,(ALL!$B$3-AUTOCOOL!A607))","v":0}]
[null,null,null,null,null,null,null,null,null,null,0,0,{"$f":"IF((ALL!$B$3-AUTOCOOL!A608)>40000,0,(ALL!$B$3-AUTOCOOL!A608))","v":0}]
[null,null,null,null,null,null,null,null,null,null,0,0,{"$f":"IF((ALL!$B$3-AUTOCOOL!A609)>40000,0,(ALL!$B$3-AUTOCOOL!A609))","v":0}]
[null,null,null,null,null,null,null,null,null,null,0,0,{"$f":"IF((ALL!$B$3-AUTOCOOL!A610)>40000,0,(ALL!$B$3-AUTOCOOL!A610))","v":0}]
[null,null,null,null,null,null,null,null,null,null,0,0,{"$f":"IF((ALL!$B$3-AUTOCOOL!A611)>40000,0,(ALL!$B$3-AUTOCOOL!A611))","v":0}]
[null,null,null,null,null,null,null,null,null,null,0,0,{"$f":"IF((ALL!$B$3-AUTOCOOL!A612)>40000,0,(ALL!$B$3-AUTOCOOL!A612))","v":0}]
[null,null,null,null,null,null,null,null,null,null,0,0,{"$f":"IF((ALL!$B$3-AUTOCOOL!A613)>40000,0,(ALL!$B$3-AUTOCOOL!A613))","v":0}]
[null,null,null,null,null,null,null,null,null,null,0,0,{"$f":"IF((ALL!$B$3-AUTOCOOL!A614)>40000,0,(ALL!$B$3-AUTOCOOL!A614))","v":0}]
[null,null,null,null,null,null,null,null,null,null,0,0,{"$f":"IF((ALL!$B$3-AUTOCOOL!A615)>40000,0,(ALL!$B$3-AUTOCOOL!A615))","v":0}]
[null,null,null,null,null,null,null,null,null,null,0,0,{"$f":"IF((ALL!$B$3-AUTOCOOL!A616)>40000,0,(ALL!$B$3-AUTOCOOL!A616))","v":0}]
[null,null,null,null,null,null,null,null,null,null,0,0,{"$f":"IF((ALL!$B$3-AUTOCOOL!A617)>40000,0,(ALL!$B$3-AUTOCOOL!A617))","v":0}]
[null,null,null,null,null,null,null,null,null,null,0,0,{"$f":"IF((ALL!$B$3-AUTOCOOL!A618)>40000,0,(ALL!$B$3-AUTOCOOL!A618))","v":0}]
[null,null,null,null,null,null,null,null,null,null,0,0,{"$f":"IF((ALL!$B$3-AUTOCOOL!A619)>40000,0,(ALL!$B$3-AUTOCOOL!A619))","v":0}]
[null,null,null,null,null,null,null,null,null,null,0,0,{"$f":"IF((ALL!$B$3-AUTOCOOL!A620)>40000,0,(ALL!$B$3-AUTOCOOL!A620))","v":0}]
[null,null,null,null,null,null,null,null,null,null,0,0,{"$f":"IF((ALL!$B$3-AUTOCOOL!A621)>40000,0,(ALL!$B$3-AUTOCOOL!A621))","v":0}]
[null,null,null,null,null,null,null,null,null,null,0,0,{"$f":"IF((ALL!$B$3-AUTOCOOL!A622)>40000,0,(ALL!$B$3-AUTOCOOL!A622))","v":0}]
[null,null,null,null,null,null,null,null,null,null,0,0,{"$f":"IF((ALL!$B$3-AUTOCOOL!A623)>40000,0,(ALL!$B$3-AUTOCOOL!A623))","v":0}]
[null,null,null,null,null,null,null,null,null,null,0,0,{"$f":"IF((ALL!$B$3-AUTOCOOL!A624)>40000,0,(ALL!$B$3-AUTOCOOL!A624))","v":0}]
[null,null,null,null,null,null,null,null,null,null,0,0,{"$f":"IF((ALL!$B$3-AUTOCOOL!A625)>40000,0,(ALL!$B$3-AUTOCOOL!A625))","v":0}]
[null,null,null,null,null,null,null,null,null,null,0,0,{"$f":"IF((ALL!$B$3-AUTOCOOL!A626)>40000,0,(ALL!$B$3-AUTOCOOL!A626))","v":0}]
[null,null,null,null,null,null,null,null,null,null,0,0,{"$f":"IF((ALL!$B$3-AUTOCOOL!A627)>40000,0,(ALL!$B$3-AUTOCOOL!A627))","v":0}]
[null,null,null,null,null,null,null,null,null,null,0,0,{"$f":"IF((ALL!$B$3-AUTOCOOL!A628)>40000,0,(ALL!$B$3-AUTOCOOL!A628))","v":0}]
[null,null,null,null,null,null,null,null,null,null,0,0,{"$f":"IF((ALL!$B$3-AUTOCOOL!A629)>40000,0,(ALL!$B$3-AUTOCOOL!A629))","v":0}]
[null,null,null,null,null,null,null,null,null,null,0,0,{"$f":"IF((ALL!$B$3-AUTOCOOL!A630)>40000,0,(ALL!$B$3-AUTOCOOL!A630))","v":0}]
[null,null,null,null,null,null,null,null,null,null,0,0,{"$f":"IF((ALL!$B$3-AUTOCOOL!A631)>40000,0,(ALL!$B$3-AUTOCOOL!A631))","v":0}]
[null,null,null,null,null,null,null,null,null,null,0,0,{"$f":"IF((ALL!$B$3-AUTOCOOL!A632)>40000,0,(ALL!$B$3-AUTOCOOL!A632))","v":0}]
[null,null,null,null,null,null,null,null,null,null,0,0,{"$f":"IF((ALL!$B$3-AUTOCOOL!A633)>40000,0,(ALL!$B$3-AUTOCOOL!A633))","v":0}]
[null,null,null,null,null,null,null,null,null,null,0,0,{"$f":"IF((ALL!$B$3-AUTOCOOL!A634)>40000,0,(ALL!$B$3-AUTOCOOL!A634))","v":0}]
[null,null,null,null,null,null,null,null,null,null,0,0,{"$f":"IF((ALL!$B$3-AUTOCOOL!A635)>40000,0,(ALL!$B$3-AUTOCOOL!A635))","v":0}]
[null,null,null,null,null,null,null,null,null,null,0,0,{"$f":"IF((ALL!$B$3-AUTOCOOL!A636)>40000,0,(ALL!$B$3-AUTOCOOL!A636))","v":0}]
[null,null,null,null,null,null,null,null,null,null,0,0,{"$f":"IF((ALL!$B$3-AUTOCOOL!A637)>40000,0,(ALL!$B$3-AUTOCOOL!A637))","v":0}]
[null,null,null,null,null,null,null,null,null,null,0,0,{"$f":"IF((ALL!$B$3-AUTOCOOL!A638)>40000,0,(ALL!$B$3-AUTOCOOL!A638))","v":0}]
[null,null,null,null,null,null,null,null,null,null,0,0,{"$f":"IF((ALL!$B$3-AUTOCOOL!A639)>40000,0,(ALL!$B$3-AUTOCOOL!A639))","v":0}]
[null,null,null,null,null,null,null,null,null,null,0,0,{"$f":"IF((ALL!$B$3-AUTOCOOL!A640)>40000,0,(ALL!$B$3-AUTOCOOL!A640))","v":0}]
[null,null,null,null,null,null,null,null,null,null,0,0,{"$f":"IF((ALL!$B$3-AUTOCOOL!A641)>40000,0,(ALL!$B$3-AUTOCOOL!A641))","v":0}]
[null,null,null,null,null,null,null,null,null,null,0,0,{"$f":"IF((ALL!$B$3-AUTOCOOL!A642)>40000,0,(ALL!$B$3-AUTOCOOL!A642))","v":0}]
[null,null,null,null,null,null,null,null,null,null,0,0,{"$f":"IF((ALL!$B$3-AUTOCOOL!A643)>40000,0,(ALL!$B$3-AUTOCOOL!A643))","v":0}]
[null,null,null,null,null,null,null,null,null,null,0,0,{"$f":"IF((ALL!$B$3-AUTOCOOL!A644)>40000,0,(ALL!$B$3-AUTOCOOL!A644))","v":0}]
[null,null,null,null,null,null,null,null,null,null,0,0,{"$f":"IF((ALL!$B$3-AUTOCOOL!A645)>40000,0,(ALL!$B$3-AUTOCOOL!A645))","v":0}]
[null,null,null,null,null,null,null,null,null,null,0,0,{"$f":"IF((ALL!$B$3-AUTOCOOL!A646)>40000,0,(ALL!$B$3-AUTOCOOL!A646))","v":0}]
[null,null,null,null,null,null,null,null,null,null,{"$f":"SUM(C647:J647)","v":0},0,{"$f":"IF((ALL!$B$3-AUTOCOOL!A647)>40000,0,(ALL!$B$3-AUTOCOOL!A647))","v":0}]
[null,null,null,null,null,null,null,null,null,null,0,{"$f":"IF(AND(M648>365),\"OVER A YEAR\",IF(AND(M648>0,M648<31),\"1 MONTH\",IF(AND(M648>30,M648<61),\"2 MONTHS\",IF(AND(M648>60,M648<91),\"3 MONTHS\",IF(AND(M648>90,M648<181),\"3 : 6 MONTHS\",IF(AND(M648>180,M648<271),\"6 : 9 MONTHS\",IF(AND(M648>270,M648<366),\"9 : 12 MONTHS\",IF(M648=0,0))))))))","v":0},{"$f":"IF((ALL!$B$3-AUTOCOOL!A648)>40000,0,(ALL!$B$3-AUTOCOOL!A648))","v":0}]
[null,null,null,null,null,null,null,null,null,null,0,0,{"$f":"IF((ALL!$B$3-AUTOCOOL!A649)>40000,0,(ALL!$B$3-AUTOCOOL!A649))","v":0}]
[null,null,null,null,null,null,null,null,null,null,0,0,{"$f":"IF((ALL!$B$3-AUTOCOOL!A650)>40000,0,(ALL!$B$3-AUTOCOOL!A650))","v":0}]
[null,null,null,null,null,null,null,null,null,null,0,0,{"$f":"IF((ALL!$B$3-AUTOCOOL!A651)>40000,0,(ALL!$B$3-AUTOCOOL!A651))","v":0}]
[null,null,null,null,null,null,null,null,null,null,0,0,{"$f":"IF((ALL!$B$3-AUTOCOOL!A652)>40000,0,(ALL!$B$3-AUTOCOOL!A652))","v":0}]
[null,null,null,null,null,null,null,null,null,null,0,0,{"$f":"IF((ALL!$B$3-AUTOCOOL!A653)>40000,0,(ALL!$B$3-AUTOCOOL!A653))","v":0}]
[null,null,null,null,null,null,null,null,null,null,0,0,{"$f":"IF((ALL!$B$3-AUTOCOOL!A654)>40000,0,(ALL!$B$3-AUTOCOOL!A654))","v":0}]
[null,null,null,null,null,null,null,null,null,null,0,0,{"$f":"IF((ALL!$B$3-AUTOCOOL!A655)>40000,0,(ALL!$B$3-AUTOCOOL!A655))","v":0}]
[null,null,null,null,null,null,null,null,null,null,0,0,{"$f":"IF((ALL!$B$3-AUTOCOOL!A656)>40000,0,(ALL!$B$3-AUTOCOOL!A656))","v":0}]
[null,null,null,null,null,null,null,null,null,null,0,0,{"$f":"IF((ALL!$B$3-AUTOCOOL!A657)>40000,0,(ALL!$B$3-AUTOCOOL!A657))","v":0}]
[null,null,null,null,null,null,null,null,null,null,0,0,{"$f":"IF((ALL!$B$3-AUTOCOOL!A658)>40000,0,(ALL!$B$3-AUTOCOOL!A658))","v":0}]
[null,null,null,null,null,null,null,null,null,null,0,0,{"$f":"IF((ALL!$B$3-AUTOCOOL!A659)>40000,0,(ALL!$B$3-AUTOCOOL!A659))","v":0}]
[null,null,null,null,null,null,null,null,null,null,0,0,{"$f":"IF((ALL!$B$3-AUTOCOOL!A660)>40000,0,(ALL!$B$3-AUTOCOOL!A660))","v":0}]
[null,null,null,null,null,null,null,null,null,null,0,0,{"$f":"IF((ALL!$B$3-AUTOCOOL!A661)>40000,0,(ALL!$B$3-AUTOCOOL!A661))","v":0}]
[null,null,null,null,null,null,null,null,null,null,0,0,{"$f":"IF((ALL!$B$3-AUTOCOOL!A662)>40000,0,(ALL!$B$3-AUTOCOOL!A662))","v":0}]
[null,null,null,null,null,null,null,null,null,null,0,0,{"$f":"IF((ALL!$B$3-AUTOCOOL!A663)>40000,0,(ALL!$B$3-AUTOCOOL!A663))","v":0}]
[null,null,null,null,null,null,null,null,null,null,0,0,{"$f":"IF((ALL!$B$3-AUTOCOOL!A664)>40000,0,(ALL!$B$3-AUTOCOOL!A664))","v":0}]
[null,null,null,null,null,null,null,null,null,null,0,0,{"$f":"IF((ALL!$B$3-AUTOCOOL!A665)>40000,0,(ALL!$B$3-AUTOCOOL!A665))","v":0}]
[null,null,null,null,null,null,null,null,null,null,0,0,{"$f":"IF((ALL!$B$3-AUTOCOOL!A666)>40000,0,(ALL!$B$3-AUTOCOOL!A666))","v":0}]
[null,null,null,null,null,null,null,null,null,null,0,0,{"$f":"IF((ALL!$B$3-AUTOCOOL!A667)>40000,0,(ALL!$B$3-AUTOCOOL!A667))","v":0}]
[null,null,null,null,null,null,null,null,null,null,0,0,{"$f":"IF((ALL!$B$3-AUTOCOOL!A668)>40000,0,(ALL!$B$3-AUTOCOOL!A668))","v":0}]
[null,null,null,null,null,null,null,null,null,null,0,0,{"$f":"IF((ALL!$B$3-AUTOCOOL!A669)>40000,0,(ALL!$B$3-AUTOCOOL!A669))","v":0}]
[null,null,null,null,null,null,null,null,null,null,0,0,{"$f":"IF((ALL!$B$3-AUTOCOOL!A670)>40000,0,(ALL!$B$3-AUTOCOOL!A670))","v":0}]
[null,null,null,null,null,null,null,null,null,null,0,0,{"$f":"IF((ALL!$B$3-AUTOCOOL!A671)>40000,0,(ALL!$B$3-AUTOCOOL!A671))","v":0}]
[null,null,null,null,null,null,null,null,null,null,0,0,{"$f":"IF((ALL!$B$3-AUTOCOOL!A672)>40000,0,(ALL!$B$3-AUTOCOOL!A672))","v":0}]
[null,null,null,null,null,null,null,null,null,null,0,0,{"$f":"IF((ALL!$B$3-AUTOCOOL!A673)>40000,0,(ALL!$B$3-AUTOCOOL!A673))","v":0}]
[null,null,null,null,null,null,null,null,null,null,0,0,{"$f":"IF((ALL!$B$3-AUTOCOOL!A674)>40000,0,(ALL!$B$3-AUTOCOOL!A674))","v":0}]
[null,null,null,null,null,null,null,null,null,null,0,0,{"$f":"IF((ALL!$B$3-AUTOCOOL!A675)>40000,0,(ALL!$B$3-AUTOCOOL!A675))","v":0}]
[null,null,null,null,null,null,null,null,null,null,0,0,{"$f":"IF((ALL!$B$3-AUTOCOOL!A676)>40000,0,(ALL!$B$3-AUTOCOOL!A676))","v":0}]
[null,null,null,null,null,null,null,null,null,null,0,0,{"$f":"IF((ALL!$B$3-AUTOCOOL!A677)>40000,0,(ALL!$B$3-AUTOCOOL!A677))","v":0}]
[null,null,null,null,null,null,null,null,null,null,0,0,{"$f":"IF((ALL!$B$3-AUTOCOOL!A678)>40000,0,(ALL!$B$3-AUTOCOOL!A678))","v":0}]
[null,null,null,null,null,null,null,null,null,null,0,0,{"$f":"IF((ALL!$B$3-AUTOCOOL!A679)>40000,0,(ALL!$B$3-AUTOCOOL!A679))","v":0}]
[null,null,null,null,null,null,null,null,null,null,0,0,{"$f":"IF((ALL!$B$3-AUTOCOOL!A680)>40000,0,(ALL!$B$3-AUTOCOOL!A680))","v":0}]
[null,null,null,null,null,null,null,null,null,null,0,0,{"$f":"IF((ALL!$B$3-AUTOCOOL!A681)>40000,0,(ALL!$B$3-AUTOCOOL!A681))","v":0}]
[null,null,null,null,null,null,null,null,null,null,0,0,{"$f":"IF((ALL!$B$3-AUTOCOOL!A682)>40000,0,(ALL!$B$3-AUTOCOOL!A682))","v":0}]
[null,null,null,null,null,null,null,null,null,null,0,0,{"$f":"IF((ALL!$B$3-AUTOCOOL!A683)>40000,0,(ALL!$B$3-AUTOCOOL!A683))","v":0}]
[null,null,null,null,null,null,null,null,null,null,0,0,{"$f":"IF((ALL!$B$3-AUTOCOOL!A684)>40000,0,(ALL!$B$3-AUTOCOOL!A684))","v":0}]
[null,null,null,null,null,null,null,null,null,null,0,0,{"$f":"IF((ALL!$B$3-AUTOCOOL!A685)>40000,0,(ALL!$B$3-AUTOCOOL!A685))","v":0}]
[null,null,null,null,null,null,null,null,null,null,0,0,{"$f":"IF((ALL!$B$3-AUTOCOOL!A686)>40000,0,(ALL!$B$3-AUTOCOOL!A686))","v":0}]
[null,null,null,null,null,null,null,null,null,null,0,0,{"$f":"IF((ALL!$B$3-AUTOCOOL!A687)>40000,0,(ALL!$B$3-AUTOCOOL!A687))","v":0}]
[null,null,null,null,null,null,null,null,null,null,0,0,{"$f":"IF((ALL!$B$3-AUTOCOOL!A688)>40000,0,(ALL!$B$3-AUTOCOOL!A688))","v":0}]
[null,null,null,null,null,null,null,null,null,null,0,0,{"$f":"IF((ALL!$B$3-AUTOCOOL!A689)>40000,0,(ALL!$B$3-AUTOCOOL!A689))","v":0}]
[null,null,null,null,null,null,null,null,null,null,0,0,{"$f":"IF((ALL!$B$3-AUTOCOOL!A690)>40000,0,(ALL!$B$3-AUTOCOOL!A690))","v":0}]
[null,null,null,null,null,null,null,null,null,null,0,0,{"$f":"IF((ALL!$B$3-AUTOCOOL!A691)>40000,0,(ALL!$B$3-AUTOCOOL!A691))","v":0}]
[null,null,null,null,null,null,null,null,null,null,0,0,{"$f":"IF((ALL!$B$3-AUTOCOOL!A692)>40000,0,(ALL!$B$3-AUTOCOOL!A692))","v":0}]
[null,null,null,null,null,null,null,null,null,null,0,0,{"$f":"IF((ALL!$B$3-AUTOCOOL!A693)>40000,0,(ALL!$B$3-AUTOCOOL!A693))","v":0}]
[null,null,null,null,null,null,null,null,null,null,0,0,{"$f":"IF((ALL!$B$3-AUTOCOOL!A694)>40000,0,(ALL!$B$3-AUTOCOOL!A694))","v":0}]
[null,null,null,null,null,null,null,null,null,null,0,0,{"$f":"IF((ALL!$B$3-AUTOCOOL!A695)>40000,0,(ALL!$B$3-AUTOCOOL!A695))","v":0}]
[null,null,null,null,null,null,null,null,null,null,0,0,{"$f":"IF((ALL!$B$3-AUTOCOOL!A696)>40000,0,(ALL!$B$3-AUTOCOOL!A696))","v":0}]
[null,null,null,null,null,null,null,null,null,null,0,0,{"$f":"IF((ALL!$B$3-AUTOCOOL!A697)>40000,0,(ALL!$B$3-AUTOCOOL!A697))","v":0}]
[null,null,null,null,null,null,null,null,null,null,0,0,{"$f":"IF((ALL!$B$3-AUTOCOOL!A698)>40000,0,(ALL!$B$3-AUTOCOOL!A698))","v":0}]
[null,null,null,null,null,null,null,null,null,null,0,0,{"$f":"IF((ALL!$B$3-AUTOCOOL!A699)>40000,0,(ALL!$B$3-AUTOCOOL!A699))","v":0}]
[null,null,null,null,null,null,null,null,null,null,0,0,{"$f":"IF((ALL!$B$3-AUTOCOOL!A700)>40000,0,(ALL!$B$3-AUTOCOOL!A700))","v":0}]
[null,null,null,null,null,null,null,null,null,null,0,0,{"$f":"IF((ALL!$B$3-AUTOCOOL!A701)>40000,0,(ALL!$B$3-AUTOCOOL!A701))","v":0}]
[null,null,null,null,null,null,null,null,null,null,0,0,{"$f":"IF((ALL!$B$3-AUTOCOOL!A702)>40000,0,(ALL!$B$3-AUTOCOOL!A702))","v":0}]
[null,null,null,null,null,null,null,null,null,null,0,0,{"$f":"IF((ALL!$B$3-AUTOCOOL!A703)>40000,0,(ALL!$B$3-AUTOCOOL!A703))","v":0}]
[null,null,null,null,null,null,null,null,null,null,0,0,{"$f":"IF((ALL!$B$3-AUTOCOOL!A704)>40000,0,(ALL!$B$3-AUTOCOOL!A704))","v":0}]
[null,null,null,null,null,null,null,null,null,null,0,0,{"$f":"IF((ALL!$B$3-AUTOCOOL!A705)>40000,0,(ALL!$B$3-AUTOCOOL!A705))","v":0}]
[null,null,null,null,null,null,null,null,null,null,0,0,{"$f":"IF((ALL!$B$3-AUTOCOOL!A706)>40000,0,(ALL!$B$3-AUTOCOOL!A706))","v":0}]
[null,null,null,null,null,null,null,null,null,null,0,0,{"$f":"IF((ALL!$B$3-AUTOCOOL!A707)>40000,0,(ALL!$B$3-AUTOCOOL!A707))","v":0}]
[null,null,null,null,null,null,null,null,null,null,0,0,{"$f":"IF((ALL!$B$3-AUTOCOOL!A708)>40000,0,(ALL!$B$3-AUTOCOOL!A708))","v":0}]
[null,null,null,null,null,null,null,null,null,null,0,0,{"$f":"IF((ALL!$B$3-AUTOCOOL!A709)>40000,0,(ALL!$B$3-AUTOCOOL!A709))","v":0}]
[null,null,null,null,null,null,null,null,null,null,0,0,{"$f":"IF((ALL!$B$3-AUTOCOOL!A710)>40000,0,(ALL!$B$3-AUTOCOOL!A710))","v":0}]
[null,null,null,null,null,null,null,null,null,null,{"$f":"SUM(C711:J711)","v":0},0,{"$f":"IF((ALL!$B$3-AUTOCOOL!A711)>40000,0,(ALL!$B$3-AUTOCOOL!A711))","v":0}]
[null,null,null,null,null,null,null,null,null,null,0,{"$f":"IF(AND(M712>365),\"OVER A YEAR\",IF(AND(M712>0,M712<31),\"1 MONTH\",IF(AND(M712>30,M712<61),\"2 MONTHS\",IF(AND(M712>60,M712<91),\"3 MONTHS\",IF(AND(M712>90,M712<181),\"3 : 6 MONTHS\",IF(AND(M712>180,M712<271),\"6 : 9 MONTHS\",IF(AND(M712>270,M712<366),\"9 : 12 MONTHS\",IF(M712=0,0))))))))","v":0},{"$f":"IF((ALL!$B$3-AUTOCOOL!A712)>40000,0,(ALL!$B$3-AUTOCOOL!A712))","v":0}]
[null,null,null,null,null,null,null,null,null,null,0,0,{"$f":"IF((ALL!$B$3-AUTOCOOL!A713)>40000,0,(ALL!$B$3-AUTOCOOL!A713))","v":0}]
[null,null,null,null,null,null,null,null,null,null,0,0,{"$f":"IF((ALL!$B$3-AUTOCOOL!A714)>40000,0,(ALL!$B$3-AUTOCOOL!A714))","v":0}]
[null,null,null,null,null,null,null,null,null,null,0,0,{"$f":"IF((ALL!$B$3-AUTOCOOL!A715)>40000,0,(ALL!$B$3-AUTOCOOL!A715))","v":0}]
[null,null,null,null,null,null,null,null,null,null,0,0,{"$f":"IF((ALL!$B$3-AUTOCOOL!A716)>40000,0,(ALL!$B$3-AUTOCOOL!A716))","v":0}]
[null,null,null,null,null,null,null,null,null,null,0,0,{"$f":"IF((ALL!$B$3-AUTOCOOL!A717)>40000,0,(ALL!$B$3-AUTOCOOL!A717))","v":0}]
[null,null,null,null,null,null,null,null,null,null,0,0,{"$f":"IF((ALL!$B$3-AUTOCOOL!A718)>40000,0,(ALL!$B$3-AUTOCOOL!A718))","v":0}]
[null,null,null,null,null,null,null,null,null,null,0,0,{"$f":"IF((ALL!$B$3-AUTOCOOL!A719)>40000,0,(ALL!$B$3-AUTOCOOL!A719))","v":0}]
[null,null,null,null,null,null,null,null,null,null,0,0,{"$f":"IF((ALL!$B$3-AUTOCOOL!A720)>40000,0,(ALL!$B$3-AUTOCOOL!A720))","v":0}]
[null,null,null,null,null,null,null,null,null,null,0,0,{"$f":"IF((ALL!$B$3-AUTOCOOL!A721)>40000,0,(ALL!$B$3-AUTOCOOL!A721))","v":0}]
[null,null,null,null,null,null,null,null,null,null,0,0,{"$f":"IF((ALL!$B$3-AUTOCOOL!A722)>40000,0,(ALL!$B$3-AUTOCOOL!A722))","v":0}]
[null,null,null,null,null,null,null,null,null,null,0,0,{"$f":"IF((ALL!$B$3-AUTOCOOL!A723)>40000,0,(ALL!$B$3-AUTOCOOL!A723))","v":0}]
[null,null,null,null,null,null,null,null,null,null,0,0,{"$f":"IF((ALL!$B$3-AUTOCOOL!A724)>40000,0,(ALL!$B$3-AUTOCOOL!A724))","v":0}]
[null,null,null,null,null,null,null,null,null,null,0,0,{"$f":"IF((ALL!$B$3-AUTOCOOL!A725)>40000,0,(ALL!$B$3-AUTOCOOL!A725))","v":0}]
[null,null,null,null,null,null,null,null,null,null,0,0,{"$f":"IF((ALL!$B$3-AUTOCOOL!A726)>40000,0,(ALL!$B$3-AUTOCOOL!A726))","v":0}]
[null,null,null,null,null,null,null,null,null,null,0,0,{"$f":"IF((ALL!$B$3-AUTOCOOL!A727)>40000,0,(ALL!$B$3-AUTOCOOL!A727))","v":0}]
[null,null,null,null,null,null,null,null,null,null,0,0,{"$f":"IF((ALL!$B$3-AUTOCOOL!A728)>40000,0,(ALL!$B$3-AUTOCOOL!A728))","v":0}]
[null,null,null,null,null,null,null,null,null,null,0,0,{"$f":"IF((ALL!$B$3-AUTOCOOL!A729)>40000,0,(ALL!$B$3-AUTOCOOL!A729))","v":0}]
[null,null,null,null,null,null,null,null,null,null,0,0,{"$f":"IF((ALL!$B$3-AUTOCOOL!A730)>40000,0,(ALL!$B$3-AUTOCOOL!A730))","v":0}]
[null,null,null,null,null,null,null,null,null,null,0,0,{"$f":"IF((ALL!$B$3-AUTOCOOL!A731)>40000,0,(ALL!$B$3-AUTOCOOL!A731))","v":0}]
[null,null,null,null,null,null,null,null,null,null,0,0,{"$f":"IF((ALL!$B$3-AUTOCOOL!A732)>40000,0,(ALL!$B$3-AUTOCOOL!A732))","v":0}]
[null,null,null,null,null,null,null,null,null,null,0,0,{"$f":"IF((ALL!$B$3-AUTOCOOL!A733)>40000,0,(ALL!$B$3-AUTOCOOL!A733))","v":0}]
[null,null,null,null,null,null,null,null,null,null,0,0,{"$f":"IF((ALL!$B$3-AUTOCOOL!A734)>40000,0,(ALL!$B$3-AUTOCOOL!A734))","v":0}]
[null,null,null,null,null,null,null,null,null,null,0,0,{"$f":"IF((ALL!$B$3-AUTOCOOL!A735)>40000,0,(ALL!$B$3-AUTOCOOL!A735))","v":0}]
[null,null,null,null,null,null,null,null,null,null,0,0,{"$f":"IF((ALL!$B$3-AUTOCOOL!A736)>40000,0,(ALL!$B$3-AUTOCOOL!A736))","v":0}]
[null,null,null,null,null,null,null,null,null,null,0,0,{"$f":"IF((ALL!$B$3-AUTOCOOL!A737)>40000,0,(ALL!$B$3-AUTOCOOL!A737))","v":0}]
[null,null,null,null,null,null,null,null,null,null,0,0,{"$f":"IF((ALL!$B$3-AUTOCOOL!A738)>40000,0,(ALL!$B$3-AUTOCOOL!A738))","v":0}]
[null,null,null,null,null,null,null,null,null,null,0,0,{"$f":"IF((ALL!$B$3-AUTOCOOL!A739)>40000,0,(ALL!$B$3-AUTOCOOL!A739))","v":0}]
[null,null,null,null,null,null,null,null,null,null,0,0,{"$f":"IF((ALL!$B$3-AUTOCOOL!A740)>40000,0,(ALL!$B$3-AUTOCOOL!A740))","v":0}]
[null,null,null,null,null,null,null,null,null,null,0,0,{"$f":"IF((ALL!$B$3-AUTOCOOL!A741)>40000,0,(ALL!$B$3-AUTOCOOL!A741))","v":0}]
[null,null,null,null,null,null,null,null,null,null,0,0,{"$f":"IF((ALL!$B$3-AUTOCOOL!A742)>40000,0,(ALL!$B$3-AUTOCOOL!A742))","v":0}]
[null,null,null,null,null,null,null,null,null,null,0,0,{"$f":"IF((ALL!$B$3-AUTOCOOL!A743)>40000,0,(ALL!$B$3-AUTOCOOL!A743))","v":0}]
[null,null,null,null,null,null,null,null,null,null,0,0,{"$f":"IF((ALL!$B$3-AUTOCOOL!A744)>40000,0,(ALL!$B$3-AUTOCOOL!A744))","v":0}]
[null,null,null,null,null,null,null,null,null,null,0,0,{"$f":"IF((ALL!$B$3-AUTOCOOL!A745)>40000,0,(ALL!$B$3-AUTOCOOL!A745))","v":0}]
[null,null,null,null,null,null,null,null,null,null,0,0,{"$f":"IF((ALL!$B$3-AUTOCOOL!A746)>40000,0,(ALL!$B$3-AUTOCOOL!A746))","v":0}]
[null,null,null,null,null,null,null,null,null,null,0,0,{"$f":"IF((ALL!$B$3-AUTOCOOL!A747)>40000,0,(ALL!$B$3-AUTOCOOL!A747))","v":0}]
[null,null,null,null,null,null,null,null,null,null,0,0,{"$f":"IF((ALL!$B$3-AUTOCOOL!A748)>40000,0,(ALL!$B$3-AUTOCOOL!A748))","v":0}]
[null,null,null,null,null,null,null,null,null,null,0,0,{"$f":"IF((ALL!$B$3-AUTOCOOL!A749)>40000,0,(ALL!$B$3-AUTOCOOL!A749))","v":0}]
[null,null,null,null,null,null,null,null,null,null,0,0,{"$f":"IF((ALL!$B$3-AUTOCOOL!A750)>40000,0,(ALL!$B$3-AUTOCOOL!A750))","v":0}]
[null,null,null,null,null,null,null,null,null,null,0,0,{"$f":"IF((ALL!$B$3-AUTOCOOL!A751)>40000,0,(ALL!$B$3-AUTOCOOL!A751))","v":0}]
[null,null,null,null,null,null,null,null,null,null,0,0,{"$f":"IF((ALL!$B$3-AUTOCOOL!A752)>40000,0,(ALL!$B$3-AUTOCOOL!A752))","v":0}]
[null,null,null,null,null,null,null,null,null,null,0,0,{"$f":"IF((ALL!$B$3-AUTOCOOL!A753)>40000,0,(ALL!$B$3-AUTOCOOL!A753))","v":0}]
[null,null,null,null,null,null,null,null,null,null,0,0,{"$f":"IF((ALL!$B$3-AUTOCOOL!A754)>40000,0,(ALL!$B$3-AUTOCOOL!A754))","v":0}]
[null,null,null,null,null,null,null,null,null,null,0,0,{"$f":"IF((ALL!$B$3-AUTOCOOL!A755)>40000,0,(ALL!$B$3-AUTOCOOL!A755))","v":0}]
[null,null,null,null,null,null,null,null,null,null,0,0,{"$f":"IF((ALL!$B$3-AUTOCOOL!A756)>40000,0,(ALL!$B$3-AUTOCOOL!A756))","v":0}]
[null,null,null,null,null,null,null,null,null,null,0,0,{"$f":"IF((ALL!$B$3-AUTOCOOL!A757)>40000,0,(ALL!$B$3-AUTOCOOL!A757))","v":0}]
[null,null,null,null,null,null,null,null,null,null,0,0,{"$f":"IF((ALL!$B$3-AUTOCOOL!A758)>40000,0,(ALL!$B$3-AUTOCOOL!A758))","v":0}]
[null,null,null,null,null,null,null,null,null,null,0,0,{"$f":"IF((ALL!$B$3-AUTOCOOL!A759)>40000,0,(ALL!$B$3-AUTOCOOL!A759))","v":0}]
[null,null,null,null,null,null,null,null,null,null,0,0,{"$f":"IF((ALL!$B$3-AUTOCOOL!A760)>40000,0,(ALL!$B$3-AUTOCOOL!A760))","v":0}]
[null,null,null,null,null,null,null,null,null,null,0,0,{"$f":"IF((ALL!$B$3-AUTOCOOL!A761)>40000,0,(ALL!$B$3-AUTOCOOL!A761))","v":0}]
[null,null,null,null,null,null,null,null,null,null,0,0,{"$f":"IF((ALL!$B$3-AUTOCOOL!A762)>40000,0,(ALL!$B$3-AUTOCOOL!A762))","v":0}]
[null,null,null,null,null,null,null,null,null,null,0,0,{"$f":"IF((ALL!$B$3-AUTOCOOL!A763)>40000,0,(ALL!$B$3-AUTOCOOL!A763))","v":0}]
[null,null,null,null,null,null,null,null,null,null,0,0,{"$f":"IF((ALL!$B$3-AUTOCOOL!A764)>40000,0,(ALL!$B$3-AUTOCOOL!A764))","v":0}]
[null,null,null,null,null,null,null,null,null,null,0,0,{"$f":"IF((ALL!$B$3-AUTOCOOL!A765)>40000,0,(ALL!$B$3-AUTOCOOL!A765))","v":0}]
[null,null,null,null,null,null,null,null,null,null,0,0,{"$f":"IF((ALL!$B$3-AUTOCOOL!A766)>40000,0,(ALL!$B$3-AUTOCOOL!A766))","v":0}]
[null,null,null,null,null,null,null,null,null,null,0,0,{"$f":"IF((ALL!$B$3-AUTOCOOL!A767)>40000,0,(ALL!$B$3-AUTOCOOL!A767))","v":0}]
[null,null,null,null,null,null,null,null,null,null,0,0,{"$f":"IF((ALL!$B$3-AUTOCOOL!A768)>40000,0,(ALL!$B$3-AUTOCOOL!A768))","v":0}]
[null,null,null,null,null,null,null,null,null,null,0,0,{"$f":"IF((ALL!$B$3-AUTOCOOL!A769)>40000,0,(ALL!$B$3-AUTOCOOL!A769))","v":0}]
[null,null,null,null,null,null,null,null,null,null,0,0,{"$f":"IF((ALL!$B$3-AUTOCOOL!A770)>40000,0,(ALL!$B$3-AUTOCOOL!A770))","v":0}]
[null,null,null,null,null,null,null,null,null,null,0,0,{"$f":"IF((ALL!$B$3-AUTOCOOL!A771)>40000,0,(ALL!$B$3-AUTOCOOL!A771))","v":0}]
[null,null,null,null,null,null,null,null,null,null,0,0,{"$f":"IF((ALL!$B$3-AUTOCOOL!A772)>40000,0,(ALL!$B$3-AUTOCOOL!A772))","v":0}]
[null,null,null,null,null,null,null,null,null,null,0,0,{"$f":"IF((ALL!$B$3-AUTOCOOL!A773)>40000,0,(ALL!$B$3-AUTOCOOL!A773))","v":0}]
[null,null,null,null,null,null,null,null,null,null,0,0,{"$f":"IF((ALL!$B$3-AUTOCOOL!A774)>40000,0,(ALL!$B$3-AUTOCOOL!A774))","v":0}]
[null,null,null,null,null,null,null,null,null,null,{"$f":"SUM(C775:J775)","v":0},0,{"$f":"IF((ALL!$B$3-AUTOCOOL!A775)>40000,0,(ALL!$B$3-AUTOCOOL!A775))","v":0}]
[null,null,null,null,null,null,null,null,null,null,0,{"$f":"IF(AND(M776>365),\"OVER A YEAR\",IF(AND(M776>0,M776<31),\"1 MONTH\",IF(AND(M776>30,M776<61),\"2 MONTHS\",IF(AND(M776>60,M776<91),\"3 MONTHS\",IF(AND(M776>90,M776<181),\"3 : 6 MONTHS\",IF(AND(M776>180,M776<271),\"6 : 9 MONTHS\",IF(AND(M776>270,M776<366),\"9 : 12 MONTHS\",IF(M776=0,0))))))))","v":0},{"$f":"IF((ALL!$B$3-AUTOCOOL!A776)>40000,0,(ALL!$B$3-AUTOCOOL!A776))","v":0}]
[null,null,null,null,null,null,null,null,null,null,0,0,{"$f":"IF((ALL!$B$3-AUTOCOOL!A777)>40000,0,(ALL!$B$3-AUTOCOOL!A777))","v":0}]
[null,null,null,null,null,null,null,null,null,null,0,0,{"$f":"IF((ALL!$B$3-AUTOCOOL!A778)>40000,0,(ALL!$B$3-AUTOCOOL!A778))","v":0}]
[null,null,null,null,null,null,null,null,null,null,0,0,{"$f":"IF((ALL!$B$3-AUTOCOOL!A779)>40000,0,(ALL!$B$3-AUTOCOOL!A779))","v":0}]
[null,null,null,null,null,null,null,null,null,null,0,0,{"$f":"IF((ALL!$B$3-AUTOCOOL!A780)>40000,0,(ALL!$B$3-AUTOCOOL!A780))","v":0}]
[null,null,null,null,null,null,null,null,null,null,0,0,{"$f":"IF((ALL!$B$3-AUTOCOOL!A781)>40000,0,(ALL!$B$3-AUTOCOOL!A781))","v":0}]
[null,null,null,null,null,null,null,null,null,null,0,0,{"$f":"IF((ALL!$B$3-AUTOCOOL!A782)>40000,0,(ALL!$B$3-AUTOCOOL!A782))","v":0}]
[null,null,null,null,null,null,null,null,null,null,0,0,{"$f":"IF((ALL!$B$3-AUTOCOOL!A783)>40000,0,(ALL!$B$3-AUTOCOOL!A783))","v":0}]
[null,null,null,null,null,null,null,null,null,null,0,0,{"$f":"IF((ALL!$B$3-AUTOCOOL!A784)>40000,0,(ALL!$B$3-AUTOCOOL!A784))","v":0}]
[null,null,null,null,null,null,null,null,null,null,0,0,{"$f":"IF((ALL!$B$3-AUTOCOOL!A785)>40000,0,(ALL!$B$3-AUTOCOOL!A785))","v":0}]
[null,null,null,null,null,null,null,null,null,null,0,0,{"$f":"IF((ALL!$B$3-AUTOCOOL!A786)>40000,0,(ALL!$B$3-AUTOCOOL!A786))","v":0}]
[null,null,null,null,null,null,null,null,null,null,0,0,{"$f":"IF((ALL!$B$3-AUTOCOOL!A787)>40000,0,(ALL!$B$3-AUTOCOOL!A787))","v":0}]
[null,null,null,null,null,null,null,null,null,null,0,0,{"$f":"IF((ALL!$B$3-AUTOCOOL!A788)>40000,0,(ALL!$B$3-AUTOCOOL!A788))","v":0}]
[null,null,null,null,null,null,null,null,null,null,0,0,{"$f":"IF((ALL!$B$3-AUTOCOOL!A789)>40000,0,(ALL!$B$3-AUTOCOOL!A789))","v":0}]
[null,null,null,null,null,null,null,null,null,null,0,0,{"$f":"IF((ALL!$B$3-AUTOCOOL!A790)>40000,0,(ALL!$B$3-AUTOCOOL!A790))","v":0}]
[null,null,null,null,null,null,null,null,null,null,0,0,{"$f":"IF((ALL!$B$3-AUTOCOOL!A791)>40000,0,(ALL!$B$3-AUTOCOOL!A791))","v":0}]
[null,null,null,null,null,null,null,null,null,null,0,0,{"$f":"IF((ALL!$B$3-AUTOCOOL!A792)>40000,0,(ALL!$B$3-AUTOCOOL!A792))","v":0}]
[null,null,null,null,null,null,null,null,null,null,0,0,{"$f":"IF((ALL!$B$3-AUTOCOOL!A793)>40000,0,(ALL!$B$3-AUTOCOOL!A793))","v":0}]
[null,null,null,null,null,null,null,null,null,null,0,0,{"$f":"IF((ALL!$B$3-AUTOCOOL!A794)>40000,0,(ALL!$B$3-AUTOCOOL!A794))","v":0}]
[null,null,null,null,null,null,null,null,null,null,0,0,{"$f":"IF((ALL!$B$3-AUTOCOOL!A795)>40000,0,(ALL!$B$3-AUTOCOOL!A795))","v":0}]
[null,null,null,null,null,null,null,null,null,null,0,0,{"$f":"IF((ALL!$B$3-AUTOCOOL!A796)>40000,0,(ALL!$B$3-AUTOCOOL!A796))","v":0}]
[null,null,null,null,null,null,null,null,null,null,0,0,{"$f":"IF((ALL!$B$3-AUTOCOOL!A797)>40000,0,(ALL!$B$3-AUTOCOOL!A797))","v":0}]
[null,null,null,null,null,null,null,null,null,null,0,0,{"$f":"IF((ALL!$B$3-AUTOCOOL!A798)>40000,0,(ALL!$B$3-AUTOCOOL!A798))","v":0}]
[null,null,null,null,null,null,null,null,null,null,0,0,{"$f":"IF((ALL!$B$3-AUTOCOOL!A799)>40000,0,(ALL!$B$3-AUTOCOOL!A799))","v":0}]
[null,null,null,null,null,null,null,null,null,null,0,0,{"$f":"IF((ALL!$B$3-AUTOCOOL!A800)>40000,0,(ALL!$B$3-AUTOCOOL!A800))","v":0}]
[null,null,null,null,null,null,null,null,null,null,0,0,{"$f":"IF((ALL!$B$3-AUTOCOOL!A801)>40000,0,(ALL!$B$3-AUTOCOOL!A801))","v":0}]
[null,null,null,null,null,null,null,null,null,null,0,0,{"$f":"IF((ALL!$B$3-AUTOCOOL!A802)>40000,0,(ALL!$B$3-AUTOCOOL!A802))","v":0}]
[null,null,null,null,null,null,null,null,null,null,0,0,{"$f":"IF((ALL!$B$3-AUTOCOOL!A803)>40000,0,(ALL!$B$3-AUTOCOOL!A803))","v":0}]
[null,null,null,null,null,null,null,null,null,null,0,0,{"$f":"IF((ALL!$B$3-AUTOCOOL!A804)>40000,0,(ALL!$B$3-AUTOCOOL!A804))","v":0}]
[null,null,null,null,null,null,null,null,null,null,0,0,{"$f":"IF((ALL!$B$3-AUTOCOOL!A805)>40000,0,(ALL!$B$3-AUTOCOOL!A805))","v":0}]
[null,null,null,null,null,null,null,null,null,null,0,0,{"$f":"IF((ALL!$B$3-AUTOCOOL!A806)>40000,0,(ALL!$B$3-AUTOCOOL!A806))","v":0}]
[null,null,null,null,null,null,null,null,null,null,0,0,{"$f":"IF((ALL!$B$3-AUTOCOOL!A807)>40000,0,(ALL!$B$3-AUTOCOOL!A807))","v":0}]
[null,null,null,null,null,null,null,null,null,null,0,0,{"$f":"IF((ALL!$B$3-AUTOCOOL!A808)>40000,0,(ALL!$B$3-AUTOCOOL!A808))","v":0}]
[null,null,null,null,null,null,null,null,null,null,0,0,{"$f":"IF((ALL!$B$3-AUTOCOOL!A809)>40000,0,(ALL!$B$3-AUTOCOOL!A809))","v":0}]
[null,null,null,null,null,null,null,null,null,null,0,0,{"$f":"IF((ALL!$B$3-AUTOCOOL!A810)>40000,0,(ALL!$B$3-AUTOCOOL!A810))","v":0}]
[null,null,null,null,null,null,null,null,null,null,0,0,{"$f":"IF((ALL!$B$3-AUTOCOOL!A811)>40000,0,(ALL!$B$3-AUTOCOOL!A811))","v":0}]
[null,null,null,null,null,null,null,null,null,null,0,0,{"$f":"IF((ALL!$B$3-AUTOCOOL!A812)>40000,0,(ALL!$B$3-AUTOCOOL!A812))","v":0}]
[null,null,null,null,null,null,null,null,null,null,0,0,{"$f":"IF((ALL!$B$3-AUTOCOOL!A813)>40000,0,(ALL!$B$3-AUTOCOOL!A813))","v":0}]
[null,null,null,null,null,null,null,null,null,null,0,0,{"$f":"IF((ALL!$B$3-AUTOCOOL!A814)>40000,0,(ALL!$B$3-AUTOCOOL!A814))","v":0}]
[null,null,null,null,null,null,null,null,null,null,0,0,{"$f":"IF((ALL!$B$3-AUTOCOOL!A815)>40000,0,(ALL!$B$3-AUTOCOOL!A815))","v":0}]
[null,null,null,null,null,null,null,null,null,null,0,0,{"$f":"IF((ALL!$B$3-AUTOCOOL!A816)>40000,0,(ALL!$B$3-AUTOCOOL!A816))","v":0}]
[null,null,null,null,null,null,null,null,null,null,0,0,{"$f":"IF((ALL!$B$3-AUTOCOOL!A817)>40000,0,(ALL!$B$3-AUTOCOOL!A817))","v":0}]
[null,null,null,null,null,null,null,null,null,null,0,0,{"$f":"IF((ALL!$B$3-AUTOCOOL!A818)>40000,0,(ALL!$B$3-AUTOCOOL!A818))","v":0}]
[null,null,null,null,null,null,null,null,null,null,0,0,{"$f":"IF((ALL!$B$3-AUTOCOOL!A819)>40000,0,(ALL!$B$3-AUTOCOOL!A819))","v":0}]
[null,null,null,null,null,null,null,null,null,null,0,0,{"$f":"IF((ALL!$B$3-AUTOCOOL!A820)>40000,0,(ALL!$B$3-AUTOCOOL!A820))","v":0}]
[null,null,null,null,null,null,null,null,null,null,0,0,{"$f":"IF((ALL!$B$3-AUTOCOOL!A821)>40000,0,(ALL!$B$3-AUTOCOOL!A821))","v":0}]
[null,null,null,null,null,null,null,null,null,null,0,0,{"$f":"IF((ALL!$B$3-AUTOCOOL!A822)>40000,0,(ALL!$B$3-AUTOCOOL!A822))","v":0}]
[null,null,null,null,null,null,null,null,null,null,0,0,{"$f":"IF((ALL!$B$3-AUTOCOOL!A823)>40000,0,(ALL!$B$3-AUTOCOOL!A823))","v":0}]
[null,null,null,null,null,null,null,null,null,null,0,0,{"$f":"IF((ALL!$B$3-AUTOCOOL!A824)>40000,0,(ALL!$B$3-AUTOCOOL!A824))","v":0}]
[null,null,null,null,null,null,null,null,null,null,0,0,{"$f":"IF((ALL!$B$3-AUTOCOOL!A825)>40000,0,(ALL!$B$3-AUTOCOOL!A825))","v":0}]
[null,null,null,null,null,null,null,null,null,null,0,0,{"$f":"IF((ALL!$B$3-AUTOCOOL!A826)>40000,0,(ALL!$B$3-AUTOCOOL!A826))","v":0}]
[null,null,null,null,null,null,null,null,null,null,0,0,{"$f":"IF((ALL!$B$3-AUTOCOOL!A827)>40000,0,(ALL!$B$3-AUTOCOOL!A827))","v":0}]
[null,null,null,null,null,null,null,null,null,null,0,0,{"$f":"IF((ALL!$B$3-AUTOCOOL!A828)>40000,0,(ALL!$B$3-AUTOCOOL!A828))","v":0}]
[null,null,null,null,null,null,null,null,null,null,0,0,{"$f":"IF((ALL!$B$3-AUTOCOOL!A829)>40000,0,(ALL!$B$3-AUTOCOOL!A829))","v":0}]
[null,null,null,null,null,null,null,null,null,null,0,0,{"$f":"IF((ALL!$B$3-AUTOCOOL!A830)>40000,0,(ALL!$B$3-AUTOCOOL!A830))","v":0}]
[null,null,null,null,null,null,null,null,null,null,0,0,{"$f":"IF((ALL!$B$3-AUTOCOOL!A831)>40000,0,(ALL!$B$3-AUTOCOOL!A831))","v":0}]
[null,null,null,null,null,null,null,null,null,null,0,0,{"$f":"IF((ALL!$B$3-AUTOCOOL!A832)>40000,0,(ALL!$B$3-AUTOCOOL!A832))","v":0}]
[null,null,null,null,null,null,null,null,null,null,0,0,{"$f":"IF((ALL!$B$3-AUTOCOOL!A833)>40000,0,(ALL!$B$3-AUTOCOOL!A833))","v":0}]
[null,null,null,null,null,null,null,null,null,null,0,0,{"$f":"IF((ALL!$B$3-AUTOCOOL!A834)>40000,0,(ALL!$B$3-AUTOCOOL!A834))","v":0}]
[null,null,null,null,null,null,null,null,null,null,0,0,{"$f":"IF((ALL!$B$3-AUTOCOOL!A835)>40000,0,(ALL!$B$3-AUTOCOOL!A835))","v":0}]
[null,null,null,null,null,null,null,null,null,null,0,0,{"$f":"IF((ALL!$B$3-AUTOCOOL!A836)>40000,0,(ALL!$B$3-AUTOCOOL!A836))","v":0}]
[null,null,null,null,null,null,null,null,null,null,0,0,{"$f":"IF((ALL!$B$3-AUTOCOOL!A837)>40000,0,(ALL!$B$3-AUTOCOOL!A837))","v":0}]
[null,null,null,null,null,null,null,null,null,null,0,0,{"$f":"IF((ALL!$B$3-AUTOCOOL!A838)>40000,0,(ALL!$B$3-AUTOCOOL!A838))","v":0}]
[null,null,null,null,null,null,null,null,null,null,{"$f":"SUM(C839:J839)","v":0},0,{"$f":"IF((ALL!$B$3-AUTOCOOL!A839)>40000,0,(ALL!$B$3-AUTOCOOL!A839))","v":0}]
[null,null,null,null,null,null,null,null,null,null,0,{"$f":"IF(AND(M840>365),\"OVER A YEAR\",IF(AND(M840>0,M840<31),\"1 MONTH\",IF(AND(M840>30,M840<61),\"2 MONTHS\",IF(AND(M840>60,M840<91),\"3 MONTHS\",IF(AND(M840>90,M840<181),\"3 : 6 MONTHS\",IF(AND(M840>180,M840<271),\"6 : 9 MONTHS\",IF(AND(M840>270,M840<366),\"9 : 12 MONTHS\",IF(M840=0,0))))))))","v":0},{"$f":"IF((ALL!$B$3-AUTOCOOL!A840)>40000,0,(ALL!$B$3-AUTOCOOL!A840))","v":0}]
[null,null,null,null,null,null,null,null,null,null,0,0,{"$f":"IF((ALL!$B$3-AUTOCOOL!A841)>40000,0,(ALL!$B$3-AUTOCOOL!A841))","v":0}]
[null,null,null,null,null,null,null,null,null,null,0,0,{"$f":"IF((ALL!$B$3-AUTOCOOL!A842)>40000,0,(ALL!$B$3-AUTOCOOL!A842))","v":0}]
[null,null,null,null,null,null,null,null,null,null,0,0,{"$f":"IF((ALL!$B$3-AUTOCOOL!A843)>40000,0,(ALL!$B$3-AUTOCOOL!A843))","v":0}]
[null,null,null,null,null,null,null,null,null,null,0,0,{"$f":"IF((ALL!$B$3-AUTOCOOL!A844)>40000,0,(ALL!$B$3-AUTOCOOL!A844))","v":0}]
[null,null,null,null,null,null,null,null,null,null,0,0,{"$f":"IF((ALL!$B$3-AUTOCOOL!A845)>40000,0,(ALL!$B$3-AUTOCOOL!A845))","v":0}]
[null,null,null,null,null,null,null,null,null,null,0,0,{"$f":"IF((ALL!$B$3-AUTOCOOL!A846)>40000,0,(ALL!$B$3-AUTOCOOL!A846))","v":0}]
[null,null,null,null,null,null,null,null,null,null,0,0,{"$f":"IF((ALL!$B$3-AUTOCOOL!A847)>40000,0,(ALL!$B$3-AUTOCOOL!A847))","v":0}]
[null,null,null,null,null,null,null,null,null,null,0,0,{"$f":"IF((ALL!$B$3-AUTOCOOL!A848)>40000,0,(ALL!$B$3-AUTOCOOL!A848))","v":0}]
[null,null,null,null,null,null,null,null,null,null,0,0,{"$f":"IF((ALL!$B$3-AUTOCOOL!A849)>40000,0,(ALL!$B$3-AUTOCOOL!A849))","v":0}]
[null,null,null,null,null,null,null,null,null,null,0,0,{"$f":"IF((ALL!$B$3-AUTOCOOL!A850)>40000,0,(ALL!$B$3-AUTOCOOL!A850))","v":0}]
[null,null,null,null,null,null,null,null,null,null,0,0,{"$f":"IF((ALL!$B$3-AUTOCOOL!A851)>40000,0,(ALL!$B$3-AUTOCOOL!A851))","v":0}]
[null,null,null,null,null,null,null,null,null,null,0,0,{"$f":"IF((ALL!$B$3-AUTOCOOL!A852)>40000,0,(ALL!$B$3-AUTOCOOL!A852))","v":0}]
[null,null,null,null,null,null,null,null,null,null,0,0,{"$f":"IF((ALL!$B$3-AUTOCOOL!A853)>40000,0,(ALL!$B$3-AUTOCOOL!A853))","v":0}]
[null,null,null,null,null,null,null,null,null,null,0,0,{"$f":"IF((ALL!$B$3-AUTOCOOL!A854)>40000,0,(ALL!$B$3-AUTOCOOL!A854))","v":0}]
[null,null,null,null,null,null,null,null,null,null,0,0,{"$f":"IF((ALL!$B$3-AUTOCOOL!A855)>40000,0,(ALL!$B$3-AUTOCOOL!A855))","v":0}]
[null,null,null,null,null,null,null,null,null,null,0,0,{"$f":"IF((ALL!$B$3-AUTOCOOL!A856)>40000,0,(ALL!$B$3-AUTOCOOL!A856))","v":0}]
[null,null,null,null,null,null,null,null,null,null,0,0,{"$f":"IF((ALL!$B$3-AUTOCOOL!A857)>40000,0,(ALL!$B$3-AUTOCOOL!A857))","v":0}]
[null,null,null,null,null,null,null,null,null,null,0,0,{"$f":"IF((ALL!$B$3-AUTOCOOL!A858)>40000,0,(ALL!$B$3-AUTOCOOL!A858))","v":0}]
[null,null,null,null,null,null,null,null,null,null,0,0,{"$f":"IF((ALL!$B$3-AUTOCOOL!A859)>40000,0,(ALL!$B$3-AUTOCOOL!A859))","v":0}]
[null,null,null,null,null,null,null,null,null,null,0,0,{"$f":"IF((ALL!$B$3-AUTOCOOL!A860)>40000,0,(ALL!$B$3-AUTOCOOL!A860))","v":0}]
[null,null,null,null,null,null,null,null,null,null,0,0,{"$f":"IF((ALL!$B$3-AUTOCOOL!A861)>40000,0,(ALL!$B$3-AUTOCOOL!A861))","v":0}]
[null,null,null,null,null,null,null,null,null,null,0,0,{"$f":"IF((ALL!$B$3-AUTOCOOL!A862)>40000,0,(ALL!$B$3-AUTOCOOL!A862))","v":0}]
[null,null,null,null,null,null,null,null,null,null,0,0,{"$f":"IF((ALL!$B$3-AUTOCOOL!A863)>40000,0,(ALL!$B$3-AUTOCOOL!A863))","v":0}]
[null,null,null,null,null,null,null,null,null,null,0,0,{"$f":"IF((ALL!$B$3-AUTOCOOL!A864)>40000,0,(ALL!$B$3-AUTOCOOL!A864))","v":0}]
[null,null,null,null,null,null,null,null,null,null,0,0,{"$f":"IF((ALL!$B$3-AUTOCOOL!A865)>40000,0,(ALL!$B$3-AUTOCOOL!A865))","v":0}]
[null,null,null,null,null,null,null,null,null,null,0,0,{"$f":"IF((ALL!$B$3-AUTOCOOL!A866)>40000,0,(ALL!$B$3-AUTOCOOL!A866))","v":0}]
[null,null,null,null,null,null,null,null,null,null,0,0,{"$f":"IF((ALL!$B$3-AUTOCOOL!A867)>40000,0,(ALL!$B$3-AUTOCOOL!A867))","v":0}]
[null,null,null,null,null,null,null,null,null,null,0,0,{"$f":"IF((ALL!$B$3-AUTOCOOL!A868)>40000,0,(ALL!$B$3-AUTOCOOL!A868))","v":0}]
[null,null,null,null,null,null,null,null,null,null,0,0,{"$f":"IF((ALL!$B$3-AUTOCOOL!A869)>40000,0,(ALL!$B$3-AUTOCOOL!A869))","v":0}]
[null,null,null,null,null,null,null,null,null,null,0,0,{"$f":"IF((ALL!$B$3-AUTOCOOL!A870)>40000,0,(ALL!$B$3-AUTOCOOL!A870))","v":0}]
[null,null,null,null,null,null,null,null,null,null,0,0,{"$f":"IF((ALL!$B$3-AUTOCOOL!A871)>40000,0,(ALL!$B$3-AUTOCOOL!A871))","v":0}]
[null,null,null,null,null,null,null,null,null,null,0,0,{"$f":"IF((ALL!$B$3-AUTOCOOL!A872)>40000,0,(ALL!$B$3-AUTOCOOL!A872))","v":0}]
[null,null,null,null,null,null,null,null,null,null,0,0,{"$f":"IF((ALL!$B$3-AUTOCOOL!A873)>40000,0,(ALL!$B$3-AUTOCOOL!A873))","v":0}]
[null,null,null,null,null,null,null,null,null,null,0,0,{"$f":"IF((ALL!$B$3-AUTOCOOL!A874)>40000,0,(ALL!$B$3-AUTOCOOL!A874))","v":0}]
[null,null,null,null,null,null,null,null,null,null,0,0,{"$f":"IF((ALL!$B$3-AUTOCOOL!A875)>40000,0,(ALL!$B$3-AUTOCOOL!A875))","v":0}]
[null,null,null,null,null,null,null,null,null,null,0,0,{"$f":"IF((ALL!$B$3-AUTOCOOL!A876)>40000,0,(ALL!$B$3-AUTOCOOL!A876))","v":0}]
[null,null,null,null,null,null,null,null,null,null,0,0,{"$f":"IF((ALL!$B$3-AUTOCOOL!A877)>40000,0,(ALL!$B$3-AUTOCOOL!A877))","v":0}]
[null,null,null,null,null,null,null,null,null,null,0,0,{"$f":"IF((ALL!$B$3-AUTOCOOL!A878)>40000,0,(ALL!$B$3-AUTOCOOL!A878))","v":0}]
[null,null,null,null,null,null,null,null,null,null,0,0,{"$f":"IF((ALL!$B$3-AUTOCOOL!A879)>40000,0,(ALL!$B$3-AUTOCOOL!A879))","v":0}]
[null,null,null,null,null,null,null,null,null,null,0,0,{"$f":"IF((ALL!$B$3-AUTOCOOL!A880)>40000,0,(ALL!$B$3-AUTOCOOL!A880))","v":0}]
[null,null,null,null,null,null,null,null,null,null,0,0,{"$f":"IF((ALL!$B$3-AUTOCOOL!A881)>40000,0,(ALL!$B$3-AUTOCOOL!A881))","v":0}]
[null,null,null,null,null,null,null,null,null,null,0,0,{"$f":"IF((ALL!$B$3-AUTOCOOL!A882)>40000,0,(ALL!$B$3-AUTOCOOL!A882))","v":0}]
[null,null,null,null,null,null,null,null,null,null,0,0,{"$f":"IF((ALL!$B$3-AUTOCOOL!A883)>40000,0,(ALL!$B$3-AUTOCOOL!A883))","v":0}]
[null,null,null,null,null,null,null,null,null,null,0,0,{"$f":"IF((ALL!$B$3-AUTOCOOL!A884)>40000,0,(ALL!$B$3-AUTOCOOL!A884))","v":0}]
[null,null,null,null,null,null,null,null,null,null,0,0,{"$f":"IF((ALL!$B$3-AUTOCOOL!A885)>40000,0,(ALL!$B$3-AUTOCOOL!A885))","v":0}]
[null,null,null,null,null,null,null,null,null,null,0,0,{"$f":"IF((ALL!$B$3-AUTOCOOL!A886)>40000,0,(ALL!$B$3-AUTOCOOL!A886))","v":0}]
[null,null,null,null,null,null,null,null,null,null,0,0,{"$f":"IF((ALL!$B$3-AUTOCOOL!A887)>40000,0,(ALL!$B$3-AUTOCOOL!A887))","v":0}]
[null,null,null,null,null,null,null,null,null,null,0,0,{"$f":"IF((ALL!$B$3-AUTOCOOL!A888)>40000,0,(ALL!$B$3-AUTOCOOL!A888))","v":0}]
[null,null,null,null,null,null,null,null,null,null,0,0,{"$f":"IF((ALL!$B$3-AUTOCOOL!A889)>40000,0,(ALL!$B$3-AUTOCOOL!A889))","v":0}]
[null,null,null,null,null,null,null,null,null,null,0,0,{"$f":"IF((ALL!$B$3-AUTOCOOL!A890)>40000,0,(ALL!$B$3-AUTOCOOL!A890))","v":0}]
[null,null,null,null,null,null,null,null,null,null,0,0,{"$f":"IF((ALL!$B$3-AUTOCOOL!A891)>40000,0,(ALL!$B$3-AUTOCOOL!A891))","v":0}]
[null,null,null,null,null,null,null,null,null,null,0,0,{"$f":"IF((ALL!$B$3-AUTOCOOL!A892)>40000,0,(ALL!$B$3-AUTOCOOL!A892))","v":0}]
[null,null,null,null,null,null,null,null,null,null,0,0,{"$f":"IF((ALL!$B$3-AUTOCOOL!A893)>40000,0,(ALL!$B$3-AUTOCOOL!A893))","v":0}]
[null,null,null,null,null,null,null,null,null,null,0,0,{"$f":"IF((ALL!$B$3-AUTOCOOL!A894)>40000,0,(ALL!$B$3-AUTOCOOL!A894))","v":0}]
[null,null,null,null,null,null,null,null,null,null,0,0,{"$f":"IF((ALL!$B$3-AUTOCOOL!A895)>40000,0,(ALL!$B$3-AUTOCOOL!A895))","v":0}]
[null,null,null,null,null,null,null,null,null,null,0,0,{"$f":"IF((ALL!$B$3-AUTOCOOL!A896)>40000,0,(ALL!$B$3-AUTOCOOL!A896))","v":0}]
[null,null,null,null,null,null,null,null,null,null,0,0,{"$f":"IF((ALL!$B$3-AUTOCOOL!A897)>40000,0,(ALL!$B$3-AUTOCOOL!A897))","v":0}]
[null,null,null,null,null,null,null,null,null,null,0,0,{"$f":"IF((ALL!$B$3-AUTOCOOL!A898)>40000,0,(ALL!$B$3-AUTOCOOL!A898))","v":0}]
[null,null,null,null,null,null,null,null,null,null,0,0,{"$f":"IF((ALL!$B$3-AUTOCOOL!A899)>40000,0,(ALL!$B$3-AUTOCOOL!A899))","v":0}]
[null,null,null,null,null,null,null,null,null,null,0,0,{"$f":"IF((ALL!$B$3-AUTOCOOL!A900)>40000,0,(ALL!$B$3-AUTOCOOL!A900))","v":0}]
[null,null,null,null,null,null,null,null,null,null,0,0,{"$f":"IF((ALL!$B$3-AUTOCOOL!A901)>40000,0,(ALL!$B$3-AUTOCOOL!A901))","v":0}]
[null,null,null,null,null,null,null,null,null,null,0,0,{"$f":"IF((ALL!$B$3-AUTOCOOL!A902)>40000,0,(ALL!$B$3-AUTOCOOL!A902))","v":0}]
[null,null,null,null,null,null,null,null,null,null,{"$f":"SUM(C903:J903)","v":0},0,{"$f":"IF((ALL!$B$3-AUTOCOOL!A903)>40000,0,(ALL!$B$3-AUTOCOOL!A903))","v":0}]
[null,null,null,null,null,null,null,null,null,null,0,{"$f":"IF(AND(M904>365),\"OVER A YEAR\",IF(AND(M904>0,M904<31),\"1 MONTH\",IF(AND(M904>30,M904<61),\"2 MONTHS\",IF(AND(M904>60,M904<91),\"3 MONTHS\",IF(AND(M904>90,M904<181),\"3 : 6 MONTHS\",IF(AND(M904>180,M904<271),\"6 : 9 MONTHS\",IF(AND(M904>270,M904<366),\"9 : 12 MONTHS\",IF(M904=0,0))))))))","v":0},{"$f":"IF((ALL!$B$3-AUTOCOOL!A904)>40000,0,(ALL!$B$3-AUTOCOOL!A904))","v":0}]
[null,null,null,null,null,null,null,null,null,null,0,0,{"$f":"IF((ALL!$B$3-AUTOCOOL!A905)>40000,0,(ALL!$B$3-AUTOCOOL!A905))","v":0}]
[null,null,null,null,null,null,null,null,null,null,0,0,{"$f":"IF((ALL!$B$3-AUTOCOOL!A906)>40000,0,(ALL!$B$3-AUTOCOOL!A906))","v":0}]
[null,null,null,null,null,null,null,null,null,null,0,0,{"$f":"IF((ALL!$B$3-AUTOCOOL!A907)>40000,0,(ALL!$B$3-AUTOCOOL!A907))","v":0}]
[null,null,null,null,null,null,null,null,null,null,0,0,{"$f":"IF((ALL!$B$3-AUTOCOOL!A908)>40000,0,(ALL!$B$3-AUTOCOOL!A908))","v":0}]
[null,null,null,null,null,null,null,null,null,null,0,0,{"$f":"IF((ALL!$B$3-AUTOCOOL!A909)>40000,0,(ALL!$B$3-AUTOCOOL!A909))","v":0}]
[null,null,null,null,null,null,null,null,null,null,0,0,{"$f":"IF((ALL!$B$3-AUTOCOOL!A910)>40000,0,(ALL!$B$3-AUTOCOOL!A910))","v":0}]
[null,null,null,null,null,null,null,null,null,null,0,0,{"$f":"IF((ALL!$B$3-AUTOCOOL!A911)>40000,0,(ALL!$B$3-AUTOCOOL!A911))","v":0}]
[null,null,null,null,null,null,null,null,null,null,0,0,{"$f":"IF((ALL!$B$3-AUTOCOOL!A912)>40000,0,(ALL!$B$3-AUTOCOOL!A912))","v":0}]
[null,null,null,null,null,null,null,null,null,null,0,0,{"$f":"IF((ALL!$B$3-AUTOCOOL!A913)>40000,0,(ALL!$B$3-AUTOCOOL!A913))","v":0}]
[null,null,null,null,null,null,null,null,null,null,0,0,{"$f":"IF((ALL!$B$3-AUTOCOOL!A914)>40000,0,(ALL!$B$3-AUTOCOOL!A914))","v":0}]
[null,null,null,null,null,null,null,null,null,null,0,0,{"$f":"IF((ALL!$B$3-AUTOCOOL!A915)>40000,0,(ALL!$B$3-AUTOCOOL!A915))","v":0}]
[null,null,null,null,null,null,null,null,null,null,0,0,{"$f":"IF((ALL!$B$3-AUTOCOOL!A916)>40000,0,(ALL!$B$3-AUTOCOOL!A916))","v":0}]
[null,null,null,null,null,null,null,null,null,null,0,0,{"$f":"IF((ALL!$B$3-AUTOCOOL!A917)>40000,0,(ALL!$B$3-AUTOCOOL!A917))","v":0}]
[null,null,null,null,null,null,null,null,null,null,0,0,{"$f":"IF((ALL!$B$3-AUTOCOOL!A918)>40000,0,(ALL!$B$3-AUTOCOOL!A918))","v":0}]
[null,null,null,null,null,null,null,null,null,null,0,0,{"$f":"IF((ALL!$B$3-AUTOCOOL!A919)>40000,0,(ALL!$B$3-AUTOCOOL!A919))","v":0}]
[null,null,null,null,null,null,null,null,null,null,0,0,{"$f":"IF((ALL!$B$3-AUTOCOOL!A920)>40000,0,(ALL!$B$3-AUTOCOOL!A920))","v":0}]
[null,null,null,null,null,null,null,null,null,null,0,0,{"$f":"IF((ALL!$B$3-AUTOCOOL!A921)>40000,0,(ALL!$B$3-AUTOCOOL!A921))","v":0}]
[null,null,null,null,null,null,null,null,null,null,0,0,{"$f":"IF((ALL!$B$3-AUTOCOOL!A922)>40000,0,(ALL!$B$3-AUTOCOOL!A922))","v":0}]
[null,null,null,null,null,null,null,null,null,null,0,0,{"$f":"IF((ALL!$B$3-AUTOCOOL!A923)>40000,0,(ALL!$B$3-AUTOCOOL!A923))","v":0}]
[null,null,null,null,null,null,null,null,null,null,0,0,{"$f":"IF((ALL!$B$3-AUTOCOOL!A924)>40000,0,(ALL!$B$3-AUTOCOOL!A924))","v":0}]
[null,null,null,null,null,null,null,null,null,null,0,0,{"$f":"IF((ALL!$B$3-AUTOCOOL!A925)>40000,0,(ALL!$B$3-AUTOCOOL!A925))","v":0}]
[null,null,null,null,null,null,null,null,null,null,0,0,{"$f":"IF((ALL!$B$3-AUTOCOOL!A926)>40000,0,(ALL!$B$3-AUTOCOOL!A926))","v":0}]
[null,null,null,null,null,null,null,null,null,null,0,0,{"$f":"IF((ALL!$B$3-AUTOCOOL!A927)>40000,0,(ALL!$B$3-AUTOCOOL!A927))","v":0}]
[null,null,null,null,null,null,null,null,null,null,0,0,{"$f":"IF((ALL!$B$3-AUTOCOOL!A928)>40000,0,(ALL!$B$3-AUTOCOOL!A928))","v":0}]
[null,null,null,null,null,null,null,null,null,null,0,0,{"$f":"IF((ALL!$B$3-AUTOCOOL!A929)>40000,0,(ALL!$B$3-AUTOCOOL!A929))","v":0}]
[null,null,null,null,null,null,null,null,null,null,0,0,{"$f":"IF((ALL!$B$3-AUTOCOOL!A930)>40000,0,(ALL!$B$3-AUTOCOOL!A930))","v":0}]
[null,null,null,null,null,null,null,null,null,null,0,0,{"$f":"IF((ALL!$B$3-AUTOCOOL!A931)>40000,0,(ALL!$B$3-AUTOCOOL!A931))","v":0}]
[null,null,null,null,null,null,null,null,null,null,0,0,{"$f":"IF((ALL!$B$3-AUTOCOOL!A932)>40000,0,(ALL!$B$3-AUTOCOOL!A932))","v":0}]
[null,null,null,null,null,null,null,null,null,null,0,0,{"$f":"IF((ALL!$B$3-AUTOCOOL!A933)>40000,0,(ALL!$B$3-AUTOCOOL!A933))","v":0}]
[null,null,null,null,null,null,null,null,null,null,0,0,{"$f":"IF((ALL!$B$3-AUTOCOOL!A934)>40000,0,(ALL!$B$3-AUTOCOOL!A934))","v":0}]
[null,null,null,null,null,null,null,null,null,null,0,0,{"$f":"IF((ALL!$B$3-AUTOCOOL!A935)>40000,0,(ALL!$B$3-AUTOCOOL!A935))","v":0}]
[null,null,null,null,null,null,null,null,null,null,0,0,{"$f":"IF((ALL!$B$3-AUTOCOOL!A936)>40000,0,(ALL!$B$3-AUTOCOOL!A936))","v":0}]
[null,null,null,null,null,null,null,null,null,null,0,0,{"$f":"IF((ALL!$B$3-AUTOCOOL!A937)>40000,0,(ALL!$B$3-AUTOCOOL!A937))","v":0}]
[null,null,null,null,null,null,null,null,null,null,0,0,{"$f":"IF((ALL!$B$3-AUTOCOOL!A938)>40000,0,(ALL!$B$3-AUTOCOOL!A938))","v":0}]
[null,null,null,null,null,null,null,null,null,null,0,0,{"$f":"IF((ALL!$B$3-AUTOCOOL!A939)>40000,0,(ALL!$B$3-AUTOCOOL!A939))","v":0}]
[null,null,null,null,null,null,null,null,null,null,0,0,{"$f":"IF((ALL!$B$3-AUTOCOOL!A940)>40000,0,(ALL!$B$3-AUTOCOOL!A940))","v":0}]
[null,null,null,null,null,null,null,null,null,null,0,0,{"$f":"IF((ALL!$B$3-AUTOCOOL!A941)>40000,0,(ALL!$B$3-AUTOCOOL!A941))","v":0}]
[null,null,null,null,null,null,null,null,null,null,0,0,{"$f":"IF((ALL!$B$3-AUTOCOOL!A942)>40000,0,(ALL!$B$3-AUTOCOOL!A942))","v":0}]
[null,null,null,null,null,null,null,null,null,null,0,0,{"$f":"IF((ALL!$B$3-AUTOCOOL!A943)>40000,0,(ALL!$B$3-AUTOCOOL!A943))","v":0}]
[null,null,null,null,null,null,null,null,null,null,0,0,{"$f":"IF((ALL!$B$3-AUTOCOOL!A944)>40000,0,(ALL!$B$3-AUTOCOOL!A944))","v":0}]
[null,null,null,null,null,null,null,null,null,null,0,0,{"$f":"IF((ALL!$B$3-AUTOCOOL!A945)>40000,0,(ALL!$B$3-AUTOCOOL!A945))","v":0}]
[null,null,null,null,null,null,null,null,null,null,0,0,{"$f":"IF((ALL!$B$3-AUTOCOOL!A946)>40000,0,(ALL!$B$3-AUTOCOOL!A946))","v":0}]
[null,null,null,null,null,null,null,null,null,null,0,0,{"$f":"IF((ALL!$B$3-AUTOCOOL!A947)>40000,0,(ALL!$B$3-AUTOCOOL!A947))","v":0}]
[null,null,null,null,null,null,null,null,null,null,0,0,{"$f":"IF((ALL!$B$3-AUTOCOOL!A948)>40000,0,(ALL!$B$3-AUTOCOOL!A948))","v":0}]
[null,null,null,null,null,null,null,null,null,null,0,0,{"$f":"IF((ALL!$B$3-AUTOCOOL!A949)>40000,0,(ALL!$B$3-AUTOCOOL!A949))","v":0}]
[null,null,null,null,null,null,null,null,null,null,0,0,{"$f":"IF((ALL!$B$3-AUTOCOOL!A950)>40000,0,(ALL!$B$3-AUTOCOOL!A950))","v":0}]
[null,null,null,null,null,null,null,null,null,null,0,0,{"$f":"IF((ALL!$B$3-AUTOCOOL!A951)>40000,0,(ALL!$B$3-AUTOCOOL!A951))","v":0}]
[null,null,null,null,null,null,null,null,null,null,0,0,{"$f":"IF((ALL!$B$3-AUTOCOOL!A952)>40000,0,(ALL!$B$3-AUTOCOOL!A952))","v":0}]
[null,null,null,null,null,null,null,null,null,null,0,0,{"$f":"IF((ALL!$B$3-AUTOCOOL!A953)>40000,0,(ALL!$B$3-AUTOCOOL!A953))","v":0}]
[null,null,null,null,null,null,null,null,null,null,0,0,{"$f":"IF((ALL!$B$3-AUTOCOOL!A954)>40000,0,(ALL!$B$3-AUTOCOOL!A954))","v":0}]
[null,null,null,null,null,null,null,null,null,null,0,0,{"$f":"IF((ALL!$B$3-AUTOCOOL!A955)>40000,0,(ALL!$B$3-AUTOCOOL!A955))","v":0}]
[null,null,null,null,null,null,null,null,null,null,0,0,{"$f":"IF((ALL!$B$3-AUTOCOOL!A956)>40000,0,(ALL!$B$3-AUTOCOOL!A956))","v":0}]
[null,null,null,null,null,null,null,null,null,null,0,0,{"$f":"IF((ALL!$B$3-AUTOCOOL!A957)>40000,0,(ALL!$B$3-AUTOCOOL!A957))","v":0}]
[null,null,null,null,null,null,null,null,null,null,0,0,{"$f":"IF((ALL!$B$3-AUTOCOOL!A958)>40000,0,(ALL!$B$3-AUTOCOOL!A958))","v":0}]
[null,null,null,null,null,null,null,null,null,null,0,0,{"$f":"IF((ALL!$B$3-AUTOCOOL!A959)>40000,0,(ALL!$B$3-AUTOCOOL!A959))","v":0}]
[null,null,null,null,null,null,null,null,null,null,0,0,{"$f":"IF((ALL!$B$3-AUTOCOOL!A960)>40000,0,(ALL!$B$3-AUTOCOOL!A960))","v":0}]
[null,null,null,null,null,null,null,null,null,null,0,0,{"$f":"IF((ALL!$B$3-AUTOCOOL!A961)>40000,0,(ALL!$B$3-AUTOCOOL!A961))","v":0}]
[null,null,null,null,null,null,null,null,null,null,0,0,{"$f":"IF((ALL!$B$3-AUTOCOOL!A962)>40000,0,(ALL!$B$3-AUTOCOOL!A962))","v":0}]
[null,null,null,null,null,null,null,null,null,null,0,0,{"$f":"IF((ALL!$B$3-AUTOCOOL!A963)>40000,0,(ALL!$B$3-AUTOCOOL!A963))","v":0}]
[null,null,null,null,null,null,null,null,null,null,0,0,{"$f":"IF((ALL!$B$3-AUTOCOOL!A964)>40000,0,(ALL!$B$3-AUTOCOOL!A964))","v":0}]
[null,null,null,null,null,null,null,null,null,null,0,0,{"$f":"IF((ALL!$B$3-AUTOCOOL!A965)>40000,0,(ALL!$B$3-AUTOCOOL!A965))","v":0}]
[null,null,null,null,null,null,null,null,null,null,0,0,{"$f":"IF((ALL!$B$3-AUTOCOOL!A966)>40000,0,(ALL!$B$3-AUTOCOOL!A966))","v":0}]
[null,null,null,null,null,null,null,null,null,null,{"$f":"SUM(C967:J967)","v":0},0,{"$f":"IF((ALL!$B$3-AUTOCOOL!A967)>40000,0,(ALL!$B$3-AUTOCOOL!A967))","v":0}]
[null,null,null,null,null,null,null,null,null,null,0,{"$f":"IF(AND(M968>365),\"OVER A YEAR\",IF(AND(M968>0,M968<31),\"1 MONTH\",IF(AND(M968>30,M968<61),\"2 MONTHS\",IF(AND(M968>60,M968<91),\"3 MONTHS\",IF(AND(M968>90,M968<181),\"3 : 6 MONTHS\",IF(AND(M968>180,M968<271),\"6 : 9 MONTHS\",IF(AND(M968>270,M968<366),\"9 : 12 MONTHS\",IF(M968=0,0))))))))","v":0},{"$f":"IF((ALL!$B$3-AUTOCOOL!A968)>40000,0,(ALL!$B$3-AUTOCOOL!A968))","v":0}]
[null,null,null,null,null,null,null,null,null,null,0,0,{"$f":"IF((ALL!$B$3-AUTOCOOL!A969)>40000,0,(ALL!$B$3-AUTOCOOL!A969))","v":0}]
[null,null,null,null,null,null,null,null,null,null,0,0,{"$f":"IF((ALL!$B$3-AUTOCOOL!A970)>40000,0,(ALL!$B$3-AUTOCOOL!A970))","v":0}]
[null,null,null,null,null,null,null,null,null,null,0,0,{"$f":"IF((ALL!$B$3-AUTOCOOL!A971)>40000,0,(ALL!$B$3-AUTOCOOL!A971))","v":0}]
[null,null,null,null,null,null,null,null,null,null,0,0,{"$f":"IF((ALL!$B$3-AUTOCOOL!A972)>40000,0,(ALL!$B$3-AUTOCOOL!A972))","v":0}]
[null,null,null,null,null,null,null,null,null,null,0,0,{"$f":"IF((ALL!$B$3-AUTOCOOL!A973)>40000,0,(ALL!$B$3-AUTOCOOL!A973))","v":0}]
[null,null,null,null,null,null,null,null,null,null,0,0,{"$f":"IF((ALL!$B$3-AUTOCOOL!A974)>40000,0,(ALL!$B$3-AUTOCOOL!A974))","v":0}]
[null,null,null,null,null,null,null,null,null,null,0,0,{"$f":"IF((ALL!$B$3-AUTOCOOL!A975)>40000,0,(ALL!$B$3-AUTOCOOL!A975))","v":0}]
[null,null,null,null,null,null,null,null,null,null,0,0,{"$f":"IF((ALL!$B$3-AUTOCOOL!A976)>40000,0,(ALL!$B$3-AUTOCOOL!A976))","v":0}]
[null,null,null,null,null,null,null,null,null,null,0,0,{"$f":"IF((ALL!$B$3-AUTOCOOL!A977)>40000,0,(ALL!$B$3-AUTOCOOL!A977))","v":0}]
[null,null,null,null,null,null,null,null,null,null,0,0,{"$f":"IF((ALL!$B$3-AUTOCOOL!A978)>40000,0,(ALL!$B$3-AUTOCOOL!A978))","v":0}]
[null,null,null,null,null,null,null,null,null,null,0,0,{"$f":"IF((ALL!$B$3-AUTOCOOL!A979)>40000,0,(ALL!$B$3-AUTOCOOL!A979))","v":0}]
[null,null,null,null,null,null,null,null,null,null,0,0,{"$f":"IF((ALL!$B$3-AUTOCOOL!A980)>40000,0,(ALL!$B$3-AUTOCOOL!A980))","v":0}]
[null,null,null,null,null,null,null,null,null,null,0,0,{"$f":"IF((ALL!$B$3-AUTOCOOL!A981)>40000,0,(ALL!$B$3-AUTOCOOL!A981))","v":0}]
[null,null,null,null,null,null,null,null,null,null,0,0,{"$f":"IF((ALL!$B$3-AUTOCOOL!A982)>40000,0,(ALL!$B$3-AUTOCOOL!A982))","v":0}]
[null,null,null,null,null,null,null,null,null,null,0,0,{"$f":"IF((ALL!$B$3-AUTOCOOL!A983)>40000,0,(ALL!$B$3-AUTOCOOL!A983))","v":0}]
[null,null,null,null,null,null,null,null,null,null,0,0,{"$f":"IF((ALL!$B$3-AUTOCOOL!A984)>40000,0,(ALL!$B$3-AUTOCOOL!A984))","v":0}]
[null,null,null,null,null,null,null,null,null,null,0,0,{"$f":"IF((ALL!$B$3-AUTOCOOL!A985)>40000,0,(ALL!$B$3-AUTOCOOL!A985))","v":0}]
[null,null,null,null,null,null,null,null,null,null,0,0,{"$f":"IF((ALL!$B$3-AUTOCOOL!A986)>40000,0,(ALL!$B$3-AUTOCOOL!A986))","v":0}]
[null,null,null,null,null,null,null,null,null,null,0,0,{"$f":"IF((ALL!$B$3-AUTOCOOL!A987)>40000,0,(ALL!$B$3-AUTOCOOL!A987))","v":0}]
[null,null,null,null,null,null,null,null,null,null,0,0,{"$f":"IF((ALL!$B$3-AUTOCOOL!A988)>40000,0,(ALL!$B$3-AUTOCOOL!A988))","v":0}]
[null,null,null,null,null,null,null,null,null,null,0,0,{"$f":"IF((ALL!$B$3-AUTOCOOL!A989)>40000,0,(ALL!$B$3-AUTOCOOL!A989))","v":0}]
[null,null,null,null,null,null,null,null,null,null,0,0,{"$f":"IF((ALL!$B$3-AUTOCOOL!A990)>40000,0,(ALL!$B$3-AUTOCOOL!A990))","v":0}]
[null,null,null,null,null,null,null,null,null,null,0,0,{"$f":"IF((ALL!$B$3-AUTOCOOL!A991)>40000,0,(ALL!$B$3-AUTOCOOL!A991))","v":0}]
[null,null,null,null,null,null,null,null,null,null,0,0,{"$f":"IF((ALL!$B$3-AUTOCOOL!A992)>40000,0,(ALL!$B$3-AUTOCOOL!A992))","v":0}]
[null,null,null,null,null,null,null,null,null,null,0,{"$f":"IF(AND(M993>365),\"OVER A YEAR\",IF(AND(M993>0,M993<31),\"1 MONTH\",IF(AND(M993>30,M993<61),\"2 MONTHS\",IF(AND(M993>60,M993<91),\"3 MONTHS\",IF(AND(M993>90,M993<181),\"3 : 6 MONTHS\",IF(AND(M993>180,M993<271),\"6 : 9 MONTHS\",IF(AND(M993>270,M993<366),\"9 : 12 MONTHS\",IF(M993=0,0))))))))","v":0},{"$f":"IF((ALL!$B$3-AUTOCOOL!A993)>40000,0,(ALL!$B$3-AUTOCOOL!A993))","v":0}]
[null,null,null,null,null,null,null,null,null,null,0,{"$f":"IF(AND(M994>365),\"OVER A YEAR\",IF(AND(M994>0,M994<31),\"1 MONTH\",IF(AND(M994>30,M994<61),\"2 MONTHS\",IF(AND(M994>60,M994<91),\"3 MONTHS\",IF(AND(M994>90,M994<181),\"3 : 6 MONTHS\",IF(AND(M994>180,M994<271),\"6 : 9 MONTHS\",IF(AND(M994>270,M994<366),\"9 : 12 MONTHS\",IF(M994=0,0))))))))","v":0},{"$f":"IF((ALL!$B$3-AUTOCOOL!A994)>40000,0,(ALL!$B$3-AUTOCOOL!A994))","v":0}]
[null,null,null,null,null,null,null,null,null,null,0,{"$f":"IF(AND(M995>365),\"OVER A YEAR\",IF(AND(M995>0,M995<31),\"1 MONTH\",IF(AND(M995>30,M995<61),\"2 MONTHS\",IF(AND(M995>60,M995<91),\"3 MONTHS\",IF(AND(M995>90,M995<181),\"3 : 6 MONTHS\",IF(AND(M995>180,M995<271),\"6 : 9 MONTHS\",IF(AND(M995>270,M995<366),\"9 : 12 MONTHS\",IF(M995=0,0))))))))","v":0},{"$f":"IF((ALL!$B$3-AUTOCOOL!A995)>40000,0,(ALL!$B$3-AUTOCOOL!A995))","v":0}]
[null,null,null,null,null,null,null,null,null,null,0,0,{"$f":"IF((ALL!$B$3-AUTOCOOL!A996)>40000,0,(ALL!$B$3-AUTOCOOL!A996))","v":0}]
[null,null,null,null,null,null,null,null,null,null,0,{"$f":"IF(AND(M997>365),\"OVER A YEAR\",IF(AND(M997>0,M997<31),\"1 MONTH\",IF(AND(M997>30,M997<61),\"2 MONTHS\",IF(AND(M997>60,M997<91),\"3 MONTHS\",IF(AND(M997>90,M997<181),\"3 : 6 MONTHS\",IF(AND(M997>180,M997<271),\"6 : 9 MONTHS\",IF(AND(M997>270,M997<366),\"9 : 12 MONTHS\",IF(M997=0,0))))))))","v":0},{"$f":"IF((ALL!$B$3-AUTOCOOL!A997)>40000,0,(ALL!$B$3-AUTOCOOL!A997))","v":0}]
[null,null,null,null,null,null,null,null,null,null,0,{"$f":"IF(AND(M998>365),\"OVER A YEAR\",IF(AND(M998>0,M998<31),\"1 MONTH\",IF(AND(M998>30,M998<61),\"2 MONTHS\",IF(AND(M998>60,M998<91),\"3 MONTHS\",IF(AND(M998>90,M998<181),\"3 : 6 MONTHS\",IF(AND(M998>180,M998<271),\"6 : 9 MONTHS\",IF(AND(M998>270,M998<366),\"9 : 12 MONTHS\",IF(M998=0,0))))))))","v":0},{"$f":"IF((ALL!$B$3-AUTOCOOL!A998)>40000,0,(ALL!$B$3-AUTOCOOL!A998))","v":0}]
[null,null,null,null,null,null,null,null,null,null,0,0,{"$f":"IF((ALL!$B$3-AUTOCOOL!A999)>40000,0,(ALL!$B$3-AUTOCOOL!A999))","v":0}]
[null,null,{"$f":"SUM(C7:C999)","v":335426.95439999999},{"$f":"SUM(D7:D999)","v":0},18272.099999999999,0,0,7412.8,16221.15,0,377333.00439999998]
[]
[null,"CUSTOMER AGGING",null,"1 MONTH","2 MONTHS","3 MONTHS","3 : 6 MONTHS","6 : 9 MONTHS","9 : 12 MONTHS","OVER A YEAR"]